{"text_format":"1","workbook":"xlsx","n_sheets":2,"sheets":["نموذج ادخال البيانات","تقرير الطالب"],"not_rendered":{"charts":0,"images":2,"macros":1,"external_links":0,"defined_names":2,"comments":0,"pivot_tables":0},"unopened":[],"bounds":{"document_bytes":16777216,"sheet_cells":100000,"rows_first":2000,"rows_last":500,"rows_between":2000,"halvings":0,"cell_chars":16384,"cell_head_chars":4096},"cells_cut":0,"cells_raw":0,"read":"whole","date_system":"1900"}

{"sheet":"نموذج ادخال البيانات","index":0,"n_rows":28,"n_cols":12,"rows_kept":28,"cut":false,"hidden":false,"merged":[[4,8,4,9],[2,4,3,11],[0,0,5,1],[2,2,3,3],[4,2,5,3],[4,4,4,6],[5,4,5,6],[0,2,1,11],[5,7,5,9]]}
[null,null,"نموذج ادخال بيانات التقرير الشهري للطالب"]
[]
[null,null,"حلقات الهدى والنور",null,"تاريخ التقرير"]
[]
[null,null,"جامع السيف",null,"اليوم",null,null,null,"الشهر",null,null,"السنة"]
[null,null,null,null,{"$f":"TEXT(TODAY(),\"b2dd\")","v":"18"},null,null,{"$f":"TEXT(TODAY(),\"b2mm\")","v":"04"},null,null,null,{"$f":"TEXT(TODAY(),\"b2yyyy\")","v":"1443"}]
["م","اسم الطالب","اسم الحلقة","المستوى","المرحلة الدراسية","عدد أجزاء الحفظ سابقاً","مقدار الحفظ بالصفحة (الجديد)","مقدار المراجعة بالأجزاء","عدد أيام الغياب ","عدد أيام لم يسمع فيه  الدرس","نتيجة الاختبارالشهري","التقييم الشهري"]
[{"$f":"ROW(A1)","v":1},"محمد أحمد","حلقة النموذجية","الأول","الثاني",15,2,3.5,2,1,95,"ممتاز"]
[2]
[3]
[4]
[5]
[6]
[7]
[8]
[9]
[10]
[11]
[12]
[13]
[14]
[15]
[16]
[{"$f":"ROW(A17)","v":17}]
[18]
[19]
[20]
[21]

{"sheet":"تقرير الطالب","index":1,"n_rows":1120,"n_cols":13,"rows_kept":1120,"cut":false,"hidden":false,"merged":[[0,0,10,4],[11,1,14,1],[16,1,22,1],[29,2,29,3],[32,0,32,2]]}
[]
[]
[]
[null,null,null,null,null,null,null,null,null,null,null,null,{"$f":"IFERROR(INDEX(الجدول1[اسم الطالب],MATCH(0,INDEX(COUNTIF($M$3:M3,الجدول1[اسم الطالب]),),0)),\"\")","v":"محمد أحمد"}]
[null,null,null,null,null,null,null,null,null,null,null,null,{"$f":"IFERROR(INDEX(الجدول1[اسم الطالب],MATCH(0,INDEX(COUNTIF($M$3:M4,الجدول1[اسم الطالب]),),0)),\"\")","v":0}]
[null,null,null,null,null,null,null,null,null,null,null,null,{"$f":"IFERROR(INDEX(الجدول1[اسم الطالب],MATCH(0,INDEX(COUNTIF($M$3:M5,الجدول1[اسم الطالب]),),0)),\"\")","v":""}]
[null,null,null,null,null,null,null,null,null,null,null,null,{"$f":"IFERROR(INDEX(الجدول1[اسم الطالب],MATCH(0,INDEX(COUNTIF($M$3:M6,الجدول1[اسم الطالب]),),0)),\"\")","v":""}]
[null,null,null,null,null,null,null,null,null,null,null,null,{"$f":"IFERROR(INDEX(الجدول1[اسم الطالب],MATCH(0,INDEX(COUNTIF($M$3:M7,الجدول1[اسم الطالب]),),0)),\"\")","v":""}]
[null,null,null,null,null,null,null,null,null,null,null,null,{"$f":"IFERROR(INDEX(الجدول1[اسم الطالب],MATCH(0,INDEX(COUNTIF($M$3:M8,الجدول1[اسم الطالب]),),0)),\"\")","v":""}]
[null,null,null,null,null,null,null,null,null,null,null,null,{"$f":"IFERROR(INDEX(الجدول1[اسم الطالب],MATCH(0,INDEX(COUNTIF($M$3:M9,الجدول1[اسم الطالب]),),0)),\"\")","v":""}]
[null,null,null,null,null,null,null,null,null,null,null,null,{"$f":"IFERROR(INDEX(الجدول1[اسم الطالب],MATCH(0,INDEX(COUNTIF($M$3:M10,الجدول1[اسم الطالب]),),0)),\"\")","v":""}]
[null,"المعلومات الشخصية","اسم الطالب","محمد أحمد",null,null,null,null,null,null,null,null,{"$f":"IFERROR(INDEX(الجدول1[اسم الطالب],MATCH(0,INDEX(COUNTIF($M$3:M11,الجدول1[اسم الطالب]),),0)),\"\")","v":""}]
[null,null,"اسم الحلقة",{"$f":"INDEX('نموذج ادخال البيانات'!$B$7:$L$28,MATCH(D$12,'نموذج ادخال البيانات'!$B$7:$B$28,0),MATCH($C13,'نموذج ادخال البيانات'!$B$7:$L$7,0))","v":"حلقة النموذجية"},null,null,null,null,null,null,null,null,{"$f":"IFERROR(INDEX(الجدول1[اسم الطالب],MATCH(0,INDEX(COUNTIF($M$3:M12,الجدول1[اسم الطالب]),),0)),\"\")","v":""}]
[null,null,"المستوى",{"$f":"INDEX('نموذج ادخال البيانات'!$B$7:$L$28,MATCH(D$12,'نموذج ادخال البيانات'!$B$7:$B$28,0),MATCH($C14,'نموذج ادخال البيانات'!$B$7:$L$7,0))","v":"الأول"},null,null,null,null,null,null,null,null,{"$f":"IFERROR(INDEX(الجدول1[اسم الطالب],MATCH(0,INDEX(COUNTIF($M$3:M13,الجدول1[اسم الطالب]),),0)),\"\")","v":""}]
[null,null,"المرحلة الدراسية",{"$f":"INDEX('نموذج ادخال البيانات'!$B$7:$L$28,MATCH(D$12,'نموذج ادخال البيانات'!$B$7:$B$28,0),MATCH($C15,'نموذج ادخال البيانات'!$B$7:$L$7,0))","v":"الثاني"},null,null,null,null,null,null,null,null,{"$f":"IFERROR(INDEX(الجدول1[اسم الطالب],MATCH(0,INDEX(COUNTIF($M$3:M14,الجدول1[اسم الطالب]),),0)),\"\")","v":""}]
[null,null,null,null,null,null,null,null,null,null,null,null,{"$f":"IFERROR(INDEX(الجدول1[اسم الطالب],MATCH(0,INDEX(COUNTIF($M$3:M15,الجدول1[اسم الطالب]),),0)),\"\")","v":""}]
[null,"أداء الطالب في الحلقة","عدد أجزاء الحفظ سابقاً",{"$f":"INDEX('نموذج ادخال البيانات'!$B$7:$L$28,MATCH(D$12,'نموذج ادخال البيانات'!$B$7:$B$28,0),MATCH($C17,'نموذج ادخال البيانات'!$B$7:$L$7,0))","v":15},null,null,null,null,null,null,null,null,{"$f":"IFERROR(INDEX(الجدول1[اسم الطالب],MATCH(0,INDEX(COUNTIF($M$3:M16,الجدول1[اسم الطالب]),),0)),\"\")","v":""}]
[null,null,"مقدار الحفظ بالصفحة (الجديد)",{"$f":"INDEX('نموذج ادخال البيانات'!$B$7:$L$28,MATCH(D$12,'نموذج ادخال البيانات'!$B$7:$B$28,0),MATCH($C18,'نموذج ادخال البيانات'!$B$7:$L$7,0))","v":2},null,null,null,null,null,null,null,null,{"$f":"IFERROR(INDEX(الجدول1[اسم الطالب],MATCH(0,INDEX(COUNTIF($M$3:M17,الجدول1[اسم الطالب]),),0)),\"\")","v":""}]
[null,null,"مقدار المراجعة بالأجزاء",{"$f":"INDEX('نموذج ادخال البيانات'!$B$7:$L$28,MATCH(D$12,'نموذج ادخال البيانات'!$B$7:$B$28,0),MATCH($C19,'نموذج ادخال البيانات'!$B$7:$L$7,0))","v":3.5},null,null,null,null,null,null,null,null,{"$f":"IFERROR(INDEX(الجدول1[اسم الطالب],MATCH(0,INDEX(COUNTIF($M$3:M18,الجدول1[اسم الطالب]),),0)),\"\")","v":""}]
[null,null,"عدد أيام الغياب ",{"$f":"INDEX('نموذج ادخال البيانات'!$B$7:$L$28,MATCH(D$12,'نموذج ادخال البيانات'!$B$7:$B$28,0),MATCH($C20,'نموذج ادخال البيانات'!$B$7:$L$7,0))","v":2},null,null,null,null,null,null,null,null,{"$f":"IFERROR(INDEX(الجدول1[اسم الطالب],MATCH(0,INDEX(COUNTIF($M$3:M19,الجدول1[اسم الطالب]),),0)),\"\")","v":""}]
[null,null,"عدد أيام لم يسمع فيه  الدرس",{"$f":"INDEX('نموذج ادخال البيانات'!$B$7:$L$28,MATCH(D$12,'نموذج ادخال البيانات'!$B$7:$B$28,0),MATCH($C21,'نموذج ادخال البيانات'!$B$7:$L$7,0))","v":1},null,null,null,null,null,null,null,null,{"$f":"IFERROR(INDEX(الجدول1[اسم الطالب],MATCH(0,INDEX(COUNTIF($M$3:M20,الجدول1[اسم الطالب]),),0)),\"\")","v":""}]
[null,null,"نتيجة الاختبارالشهري",{"$f":"INDEX('نموذج ادخال البيانات'!$B$7:$L$28,MATCH(D$12,'نموذج ادخال البيانات'!$B$7:$B$28,0),MATCH($C22,'نموذج ادخال البيانات'!$B$7:$L$7,0))","v":95},null,null,null,null,null,null,null,null,{"$f":"IFERROR(INDEX(الجدول1[اسم الطالب],MATCH(0,INDEX(COUNTIF($M$3:M21,الجدول1[اسم الطالب]),),0)),\"\")","v":""}]
[null,null,"التقييم الشهري",{"$f":"INDEX('نموذج ادخال البيانات'!$B$7:$L$28,MATCH(D$12,'نموذج ادخال البيانات'!$B$7:$B$28,0),MATCH($C23,'نموذج ادخال البيانات'!$B$7:$L$7,0))","v":"ممتاز"},null,null,null,null,null,null,null,null,{"$f":"IFERROR(INDEX(الجدول1[اسم الطالب],MATCH(0,INDEX(COUNTIF($M$3:M22,الجدول1[اسم الطالب]),),0)),\"\")","v":""}]
[null,null,null,null,null,null,null,null,null,null,null,{"$f":"IFERROR(INDEX(الجدول1[اسم الطالب],MATCH(0,INDEX(COUNTIF($M$3:M23,الجدول1[اسم الطالب]),),0)),\"\")","v":""},{"$f":"IFERROR(INDEX(الجدول1[اسم الطالب],MATCH(0,INDEX(COUNTIF($M$3:M23,الجدول1[اسم الطالب]),),0)),\"\")","v":""}]
[null,null,null,null,null,null,null,null,null,null,null,null,{"$f":"IFERROR(INDEX(الجدول1[اسم الطالب],MATCH(0,INDEX(COUNTIF($M$3:M24,الجدول1[اسم الطالب]),),0)),\"\")","v":""}]
[null,null,null,null,null,null,null,null,null,null,null,null,{"$f":"IFERROR(INDEX(الجدول1[اسم الطالب],MATCH(0,INDEX(COUNTIF($M$3:M25,الجدول1[اسم الطالب]),),0)),\"\")","v":""}]
[null,null,null,null,null,null,null,null,null,null,null,null,{"$f":"IFERROR(INDEX(الجدول1[اسم الطالب],MATCH(0,INDEX(COUNTIF($M$3:M26,الجدول1[اسم الطالب]),),0)),\"\")","v":""}]
[null,"اسم ولي الأمر","رقم الجوال ","توقيع ولي الأمر",null,null,null,null,null,null,null,null,{"$f":"IFERROR(INDEX(الجدول1[اسم الطالب],MATCH(0,INDEX(COUNTIF($M$3:M27,الجدول1[اسم الطالب]),),0)),\"\")","v":""}]
[]
[null,null,null,null,null,null,null,null,null,null,null,null,{"$f":"IFERROR(INDEX(الجدول1[اسم الطالب],MATCH(0,INDEX(COUNTIF($M$3:M29,الجدول1[اسم الطالب]),),0)),\"\")","v":""}]
[null,null,null,null,null,null,null,null,null,null,null,null,{"$f":"IFERROR(INDEX(الجدول1[اسم الطالب],MATCH(0,INDEX(COUNTIF($M$3:M30,الجدول1[اسم الطالب]),),0)),\"\")","v":""}]
[null,null,null,null,null,null,null,null,null,null,null,null,{"$f":"IFERROR(INDEX(الجدول1[اسم الطالب],MATCH(0,INDEX(COUNTIF($M$3:M31,الجدول1[اسم الطالب]),),0)),\"\")","v":""}]
[null,null,null,null,null,null,null,null,null,null,null,null,{"$f":"IFERROR(INDEX(الجدول1[اسم الطالب],MATCH(0,INDEX(COUNTIF($M$3:M32,الجدول1[اسم الطالب]),),0)),\"\")","v":""}]
[null,null,null,null,null,null,null,null,null,null,null,null,{"$f":"IFERROR(INDEX(الجدول1[اسم الطالب],MATCH(0,INDEX(COUNTIF($M$3:M33,الجدول1[اسم الطالب]),),0)),\"\")","v":""}]
[null,null,null,null,null,null,null,null,null,null,null,null,{"$f":"IFERROR(INDEX(الجدول1[اسم الطالب],MATCH(0,INDEX(COUNTIF($M$3:M34,الجدول1[اسم الطالب]),),0)),\"\")","v":""}]
[null,null,null,null,null,null,null,null,null,null,null,null,{"$f":"IFERROR(INDEX(الجدول1[اسم الطالب],MATCH(0,INDEX(COUNTIF($M$3:M35,الجدول1[اسم الطالب]),),0)),\"\")","v":""}]
[null,null,null,null,null,null,null,null,null,null,null,null,{"$f":"IFERROR(INDEX(الجدول1[اسم الطالب],MATCH(0,INDEX(COUNTIF($M$3:M36,الجدول1[اسم الطالب]),),0)),\"\")","v":""}]
[null,null,null,null,null,null,null,null,null,null,null,null,{"$f":"IFERROR(INDEX(الجدول1[اسم الطالب],MATCH(0,INDEX(COUNTIF($M$3:M37,الجدول1[اسم الطالب]),),0)),\"\")","v":""}]
[null,null,null,null,null,null,null,null,null,null,null,null,{"$f":"IFERROR(INDEX(الجدول1[اسم الطالب],MATCH(0,INDEX(COUNTIF($M$3:M38,الجدول1[اسم الطالب]),),0)),\"\")","v":""}]
[null,null,null,null,null,null,null,null,null,null,null,null,{"$f":"IFERROR(INDEX(الجدول1[اسم الطالب],MATCH(0,INDEX(COUNTIF($M$3:M39,الجدول1[اسم الطالب]),),0)),\"\")","v":""}]
[null,null,null,null,null,null,null,null,null,null,null,null,{"$f":"IFERROR(INDEX(الجدول1[اسم الطالب],MATCH(0,INDEX(COUNTIF($M$3:M40,الجدول1[اسم الطالب]),),0)),\"\")","v":""}]
[null,null,null,null,null,null,null,null,null,null,null,null,{"$f":"IFERROR(INDEX(الجدول1[اسم الطالب],MATCH(0,INDEX(COUNTIF($M$3:M41,الجدول1[اسم الطالب]),),0)),\"\")","v":""}]
[null,null,null,null,null,null,null,null,null,null,null,null,{"$f":"IFERROR(INDEX(الجدول1[اسم الطالب],MATCH(0,INDEX(COUNTIF($M$3:M42,الجدول1[اسم الطالب]),),0)),\"\")","v":""}]
[null,null,null,null,null,null,null,null,null,null,null,null,{"$f":"IFERROR(INDEX(الجدول1[اسم الطالب],MATCH(0,INDEX(COUNTIF($M$3:M43,الجدول1[اسم الطالب]),),0)),\"\")","v":""}]
[null,null,null,null,null,null,null,null,null,null,null,null,{"$f":"IFERROR(INDEX(الجدول1[اسم الطالب],MATCH(0,INDEX(COUNTIF($M$3:M44,الجدول1[اسم الطالب]),),0)),\"\")","v":""}]
[null,null,null,null,null,null,null,null,null,null,null,null,{"$f":"IFERROR(INDEX(الجدول1[اسم الطالب],MATCH(0,INDEX(COUNTIF($M$3:M45,الجدول1[اسم الطالب]),),0)),\"\")","v":""}]
[null,null,null,null,null,null,null,null,null,null,null,null,{"$f":"IFERROR(INDEX(الجدول1[اسم الطالب],MATCH(0,INDEX(COUNTIF($M$3:M46,الجدول1[اسم الطالب]),),0)),\"\")","v":""}]
[null,null,null,null,null,null,null,null,null,null,null,null,{"$f":"IFERROR(INDEX(الجدول1[اسم الطالب],MATCH(0,INDEX(COUNTIF($M$3:M47,الجدول1[اسم الطالب]),),0)),\"\")","v":""}]
[null,null,null,null,null,null,null,null,null,null,null,null,{"$f":"IFERROR(INDEX(الجدول1[اسم الطالب],MATCH(0,INDEX(COUNTIF($M$3:M48,الجدول1[اسم الطالب]),),0)),\"\")","v":""}]
[null,null,null,null,null,null,null,null,null,null,null,null,{"$f":"IFERROR(INDEX(الجدول1[اسم الطالب],MATCH(0,INDEX(COUNTIF($M$3:M49,الجدول1[اسم الطالب]),),0)),\"\")","v":""}]
[null,null,null,null,null,null,null,null,null,null,null,null,{"$f":"IFERROR(INDEX(الجدول1[اسم الطالب],MATCH(0,INDEX(COUNTIF($M$3:M50,الجدول1[اسم الطالب]),),0)),\"\")","v":""}]
[null,null,null,null,null,null,null,null,null,null,null,null,{"$f":"IFERROR(INDEX(الجدول1[اسم الطالب],MATCH(0,INDEX(COUNTIF($M$3:M51,الجدول1[اسم الطالب]),),0)),\"\")","v":""}]
[null,null,null,null,null,null,null,null,null,null,null,null,{"$f":"IFERROR(INDEX(الجدول1[اسم الطالب],MATCH(0,INDEX(COUNTIF($M$3:M52,الجدول1[اسم الطالب]),),0)),\"\")","v":""}]
[null,null,null,null,null,null,null,null,null,null,null,null,{"$f":"IFERROR(INDEX(الجدول1[اسم الطالب],MATCH(0,INDEX(COUNTIF($M$3:M53,الجدول1[اسم الطالب]),),0)),\"\")","v":""}]
[null,null,null,null,null,null,null,null,null,null,null,null,{"$f":"IFERROR(INDEX(الجدول1[اسم الطالب],MATCH(0,INDEX(COUNTIF($M$3:M54,الجدول1[اسم الطالب]),),0)),\"\")","v":""}]
[null,null,null,null,null,null,null,null,null,null,null,null,{"$f":"IFERROR(INDEX(الجدول1[اسم الطالب],MATCH(0,INDEX(COUNTIF($M$3:M55,الجدول1[اسم الطالب]),),0)),\"\")","v":""}]
[null,null,null,null,null,null,null,null,null,null,null,null,{"$f":"IFERROR(INDEX(الجدول1[اسم الطالب],MATCH(0,INDEX(COUNTIF($M$3:M56,الجدول1[اسم الطالب]),),0)),\"\")","v":""}]
[null,null,null,null,null,null,null,null,null,null,null,null,{"$f":"IFERROR(INDEX(الجدول1[اسم الطالب],MATCH(0,INDEX(COUNTIF($M$3:M57,الجدول1[اسم الطالب]),),0)),\"\")","v":""}]
[null,null,null,null,null,null,null,null,null,null,null,null,{"$f":"IFERROR(INDEX(الجدول1[اسم الطالب],MATCH(0,INDEX(COUNTIF($M$3:M58,الجدول1[اسم الطالب]),),0)),\"\")","v":""}]
[null,null,null,null,null,null,null,null,null,null,null,null,{"$f":"IFERROR(INDEX(الجدول1[اسم الطالب],MATCH(0,INDEX(COUNTIF($M$3:M59,الجدول1[اسم الطالب]),),0)),\"\")","v":""}]
[null,null,null,null,null,null,null,null,null,null,null,null,{"$f":"IFERROR(INDEX(الجدول1[اسم الطالب],MATCH(0,INDEX(COUNTIF($M$3:M60,الجدول1[اسم الطالب]),),0)),\"\")","v":""}]
[null,null,null,null,null,null,null,null,null,null,null,null,{"$f":"IFERROR(INDEX(الجدول1[اسم الطالب],MATCH(0,INDEX(COUNTIF($M$3:M61,الجدول1[اسم الطالب]),),0)),\"\")","v":""}]
[null,null,null,null,null,null,null,null,null,null,null,null,{"$f":"IFERROR(INDEX(الجدول1[اسم الطالب],MATCH(0,INDEX(COUNTIF($M$3:M62,الجدول1[اسم الطالب]),),0)),\"\")","v":""}]
[null,null,null,null,null,null,null,null,null,null,null,null,{"$f":"IFERROR(INDEX(الجدول1[اسم الطالب],MATCH(0,INDEX(COUNTIF($M$3:M63,الجدول1[اسم الطالب]),),0)),\"\")","v":""}]
[null,null,null,null,null,null,null,null,null,null,null,null,{"$f":"IFERROR(INDEX(الجدول1[اسم الطالب],MATCH(0,INDEX(COUNTIF($M$3:M64,الجدول1[اسم الطالب]),),0)),\"\")","v":""}]
[null,null,null,null,null,null,null,null,null,null,null,null,{"$f":"IFERROR(INDEX(الجدول1[اسم الطالب],MATCH(0,INDEX(COUNTIF($M$3:M65,الجدول1[اسم الطالب]),),0)),\"\")","v":""}]
[null,null,null,null,null,null,null,null,null,null,null,null,{"$f":"IFERROR(INDEX(الجدول1[اسم الطالب],MATCH(0,INDEX(COUNTIF($M$3:M66,الجدول1[اسم الطالب]),),0)),\"\")","v":""}]
[null,null,null,null,null,null,null,null,null,null,null,null,{"$f":"IFERROR(INDEX(الجدول1[اسم الطالب],MATCH(0,INDEX(COUNTIF($M$3:M67,الجدول1[اسم الطالب]),),0)),\"\")","v":""}]
[null,null,null,null,null,null,null,null,null,null,null,null,{"$f":"IFERROR(INDEX(الجدول1[اسم الطالب],MATCH(0,INDEX(COUNTIF($M$3:M68,الجدول1[اسم الطالب]),),0)),\"\")","v":""}]
[null,null,null,null,null,null,null,null,null,null,null,null,{"$f":"IFERROR(INDEX(الجدول1[اسم الطالب],MATCH(0,INDEX(COUNTIF($M$3:M69,الجدول1[اسم الطالب]),),0)),\"\")","v":""}]
[null,null,null,null,null,null,null,null,null,null,null,null,{"$f":"IFERROR(INDEX(الجدول1[اسم الطالب],MATCH(0,INDEX(COUNTIF($M$3:M70,الجدول1[اسم الطالب]),),0)),\"\")","v":""}]
[null,null,null,null,null,null,null,null,null,null,null,null,{"$f":"IFERROR(INDEX(الجدول1[اسم الطالب],MATCH(0,INDEX(COUNTIF($M$3:M71,الجدول1[اسم الطالب]),),0)),\"\")","v":""}]
[null,null,null,null,null,null,null,null,null,null,null,null,{"$f":"IFERROR(INDEX(الجدول1[اسم الطالب],MATCH(0,INDEX(COUNTIF($M$3:M72,الجدول1[اسم الطالب]),),0)),\"\")","v":""}]
[null,null,null,null,null,null,null,null,null,null,null,null,{"$f":"IFERROR(INDEX(الجدول1[اسم الطالب],MATCH(0,INDEX(COUNTIF($M$3:M73,الجدول1[اسم الطالب]),),0)),\"\")","v":""}]
[null,null,null,null,null,null,null,null,null,null,null,null,{"$f":"IFERROR(INDEX(الجدول1[اسم الطالب],MATCH(0,INDEX(COUNTIF($M$3:M74,الجدول1[اسم الطالب]),),0)),\"\")","v":""}]
[null,null,null,null,null,null,null,null,null,null,null,null,{"$f":"IFERROR(INDEX(الجدول1[اسم الطالب],MATCH(0,INDEX(COUNTIF($M$3:M75,الجدول1[اسم الطالب]),),0)),\"\")","v":""}]
[null,null,null,null,null,null,null,null,null,null,null,null,{"$f":"IFERROR(INDEX(الجدول1[اسم الطالب],MATCH(0,INDEX(COUNTIF($M$3:M76,الجدول1[اسم الطالب]),),0)),\"\")","v":""}]
[null,null,null,null,null,null,null,null,null,null,null,null,{"$f":"IFERROR(INDEX(الجدول1[اسم الطالب],MATCH(0,INDEX(COUNTIF($M$3:M77,الجدول1[اسم الطالب]),),0)),\"\")","v":""}]
[null,null,null,null,null,null,null,null,null,null,null,null,{"$f":"IFERROR(INDEX(الجدول1[اسم الطالب],MATCH(0,INDEX(COUNTIF($M$3:M78,الجدول1[اسم الطالب]),),0)),\"\")","v":""}]
[null,null,null,null,null,null,null,null,null,null,null,null,{"$f":"IFERROR(INDEX(الجدول1[اسم الطالب],MATCH(0,INDEX(COUNTIF($M$3:M79,الجدول1[اسم الطالب]),),0)),\"\")","v":""}]
[null,null,null,null,null,null,null,null,null,null,null,null,{"$f":"IFERROR(INDEX(الجدول1[اسم الطالب],MATCH(0,INDEX(COUNTIF($M$3:M80,الجدول1[اسم الطالب]),),0)),\"\")","v":""}]
[null,null,null,null,null,null,null,null,null,null,null,null,{"$f":"IFERROR(INDEX(الجدول1[اسم الطالب],MATCH(0,INDEX(COUNTIF($M$3:M81,الجدول1[اسم الطالب]),),0)),\"\")","v":""}]
[null,null,null,null,null,null,null,null,null,null,null,null,{"$f":"IFERROR(INDEX(الجدول1[اسم الطالب],MATCH(0,INDEX(COUNTIF($M$3:M82,الجدول1[اسم الطالب]),),0)),\"\")","v":""}]
[null,null,null,null,null,null,null,null,null,null,null,null,{"$f":"IFERROR(INDEX(الجدول1[اسم الطالب],MATCH(0,INDEX(COUNTIF($M$3:M83,الجدول1[اسم الطالب]),),0)),\"\")","v":""}]
[null,null,null,null,null,null,null,null,null,null,null,null,{"$f":"IFERROR(INDEX(الجدول1[اسم الطالب],MATCH(0,INDEX(COUNTIF($M$3:M84,الجدول1[اسم الطالب]),),0)),\"\")","v":""}]
[null,null,null,null,null,null,null,null,null,null,null,null,{"$f":"IFERROR(INDEX(الجدول1[اسم الطالب],MATCH(0,INDEX(COUNTIF($M$3:M85,الجدول1[اسم الطالب]),),0)),\"\")","v":""}]
[null,null,null,null,null,null,null,null,null,null,null,null,{"$f":"IFERROR(INDEX(الجدول1[اسم الطالب],MATCH(0,INDEX(COUNTIF($M$3:M86,الجدول1[اسم الطالب]),),0)),\"\")","v":""}]
[null,null,null,null,null,null,null,null,null,null,null,null,{"$f":"IFERROR(INDEX(الجدول1[اسم الطالب],MATCH(0,INDEX(COUNTIF($M$3:M87,الجدول1[اسم الطالب]),),0)),\"\")","v":""}]
[null,null,null,null,null,null,null,null,null,null,null,null,{"$f":"IFERROR(INDEX(الجدول1[اسم الطالب],MATCH(0,INDEX(COUNTIF($M$3:M88,الجدول1[اسم الطالب]),),0)),\"\")","v":""}]
[null,null,null,null,null,null,null,null,null,null,null,null,{"$f":"IFERROR(INDEX(الجدول1[اسم الطالب],MATCH(0,INDEX(COUNTIF($M$3:M89,الجدول1[اسم الطالب]),),0)),\"\")","v":""}]
[null,null,null,null,null,null,null,null,null,null,null,null,{"$f":"IFERROR(INDEX(الجدول1[اسم الطالب],MATCH(0,INDEX(COUNTIF($M$3:M90,الجدول1[اسم الطالب]),),0)),\"\")","v":""}]
[null,null,null,null,null,null,null,null,null,null,null,null,{"$f":"IFERROR(INDEX(الجدول1[اسم الطالب],MATCH(0,INDEX(COUNTIF($M$3:M91,الجدول1[اسم الطالب]),),0)),\"\")","v":""}]
[null,null,null,null,null,null,null,null,null,null,null,null,{"$f":"IFERROR(INDEX(الجدول1[اسم الطالب],MATCH(0,INDEX(COUNTIF($M$3:M92,الجدول1[اسم الطالب]),),0)),\"\")","v":""}]
[null,null,null,null,null,null,null,null,null,null,null,null,{"$f":"IFERROR(INDEX(الجدول1[اسم الطالب],MATCH(0,INDEX(COUNTIF($M$3:M93,الجدول1[اسم الطالب]),),0)),\"\")","v":""}]
[null,null,null,null,null,null,null,null,null,null,null,null,{"$f":"IFERROR(INDEX(الجدول1[اسم الطالب],MATCH(0,INDEX(COUNTIF($M$3:M94,الجدول1[اسم الطالب]),),0)),\"\")","v":""}]
[null,null,null,null,null,null,null,null,null,null,null,null,{"$f":"IFERROR(INDEX(الجدول1[اسم الطالب],MATCH(0,INDEX(COUNTIF($M$3:M95,الجدول1[اسم الطالب]),),0)),\"\")","v":""}]
[null,null,null,null,null,null,null,null,null,null,null,null,{"$f":"IFERROR(INDEX(الجدول1[اسم الطالب],MATCH(0,INDEX(COUNTIF($M$3:M96,الجدول1[اسم الطالب]),),0)),\"\")","v":""}]
[null,null,null,null,null,null,null,null,null,null,null,null,{"$f":"IFERROR(INDEX(الجدول1[اسم الطالب],MATCH(0,INDEX(COUNTIF($M$3:M97,الجدول1[اسم الطالب]),),0)),\"\")","v":""}]
[null,null,null,null,null,null,null,null,null,null,null,null,{"$f":"IFERROR(INDEX(الجدول1[اسم الطالب],MATCH(0,INDEX(COUNTIF($M$3:M98,الجدول1[اسم الطالب]),),0)),\"\")","v":""}]
[null,null,null,null,null,null,null,null,null,null,null,null,{"$f":"IFERROR(INDEX(الجدول1[اسم الطالب],MATCH(0,INDEX(COUNTIF($M$3:M99,الجدول1[اسم الطالب]),),0)),\"\")","v":""}]
[null,null,null,null,null,null,null,null,null,null,null,null,{"$f":"IFERROR(INDEX(الجدول1[اسم الطالب],MATCH(0,INDEX(COUNTIF($M$3:M100,الجدول1[اسم الطالب]),),0)),\"\")","v":""}]
[null,null,null,null,null,null,null,null,null,null,null,null,{"$f":"IFERROR(INDEX(الجدول1[اسم الطالب],MATCH(0,INDEX(COUNTIF($M$3:M101,الجدول1[اسم الطالب]),),0)),\"\")","v":""}]
[null,null,null,null,null,null,null,null,null,null,null,null,{"$f":"IFERROR(INDEX(الجدول1[اسم الطالب],MATCH(0,INDEX(COUNTIF($M$3:M102,الجدول1[اسم الطالب]),),0)),\"\")","v":""}]
[null,null,null,null,null,null,null,null,null,null,null,null,{"$f":"IFERROR(INDEX(الجدول1[اسم الطالب],MATCH(0,INDEX(COUNTIF($M$3:M103,الجدول1[اسم الطالب]),),0)),\"\")","v":""}]
[null,null,null,null,null,null,null,null,null,null,null,null,{"$f":"IFERROR(INDEX(الجدول1[اسم الطالب],MATCH(0,INDEX(COUNTIF($M$3:M104,الجدول1[اسم الطالب]),),0)),\"\")","v":""}]
[null,null,null,null,null,null,null,null,null,null,null,null,{"$f":"IFERROR(INDEX(الجدول1[اسم الطالب],MATCH(0,INDEX(COUNTIF($M$3:M105,الجدول1[اسم الطالب]),),0)),\"\")","v":""}]
[null,null,null,null,null,null,null,null,null,null,null,null,{"$f":"IFERROR(INDEX(الجدول1[اسم الطالب],MATCH(0,INDEX(COUNTIF($M$3:M106,الجدول1[اسم الطالب]),),0)),\"\")","v":""}]
[null,null,null,null,null,null,null,null,null,null,null,null,{"$f":"IFERROR(INDEX(الجدول1[اسم الطالب],MATCH(0,INDEX(COUNTIF($M$3:M107,الجدول1[اسم الطالب]),),0)),\"\")","v":""}]
[null,null,null,null,null,null,null,null,null,null,null,null,{"$f":"IFERROR(INDEX(الجدول1[اسم الطالب],MATCH(0,INDEX(COUNTIF($M$3:M108,الجدول1[اسم الطالب]),),0)),\"\")","v":""}]
[null,null,null,null,null,null,null,null,null,null,null,null,{"$f":"IFERROR(INDEX(الجدول1[اسم الطالب],MATCH(0,INDEX(COUNTIF($M$3:M109,الجدول1[اسم الطالب]),),0)),\"\")","v":""}]
[null,null,null,null,null,null,null,null,null,null,null,null,{"$f":"IFERROR(INDEX(الجدول1[اسم الطالب],MATCH(0,INDEX(COUNTIF($M$3:M110,الجدول1[اسم الطالب]),),0)),\"\")","v":""}]
[null,null,null,null,null,null,null,null,null,null,null,null,{"$f":"IFERROR(INDEX(الجدول1[اسم الطالب],MATCH(0,INDEX(COUNTIF($M$3:M111,الجدول1[اسم الطالب]),),0)),\"\")","v":""}]
[null,null,null,null,null,null,null,null,null,null,null,null,{"$f":"IFERROR(INDEX(الجدول1[اسم الطالب],MATCH(0,INDEX(COUNTIF($M$3:M112,الجدول1[اسم الطالب]),),0)),\"\")","v":""}]
[null,null,null,null,null,null,null,null,null,null,null,null,{"$f":"IFERROR(INDEX(الجدول1[اسم الطالب],MATCH(0,INDEX(COUNTIF($M$3:M113,الجدول1[اسم الطالب]),),0)),\"\")","v":""}]
[null,null,null,null,null,null,null,null,null,null,null,null,{"$f":"IFERROR(INDEX(الجدول1[اسم الطالب],MATCH(0,INDEX(COUNTIF($M$3:M114,الجدول1[اسم الطالب]),),0)),\"\")","v":""}]
[null,null,null,null,null,null,null,null,null,null,null,null,{"$f":"IFERROR(INDEX(الجدول1[اسم الطالب],MATCH(0,INDEX(COUNTIF($M$3:M115,الجدول1[اسم الطالب]),),0)),\"\")","v":""}]
[null,null,null,null,null,null,null,null,null,null,null,null,{"$f":"IFERROR(INDEX(الجدول1[اسم الطالب],MATCH(0,INDEX(COUNTIF($M$3:M116,الجدول1[اسم الطالب]),),0)),\"\")","v":""}]
[null,null,null,null,null,null,null,null,null,null,null,null,{"$f":"IFERROR(INDEX(الجدول1[اسم الطالب],MATCH(0,INDEX(COUNTIF($M$3:M117,الجدول1[اسم الطالب]),),0)),\"\")","v":""}]
[null,null,null,null,null,null,null,null,null,null,null,null,{"$f":"IFERROR(INDEX(الجدول1[اسم الطالب],MATCH(0,INDEX(COUNTIF($M$3:M118,الجدول1[اسم الطالب]),),0)),\"\")","v":""}]
[null,null,null,null,null,null,null,null,null,null,null,null,{"$f":"IFERROR(INDEX(الجدول1[اسم الطالب],MATCH(0,INDEX(COUNTIF($M$3:M119,الجدول1[اسم الطالب]),),0)),\"\")","v":""}]
[null,null,null,null,null,null,null,null,null,null,null,null,{"$f":"IFERROR(INDEX(الجدول1[اسم الطالب],MATCH(0,INDEX(COUNTIF($M$3:M120,الجدول1[اسم الطالب]),),0)),\"\")","v":""}]
[null,null,null,null,null,null,null,null,null,null,null,null,{"$f":"IFERROR(INDEX(الجدول1[اسم الطالب],MATCH(0,INDEX(COUNTIF($M$3:M121,الجدول1[اسم الطالب]),),0)),\"\")","v":""}]
[null,null,null,null,null,null,null,null,null,null,null,null,{"$f":"IFERROR(INDEX(الجدول1[اسم الطالب],MATCH(0,INDEX(COUNTIF($M$3:M122,الجدول1[اسم الطالب]),),0)),\"\")","v":""}]
[null,null,null,null,null,null,null,null,null,null,null,null,{"$f":"IFERROR(INDEX(الجدول1[اسم الطالب],MATCH(0,INDEX(COUNTIF($M$3:M123,الجدول1[اسم الطالب]),),0)),\"\")","v":""}]
[null,null,null,null,null,null,null,null,null,null,null,null,{"$f":"IFERROR(INDEX(الجدول1[اسم الطالب],MATCH(0,INDEX(COUNTIF($M$3:M124,الجدول1[اسم الطالب]),),0)),\"\")","v":""}]
[null,null,null,null,null,null,null,null,null,null,null,null,{"$f":"IFERROR(INDEX(الجدول1[اسم الطالب],MATCH(0,INDEX(COUNTIF($M$3:M125,الجدول1[اسم الطالب]),),0)),\"\")","v":""}]
[null,null,null,null,null,null,null,null,null,null,null,null,{"$f":"IFERROR(INDEX(الجدول1[اسم الطالب],MATCH(0,INDEX(COUNTIF($M$3:M126,الجدول1[اسم الطالب]),),0)),\"\")","v":""}]
[null,null,null,null,null,null,null,null,null,null,null,null,{"$f":"IFERROR(INDEX(الجدول1[اسم الطالب],MATCH(0,INDEX(COUNTIF($M$3:M127,الجدول1[اسم الطالب]),),0)),\"\")","v":""}]
[null,null,null,null,null,null,null,null,null,null,null,null,{"$f":"IFERROR(INDEX(الجدول1[اسم الطالب],MATCH(0,INDEX(COUNTIF($M$3:M128,الجدول1[اسم الطالب]),),0)),\"\")","v":""}]
[null,null,null,null,null,null,null,null,null,null,null,null,{"$f":"IFERROR(INDEX(الجدول1[اسم الطالب],MATCH(0,INDEX(COUNTIF($M$3:M129,الجدول1[اسم الطالب]),),0)),\"\")","v":""}]
[null,null,null,null,null,null,null,null,null,null,null,null,{"$f":"IFERROR(INDEX(الجدول1[اسم الطالب],MATCH(0,INDEX(COUNTIF($M$3:M130,الجدول1[اسم الطالب]),),0)),\"\")","v":""}]
[null,null,null,null,null,null,null,null,null,null,null,null,{"$f":"IFERROR(INDEX(الجدول1[اسم الطالب],MATCH(0,INDEX(COUNTIF($M$3:M131,الجدول1[اسم الطالب]),),0)),\"\")","v":""}]
[null,null,null,null,null,null,null,null,null,null,null,null,{"$f":"IFERROR(INDEX(الجدول1[اسم الطالب],MATCH(0,INDEX(COUNTIF($M$3:M132,الجدول1[اسم الطالب]),),0)),\"\")","v":""}]
[null,null,null,null,null,null,null,null,null,null,null,null,{"$f":"IFERROR(INDEX(الجدول1[اسم الطالب],MATCH(0,INDEX(COUNTIF($M$3:M133,الجدول1[اسم الطالب]),),0)),\"\")","v":""}]
[null,null,null,null,null,null,null,null,null,null,null,null,{"$f":"IFERROR(INDEX(الجدول1[اسم الطالب],MATCH(0,INDEX(COUNTIF($M$3:M134,الجدول1[اسم الطالب]),),0)),\"\")","v":""}]
[null,null,null,null,null,null,null,null,null,null,null,null,{"$f":"IFERROR(INDEX(الجدول1[اسم الطالب],MATCH(0,INDEX(COUNTIF($M$3:M135,الجدول1[اسم الطالب]),),0)),\"\")","v":""}]
[null,null,null,null,null,null,null,null,null,null,null,null,{"$f":"IFERROR(INDEX(الجدول1[اسم الطالب],MATCH(0,INDEX(COUNTIF($M$3:M136,الجدول1[اسم الطالب]),),0)),\"\")","v":""}]
[null,null,null,null,null,null,null,null,null,null,null,null,{"$f":"IFERROR(INDEX(الجدول1[اسم الطالب],MATCH(0,INDEX(COUNTIF($M$3:M137,الجدول1[اسم الطالب]),),0)),\"\")","v":""}]
[null,null,null,null,null,null,null,null,null,null,null,null,{"$f":"IFERROR(INDEX(الجدول1[اسم الطالب],MATCH(0,INDEX(COUNTIF($M$3:M138,الجدول1[اسم الطالب]),),0)),\"\")","v":""}]
[null,null,null,null,null,null,null,null,null,null,null,null,{"$f":"IFERROR(INDEX(الجدول1[اسم الطالب],MATCH(0,INDEX(COUNTIF($M$3:M139,الجدول1[اسم الطالب]),),0)),\"\")","v":""}]
[null,null,null,null,null,null,null,null,null,null,null,null,{"$f":"IFERROR(INDEX(الجدول1[اسم الطالب],MATCH(0,INDEX(COUNTIF($M$3:M140,الجدول1[اسم الطالب]),),0)),\"\")","v":""}]
[null,null,null,null,null,null,null,null,null,null,null,null,{"$f":"IFERROR(INDEX(الجدول1[اسم الطالب],MATCH(0,INDEX(COUNTIF($M$3:M141,الجدول1[اسم الطالب]),),0)),\"\")","v":""}]
[null,null,null,null,null,null,null,null,null,null,null,null,{"$f":"IFERROR(INDEX(الجدول1[اسم الطالب],MATCH(0,INDEX(COUNTIF($M$3:M142,الجدول1[اسم الطالب]),),0)),\"\")","v":""}]
[null,null,null,null,null,null,null,null,null,null,null,null,{"$f":"IFERROR(INDEX(الجدول1[اسم الطالب],MATCH(0,INDEX(COUNTIF($M$3:M143,الجدول1[اسم الطالب]),),0)),\"\")","v":""}]
[null,null,null,null,null,null,null,null,null,null,null,null,{"$f":"IFERROR(INDEX(الجدول1[اسم الطالب],MATCH(0,INDEX(COUNTIF($M$3:M144,الجدول1[اسم الطالب]),),0)),\"\")","v":""}]
[null,null,null,null,null,null,null,null,null,null,null,null,{"$f":"IFERROR(INDEX(الجدول1[اسم الطالب],MATCH(0,INDEX(COUNTIF($M$3:M145,الجدول1[اسم الطالب]),),0)),\"\")","v":""}]
[null,null,null,null,null,null,null,null,null,null,null,null,{"$f":"IFERROR(INDEX(الجدول1[اسم الطالب],MATCH(0,INDEX(COUNTIF($M$3:M146,الجدول1[اسم الطالب]),),0)),\"\")","v":""}]
[null,null,null,null,null,null,null,null,null,null,null,null,{"$f":"IFERROR(INDEX(الجدول1[اسم الطالب],MATCH(0,INDEX(COUNTIF($M$3:M147,الجدول1[اسم الطالب]),),0)),\"\")","v":""}]
[null,null,null,null,null,null,null,null,null,null,null,null,{"$f":"IFERROR(INDEX(الجدول1[اسم الطالب],MATCH(0,INDEX(COUNTIF($M$3:M148,الجدول1[اسم الطالب]),),0)),\"\")","v":""}]
[null,null,null,null,null,null,null,null,null,null,null,null,{"$f":"IFERROR(INDEX(الجدول1[اسم الطالب],MATCH(0,INDEX(COUNTIF($M$3:M149,الجدول1[اسم الطالب]),),0)),\"\")","v":""}]
[null,null,null,null,null,null,null,null,null,null,null,null,{"$f":"IFERROR(INDEX(الجدول1[اسم الطالب],MATCH(0,INDEX(COUNTIF($M$3:M150,الجدول1[اسم الطالب]),),0)),\"\")","v":""}]
[null,null,null,null,null,null,null,null,null,null,null,null,{"$f":"IFERROR(INDEX(الجدول1[اسم الطالب],MATCH(0,INDEX(COUNTIF($M$3:M151,الجدول1[اسم الطالب]),),0)),\"\")","v":""}]
[null,null,null,null,null,null,null,null,null,null,null,null,{"$f":"IFERROR(INDEX(الجدول1[اسم الطالب],MATCH(0,INDEX(COUNTIF($M$3:M152,الجدول1[اسم الطالب]),),0)),\"\")","v":""}]
[null,null,null,null,null,null,null,null,null,null,null,null,{"$f":"IFERROR(INDEX(الجدول1[اسم الطالب],MATCH(0,INDEX(COUNTIF($M$3:M153,الجدول1[اسم الطالب]),),0)),\"\")","v":""}]
[null,null,null,null,null,null,null,null,null,null,null,null,{"$f":"IFERROR(INDEX(الجدول1[اسم الطالب],MATCH(0,INDEX(COUNTIF($M$3:M154,الجدول1[اسم الطالب]),),0)),\"\")","v":""}]
[null,null,null,null,null,null,null,null,null,null,null,null,{"$f":"IFERROR(INDEX(الجدول1[اسم الطالب],MATCH(0,INDEX(COUNTIF($M$3:M155,الجدول1[اسم الطالب]),),0)),\"\")","v":""}]
[null,null,null,null,null,null,null,null,null,null,null,null,{"$f":"IFERROR(INDEX(الجدول1[اسم الطالب],MATCH(0,INDEX(COUNTIF($M$3:M156,الجدول1[اسم الطالب]),),0)),\"\")","v":""}]
[null,null,null,null,null,null,null,null,null,null,null,null,{"$f":"IFERROR(INDEX(الجدول1[اسم الطالب],MATCH(0,INDEX(COUNTIF($M$3:M157,الجدول1[اسم الطالب]),),0)),\"\")","v":""}]
[null,null,null,null,null,null,null,null,null,null,null,null,{"$f":"IFERROR(INDEX(الجدول1[اسم الطالب],MATCH(0,INDEX(COUNTIF($M$3:M158,الجدول1[اسم الطالب]),),0)),\"\")","v":""}]
[null,null,null,null,null,null,null,null,null,null,null,null,{"$f":"IFERROR(INDEX(الجدول1[اسم الطالب],MATCH(0,INDEX(COUNTIF($M$3:M159,الجدول1[اسم الطالب]),),0)),\"\")","v":""}]
[null,null,null,null,null,null,null,null,null,null,null,null,{"$f":"IFERROR(INDEX(الجدول1[اسم الطالب],MATCH(0,INDEX(COUNTIF($M$3:M160,الجدول1[اسم الطالب]),),0)),\"\")","v":""}]
[null,null,null,null,null,null,null,null,null,null,null,null,{"$f":"IFERROR(INDEX(الجدول1[اسم الطالب],MATCH(0,INDEX(COUNTIF($M$3:M161,الجدول1[اسم الطالب]),),0)),\"\")","v":""}]
[null,null,null,null,null,null,null,null,null,null,null,null,{"$f":"IFERROR(INDEX(الجدول1[اسم الطالب],MATCH(0,INDEX(COUNTIF($M$3:M162,الجدول1[اسم الطالب]),),0)),\"\")","v":""}]
[null,null,null,null,null,null,null,null,null,null,null,null,{"$f":"IFERROR(INDEX(الجدول1[اسم الطالب],MATCH(0,INDEX(COUNTIF($M$3:M163,الجدول1[اسم الطالب]),),0)),\"\")","v":""}]
[null,null,null,null,null,null,null,null,null,null,null,null,{"$f":"IFERROR(INDEX(الجدول1[اسم الطالب],MATCH(0,INDEX(COUNTIF($M$3:M164,الجدول1[اسم الطالب]),),0)),\"\")","v":""}]
[null,null,null,null,null,null,null,null,null,null,null,null,{"$f":"IFERROR(INDEX(الجدول1[اسم الطالب],MATCH(0,INDEX(COUNTIF($M$3:M165,الجدول1[اسم الطالب]),),0)),\"\")","v":""}]
[null,null,null,null,null,null,null,null,null,null,null,null,{"$f":"IFERROR(INDEX(الجدول1[اسم الطالب],MATCH(0,INDEX(COUNTIF($M$3:M166,الجدول1[اسم الطالب]),),0)),\"\")","v":""}]
[null,null,null,null,null,null,null,null,null,null,null,null,{"$f":"IFERROR(INDEX(الجدول1[اسم الطالب],MATCH(0,INDEX(COUNTIF($M$3:M167,الجدول1[اسم الطالب]),),0)),\"\")","v":""}]
[null,null,null,null,null,null,null,null,null,null,null,null,{"$f":"IFERROR(INDEX(الجدول1[اسم الطالب],MATCH(0,INDEX(COUNTIF($M$3:M168,الجدول1[اسم الطالب]),),0)),\"\")","v":""}]
[null,null,null,null,null,null,null,null,null,null,null,null,{"$f":"IFERROR(INDEX(الجدول1[اسم الطالب],MATCH(0,INDEX(COUNTIF($M$3:M169,الجدول1[اسم الطالب]),),0)),\"\")","v":""}]
[null,null,null,null,null,null,null,null,null,null,null,null,{"$f":"IFERROR(INDEX(الجدول1[اسم الطالب],MATCH(0,INDEX(COUNTIF($M$3:M170,الجدول1[اسم الطالب]),),0)),\"\")","v":""}]
[null,null,null,null,null,null,null,null,null,null,null,null,{"$f":"IFERROR(INDEX(الجدول1[اسم الطالب],MATCH(0,INDEX(COUNTIF($M$3:M171,الجدول1[اسم الطالب]),),0)),\"\")","v":""}]
[null,null,null,null,null,null,null,null,null,null,null,null,{"$f":"IFERROR(INDEX(الجدول1[اسم الطالب],MATCH(0,INDEX(COUNTIF($M$3:M172,الجدول1[اسم الطالب]),),0)),\"\")","v":""}]
[null,null,null,null,null,null,null,null,null,null,null,null,{"$f":"IFERROR(INDEX(الجدول1[اسم الطالب],MATCH(0,INDEX(COUNTIF($M$3:M173,الجدول1[اسم الطالب]),),0)),\"\")","v":""}]
[null,null,null,null,null,null,null,null,null,null,null,null,{"$f":"IFERROR(INDEX(الجدول1[اسم الطالب],MATCH(0,INDEX(COUNTIF($M$3:M174,الجدول1[اسم الطالب]),),0)),\"\")","v":""}]
[null,null,null,null,null,null,null,null,null,null,null,null,{"$f":"IFERROR(INDEX(الجدول1[اسم الطالب],MATCH(0,INDEX(COUNTIF($M$3:M175,الجدول1[اسم الطالب]),),0)),\"\")","v":""}]
[null,null,null,null,null,null,null,null,null,null,null,null,{"$f":"IFERROR(INDEX(الجدول1[اسم الطالب],MATCH(0,INDEX(COUNTIF($M$3:M176,الجدول1[اسم الطالب]),),0)),\"\")","v":""}]
[null,null,null,null,null,null,null,null,null,null,null,null,{"$f":"IFERROR(INDEX(الجدول1[اسم الطالب],MATCH(0,INDEX(COUNTIF($M$3:M177,الجدول1[اسم الطالب]),),0)),\"\")","v":""}]
[null,null,null,null,null,null,null,null,null,null,null,null,{"$f":"IFERROR(INDEX(الجدول1[اسم الطالب],MATCH(0,INDEX(COUNTIF($M$3:M178,الجدول1[اسم الطالب]),),0)),\"\")","v":""}]
[null,null,null,null,null,null,null,null,null,null,null,null,{"$f":"IFERROR(INDEX(الجدول1[اسم الطالب],MATCH(0,INDEX(COUNTIF($M$3:M179,الجدول1[اسم الطالب]),),0)),\"\")","v":""}]
[null,null,null,null,null,null,null,null,null,null,null,null,{"$f":"IFERROR(INDEX(الجدول1[اسم الطالب],MATCH(0,INDEX(COUNTIF($M$3:M180,الجدول1[اسم الطالب]),),0)),\"\")","v":""}]
[null,null,null,null,null,null,null,null,null,null,null,null,{"$f":"IFERROR(INDEX(الجدول1[اسم الطالب],MATCH(0,INDEX(COUNTIF($M$3:M181,الجدول1[اسم الطالب]),),0)),\"\")","v":""}]
[null,null,null,null,null,null,null,null,null,null,null,null,{"$f":"IFERROR(INDEX(الجدول1[اسم الطالب],MATCH(0,INDEX(COUNTIF($M$3:M182,الجدول1[اسم الطالب]),),0)),\"\")","v":""}]
[null,null,null,null,null,null,null,null,null,null,null,null,{"$f":"IFERROR(INDEX(الجدول1[اسم الطالب],MATCH(0,INDEX(COUNTIF($M$3:M183,الجدول1[اسم الطالب]),),0)),\"\")","v":""}]
[null,null,null,null,null,null,null,null,null,null,null,null,{"$f":"IFERROR(INDEX(الجدول1[اسم الطالب],MATCH(0,INDEX(COUNTIF($M$3:M184,الجدول1[اسم الطالب]),),0)),\"\")","v":""}]
[null,null,null,null,null,null,null,null,null,null,null,null,{"$f":"IFERROR(INDEX(الجدول1[اسم الطالب],MATCH(0,INDEX(COUNTIF($M$3:M185,الجدول1[اسم الطالب]),),0)),\"\")","v":""}]
[null,null,null,null,null,null,null,null,null,null,null,null,{"$f":"IFERROR(INDEX(الجدول1[اسم الطالب],MATCH(0,INDEX(COUNTIF($M$3:M186,الجدول1[اسم الطالب]),),0)),\"\")","v":""}]
[null,null,null,null,null,null,null,null,null,null,null,null,{"$f":"IFERROR(INDEX(الجدول1[اسم الطالب],MATCH(0,INDEX(COUNTIF($M$3:M187,الجدول1[اسم الطالب]),),0)),\"\")","v":""}]
[null,null,null,null,null,null,null,null,null,null,null,null,{"$f":"IFERROR(INDEX(الجدول1[اسم الطالب],MATCH(0,INDEX(COUNTIF($M$3:M188,الجدول1[اسم الطالب]),),0)),\"\")","v":""}]
[null,null,null,null,null,null,null,null,null,null,null,null,{"$f":"IFERROR(INDEX(الجدول1[اسم الطالب],MATCH(0,INDEX(COUNTIF($M$3:M189,الجدول1[اسم الطالب]),),0)),\"\")","v":""}]
[null,null,null,null,null,null,null,null,null,null,null,null,{"$f":"IFERROR(INDEX(الجدول1[اسم الطالب],MATCH(0,INDEX(COUNTIF($M$3:M190,الجدول1[اسم الطالب]),),0)),\"\")","v":""}]
[null,null,null,null,null,null,null,null,null,null,null,null,{"$f":"IFERROR(INDEX(الجدول1[اسم الطالب],MATCH(0,INDEX(COUNTIF($M$3:M191,الجدول1[اسم الطالب]),),0)),\"\")","v":""}]
[null,null,null,null,null,null,null,null,null,null,null,null,{"$f":"IFERROR(INDEX(الجدول1[اسم الطالب],MATCH(0,INDEX(COUNTIF($M$3:M192,الجدول1[اسم الطالب]),),0)),\"\")","v":""}]
[null,null,null,null,null,null,null,null,null,null,null,null,{"$f":"IFERROR(INDEX(الجدول1[اسم الطالب],MATCH(0,INDEX(COUNTIF($M$3:M193,الجدول1[اسم الطالب]),),0)),\"\")","v":""}]
[null,null,null,null,null,null,null,null,null,null,null,null,{"$f":"IFERROR(INDEX(الجدول1[اسم الطالب],MATCH(0,INDEX(COUNTIF($M$3:M194,الجدول1[اسم الطالب]),),0)),\"\")","v":""}]
[null,null,null,null,null,null,null,null,null,null,null,null,{"$f":"IFERROR(INDEX(الجدول1[اسم الطالب],MATCH(0,INDEX(COUNTIF($M$3:M195,الجدول1[اسم الطالب]),),0)),\"\")","v":""}]
[null,null,null,null,null,null,null,null,null,null,null,null,{"$f":"IFERROR(INDEX(الجدول1[اسم الطالب],MATCH(0,INDEX(COUNTIF($M$3:M196,الجدول1[اسم الطالب]),),0)),\"\")","v":""}]
[null,null,null,null,null,null,null,null,null,null,null,null,{"$f":"IFERROR(INDEX(الجدول1[اسم الطالب],MATCH(0,INDEX(COUNTIF($M$3:M197,الجدول1[اسم الطالب]),),0)),\"\")","v":""}]
[null,null,null,null,null,null,null,null,null,null,null,null,{"$f":"IFERROR(INDEX(الجدول1[اسم الطالب],MATCH(0,INDEX(COUNTIF($M$3:M198,الجدول1[اسم الطالب]),),0)),\"\")","v":""}]
[null,null,null,null,null,null,null,null,null,null,null,null,{"$f":"IFERROR(INDEX(الجدول1[اسم الطالب],MATCH(0,INDEX(COUNTIF($M$3:M199,الجدول1[اسم الطالب]),),0)),\"\")","v":""}]
[null,null,null,null,null,null,null,null,null,null,null,null,{"$f":"IFERROR(INDEX(الجدول1[اسم الطالب],MATCH(0,INDEX(COUNTIF($M$3:M200,الجدول1[اسم الطالب]),),0)),\"\")","v":""}]
[null,null,null,null,null,null,null,null,null,null,null,null,{"$f":"IFERROR(INDEX(الجدول1[اسم الطالب],MATCH(0,INDEX(COUNTIF($M$3:M201,الجدول1[اسم الطالب]),),0)),\"\")","v":""}]
[null,null,null,null,null,null,null,null,null,null,null,null,{"$f":"IFERROR(INDEX(الجدول1[اسم الطالب],MATCH(0,INDEX(COUNTIF($M$3:M202,الجدول1[اسم الطالب]),),0)),\"\")","v":""}]
[null,null,null,null,null,null,null,null,null,null,null,null,{"$f":"IFERROR(INDEX(الجدول1[اسم الطالب],MATCH(0,INDEX(COUNTIF($M$3:M203,الجدول1[اسم الطالب]),),0)),\"\")","v":""}]
[null,null,null,null,null,null,null,null,null,null,null,null,{"$f":"IFERROR(INDEX(الجدول1[اسم الطالب],MATCH(0,INDEX(COUNTIF($M$3:M204,الجدول1[اسم الطالب]),),0)),\"\")","v":""}]
[null,null,null,null,null,null,null,null,null,null,null,null,{"$f":"IFERROR(INDEX(الجدول1[اسم الطالب],MATCH(0,INDEX(COUNTIF($M$3:M205,الجدول1[اسم الطالب]),),0)),\"\")","v":""}]
[null,null,null,null,null,null,null,null,null,null,null,null,{"$f":"IFERROR(INDEX(الجدول1[اسم الطالب],MATCH(0,INDEX(COUNTIF($M$3:M206,الجدول1[اسم الطالب]),),0)),\"\")","v":""}]
[null,null,null,null,null,null,null,null,null,null,null,null,{"$f":"IFERROR(INDEX(الجدول1[اسم الطالب],MATCH(0,INDEX(COUNTIF($M$3:M207,الجدول1[اسم الطالب]),),0)),\"\")","v":""}]
[null,null,null,null,null,null,null,null,null,null,null,null,{"$f":"IFERROR(INDEX(الجدول1[اسم الطالب],MATCH(0,INDEX(COUNTIF($M$3:M208,الجدول1[اسم الطالب]),),0)),\"\")","v":""}]
[null,null,null,null,null,null,null,null,null,null,null,null,{"$f":"IFERROR(INDEX(الجدول1[اسم الطالب],MATCH(0,INDEX(COUNTIF($M$3:M209,الجدول1[اسم الطالب]),),0)),\"\")","v":""}]
[null,null,null,null,null,null,null,null,null,null,null,null,{"$f":"IFERROR(INDEX(الجدول1[اسم الطالب],MATCH(0,INDEX(COUNTIF($M$3:M210,الجدول1[اسم الطالب]),),0)),\"\")","v":""}]
[null,null,null,null,null,null,null,null,null,null,null,null,{"$f":"IFERROR(INDEX(الجدول1[اسم الطالب],MATCH(0,INDEX(COUNTIF($M$3:M211,الجدول1[اسم الطالب]),),0)),\"\")","v":""}]
[null,null,null,null,null,null,null,null,null,null,null,null,{"$f":"IFERROR(INDEX(الجدول1[اسم الطالب],MATCH(0,INDEX(COUNTIF($M$3:M212,الجدول1[اسم الطالب]),),0)),\"\")","v":""}]
[null,null,null,null,null,null,null,null,null,null,null,null,{"$f":"IFERROR(INDEX(الجدول1[اسم الطالب],MATCH(0,INDEX(COUNTIF($M$3:M213,الجدول1[اسم الطالب]),),0)),\"\")","v":""}]
[null,null,null,null,null,null,null,null,null,null,null,null,{"$f":"IFERROR(INDEX(الجدول1[اسم الطالب],MATCH(0,INDEX(COUNTIF($M$3:M214,الجدول1[اسم الطالب]),),0)),\"\")","v":""}]
[null,null,null,null,null,null,null,null,null,null,null,null,{"$f":"IFERROR(INDEX(الجدول1[اسم الطالب],MATCH(0,INDEX(COUNTIF($M$3:M215,الجدول1[اسم الطالب]),),0)),\"\")","v":""}]
[null,null,null,null,null,null,null,null,null,null,null,null,{"$f":"IFERROR(INDEX(الجدول1[اسم الطالب],MATCH(0,INDEX(COUNTIF($M$3:M216,الجدول1[اسم الطالب]),),0)),\"\")","v":""}]
[null,null,null,null,null,null,null,null,null,null,null,null,{"$f":"IFERROR(INDEX(الجدول1[اسم الطالب],MATCH(0,INDEX(COUNTIF($M$3:M217,الجدول1[اسم الطالب]),),0)),\"\")","v":""}]
[null,null,null,null,null,null,null,null,null,null,null,null,{"$f":"IFERROR(INDEX(الجدول1[اسم الطالب],MATCH(0,INDEX(COUNTIF($M$3:M218,الجدول1[اسم الطالب]),),0)),\"\")","v":""}]
[null,null,null,null,null,null,null,null,null,null,null,null,{"$f":"IFERROR(INDEX(الجدول1[اسم الطالب],MATCH(0,INDEX(COUNTIF($M$3:M219,الجدول1[اسم الطالب]),),0)),\"\")","v":""}]
[null,null,null,null,null,null,null,null,null,null,null,null,{"$f":"IFERROR(INDEX(الجدول1[اسم الطالب],MATCH(0,INDEX(COUNTIF($M$3:M220,الجدول1[اسم الطالب]),),0)),\"\")","v":""}]
[null,null,null,null,null,null,null,null,null,null,null,null,{"$f":"IFERROR(INDEX(الجدول1[اسم الطالب],MATCH(0,INDEX(COUNTIF($M$3:M221,الجدول1[اسم الطالب]),),0)),\"\")","v":""}]
[null,null,null,null,null,null,null,null,null,null,null,null,{"$f":"IFERROR(INDEX(الجدول1[اسم الطالب],MATCH(0,INDEX(COUNTIF($M$3:M222,الجدول1[اسم الطالب]),),0)),\"\")","v":""}]
[null,null,null,null,null,null,null,null,null,null,null,null,{"$f":"IFERROR(INDEX(الجدول1[اسم الطالب],MATCH(0,INDEX(COUNTIF($M$3:M223,الجدول1[اسم الطالب]),),0)),\"\")","v":""}]
[null,null,null,null,null,null,null,null,null,null,null,null,{"$f":"IFERROR(INDEX(الجدول1[اسم الطالب],MATCH(0,INDEX(COUNTIF($M$3:M224,الجدول1[اسم الطالب]),),0)),\"\")","v":""}]
[null,null,null,null,null,null,null,null,null,null,null,null,{"$f":"IFERROR(INDEX(الجدول1[اسم الطالب],MATCH(0,INDEX(COUNTIF($M$3:M225,الجدول1[اسم الطالب]),),0)),\"\")","v":""}]
[null,null,null,null,null,null,null,null,null,null,null,null,{"$f":"IFERROR(INDEX(الجدول1[اسم الطالب],MATCH(0,INDEX(COUNTIF($M$3:M226,الجدول1[اسم الطالب]),),0)),\"\")","v":""}]
[null,null,null,null,null,null,null,null,null,null,null,null,{"$f":"IFERROR(INDEX(الجدول1[اسم الطالب],MATCH(0,INDEX(COUNTIF($M$3:M227,الجدول1[اسم الطالب]),),0)),\"\")","v":""}]
[null,null,null,null,null,null,null,null,null,null,null,null,{"$f":"IFERROR(INDEX(الجدول1[اسم الطالب],MATCH(0,INDEX(COUNTIF($M$3:M228,الجدول1[اسم الطالب]),),0)),\"\")","v":""}]
[null,null,null,null,null,null,null,null,null,null,null,null,{"$f":"IFERROR(INDEX(الجدول1[اسم الطالب],MATCH(0,INDEX(COUNTIF($M$3:M229,الجدول1[اسم الطالب]),),0)),\"\")","v":""}]
[null,null,null,null,null,null,null,null,null,null,null,null,{"$f":"IFERROR(INDEX(الجدول1[اسم الطالب],MATCH(0,INDEX(COUNTIF($M$3:M230,الجدول1[اسم الطالب]),),0)),\"\")","v":""}]
[null,null,null,null,null,null,null,null,null,null,null,null,{"$f":"IFERROR(INDEX(الجدول1[اسم الطالب],MATCH(0,INDEX(COUNTIF($M$3:M231,الجدول1[اسم الطالب]),),0)),\"\")","v":""}]
[null,null,null,null,null,null,null,null,null,null,null,null,{"$f":"IFERROR(INDEX(الجدول1[اسم الطالب],MATCH(0,INDEX(COUNTIF($M$3:M232,الجدول1[اسم الطالب]),),0)),\"\")","v":""}]
[null,null,null,null,null,null,null,null,null,null,null,null,{"$f":"IFERROR(INDEX(الجدول1[اسم الطالب],MATCH(0,INDEX(COUNTIF($M$3:M233,الجدول1[اسم الطالب]),),0)),\"\")","v":""}]
[null,null,null,null,null,null,null,null,null,null,null,null,{"$f":"IFERROR(INDEX(الجدول1[اسم الطالب],MATCH(0,INDEX(COUNTIF($M$3:M234,الجدول1[اسم الطالب]),),0)),\"\")","v":""}]
[null,null,null,null,null,null,null,null,null,null,null,null,{"$f":"IFERROR(INDEX(الجدول1[اسم الطالب],MATCH(0,INDEX(COUNTIF($M$3:M235,الجدول1[اسم الطالب]),),0)),\"\")","v":""}]
[null,null,null,null,null,null,null,null,null,null,null,null,{"$f":"IFERROR(INDEX(الجدول1[اسم الطالب],MATCH(0,INDEX(COUNTIF($M$3:M236,الجدول1[اسم الطالب]),),0)),\"\")","v":""}]
[null,null,null,null,null,null,null,null,null,null,null,null,{"$f":"IFERROR(INDEX(الجدول1[اسم الطالب],MATCH(0,INDEX(COUNTIF($M$3:M237,الجدول1[اسم الطالب]),),0)),\"\")","v":""}]
[null,null,null,null,null,null,null,null,null,null,null,null,{"$f":"IFERROR(INDEX(الجدول1[اسم الطالب],MATCH(0,INDEX(COUNTIF($M$3:M238,الجدول1[اسم الطالب]),),0)),\"\")","v":""}]
[null,null,null,null,null,null,null,null,null,null,null,null,{"$f":"IFERROR(INDEX(الجدول1[اسم الطالب],MATCH(0,INDEX(COUNTIF($M$3:M239,الجدول1[اسم الطالب]),),0)),\"\")","v":""}]
[null,null,null,null,null,null,null,null,null,null,null,null,{"$f":"IFERROR(INDEX(الجدول1[اسم الطالب],MATCH(0,INDEX(COUNTIF($M$3:M240,الجدول1[اسم الطالب]),),0)),\"\")","v":""}]
[null,null,null,null,null,null,null,null,null,null,null,null,{"$f":"IFERROR(INDEX(الجدول1[اسم الطالب],MATCH(0,INDEX(COUNTIF($M$3:M241,الجدول1[اسم الطالب]),),0)),\"\")","v":""}]
[null,null,null,null,null,null,null,null,null,null,null,null,{"$f":"IFERROR(INDEX(الجدول1[اسم الطالب],MATCH(0,INDEX(COUNTIF($M$3:M242,الجدول1[اسم الطالب]),),0)),\"\")","v":""}]
[null,null,null,null,null,null,null,null,null,null,null,null,{"$f":"IFERROR(INDEX(الجدول1[اسم الطالب],MATCH(0,INDEX(COUNTIF($M$3:M243,الجدول1[اسم الطالب]),),0)),\"\")","v":""}]
[null,null,null,null,null,null,null,null,null,null,null,null,{"$f":"IFERROR(INDEX(الجدول1[اسم الطالب],MATCH(0,INDEX(COUNTIF($M$3:M244,الجدول1[اسم الطالب]),),0)),\"\")","v":""}]
[null,null,null,null,null,null,null,null,null,null,null,null,{"$f":"IFERROR(INDEX(الجدول1[اسم الطالب],MATCH(0,INDEX(COUNTIF($M$3:M245,الجدول1[اسم الطالب]),),0)),\"\")","v":""}]
[null,null,null,null,null,null,null,null,null,null,null,null,{"$f":"IFERROR(INDEX(الجدول1[اسم الطالب],MATCH(0,INDEX(COUNTIF($M$3:M246,الجدول1[اسم الطالب]),),0)),\"\")","v":""}]
[null,null,null,null,null,null,null,null,null,null,null,null,{"$f":"IFERROR(INDEX(الجدول1[اسم الطالب],MATCH(0,INDEX(COUNTIF($M$3:M247,الجدول1[اسم الطالب]),),0)),\"\")","v":""}]
[null,null,null,null,null,null,null,null,null,null,null,null,{"$f":"IFERROR(INDEX(الجدول1[اسم الطالب],MATCH(0,INDEX(COUNTIF($M$3:M248,الجدول1[اسم الطالب]),),0)),\"\")","v":""}]
[null,null,null,null,null,null,null,null,null,null,null,null,{"$f":"IFERROR(INDEX(الجدول1[اسم الطالب],MATCH(0,INDEX(COUNTIF($M$3:M249,الجدول1[اسم الطالب]),),0)),\"\")","v":""}]
[null,null,null,null,null,null,null,null,null,null,null,null,{"$f":"IFERROR(INDEX(الجدول1[اسم الطالب],MATCH(0,INDEX(COUNTIF($M$3:M250,الجدول1[اسم الطالب]),),0)),\"\")","v":""}]
[null,null,null,null,null,null,null,null,null,null,null,null,{"$f":"IFERROR(INDEX(الجدول1[اسم الطالب],MATCH(0,INDEX(COUNTIF($M$3:M251,الجدول1[اسم الطالب]),),0)),\"\")","v":""}]
[null,null,null,null,null,null,null,null,null,null,null,null,{"$f":"IFERROR(INDEX(الجدول1[اسم الطالب],MATCH(0,INDEX(COUNTIF($M$3:M252,الجدول1[اسم الطالب]),),0)),\"\")","v":""}]
[null,null,null,null,null,null,null,null,null,null,null,null,{"$f":"IFERROR(INDEX(الجدول1[اسم الطالب],MATCH(0,INDEX(COUNTIF($M$3:M253,الجدول1[اسم الطالب]),),0)),\"\")","v":""}]
[null,null,null,null,null,null,null,null,null,null,null,null,{"$f":"IFERROR(INDEX(الجدول1[اسم الطالب],MATCH(0,INDEX(COUNTIF($M$3:M254,الجدول1[اسم الطالب]),),0)),\"\")","v":""}]
[null,null,null,null,null,null,null,null,null,null,null,null,{"$f":"IFERROR(INDEX(الجدول1[اسم الطالب],MATCH(0,INDEX(COUNTIF($M$3:M255,الجدول1[اسم الطالب]),),0)),\"\")","v":""}]
[null,null,null,null,null,null,null,null,null,null,null,null,{"$f":"IFERROR(INDEX(الجدول1[اسم الطالب],MATCH(0,INDEX(COUNTIF($M$3:M256,الجدول1[اسم الطالب]),),0)),\"\")","v":""}]
[null,null,null,null,null,null,null,null,null,null,null,null,{"$f":"IFERROR(INDEX(الجدول1[اسم الطالب],MATCH(0,INDEX(COUNTIF($M$3:M257,الجدول1[اسم الطالب]),),0)),\"\")","v":""}]
[null,null,null,null,null,null,null,null,null,null,null,null,{"$f":"IFERROR(INDEX(الجدول1[اسم الطالب],MATCH(0,INDEX(COUNTIF($M$3:M258,الجدول1[اسم الطالب]),),0)),\"\")","v":""}]
[null,null,null,null,null,null,null,null,null,null,null,null,{"$f":"IFERROR(INDEX(الجدول1[اسم الطالب],MATCH(0,INDEX(COUNTIF($M$3:M259,الجدول1[اسم الطالب]),),0)),\"\")","v":""}]
[null,null,null,null,null,null,null,null,null,null,null,null,{"$f":"IFERROR(INDEX(الجدول1[اسم الطالب],MATCH(0,INDEX(COUNTIF($M$3:M260,الجدول1[اسم الطالب]),),0)),\"\")","v":""}]
[null,null,null,null,null,null,null,null,null,null,null,null,{"$f":"IFERROR(INDEX(الجدول1[اسم الطالب],MATCH(0,INDEX(COUNTIF($M$3:M261,الجدول1[اسم الطالب]),),0)),\"\")","v":""}]
[null,null,null,null,null,null,null,null,null,null,null,null,{"$f":"IFERROR(INDEX(الجدول1[اسم الطالب],MATCH(0,INDEX(COUNTIF($M$3:M262,الجدول1[اسم الطالب]),),0)),\"\")","v":""}]
[null,null,null,null,null,null,null,null,null,null,null,null,{"$f":"IFERROR(INDEX(الجدول1[اسم الطالب],MATCH(0,INDEX(COUNTIF($M$3:M263,الجدول1[اسم الطالب]),),0)),\"\")","v":""}]
[null,null,null,null,null,null,null,null,null,null,null,null,{"$f":"IFERROR(INDEX(الجدول1[اسم الطالب],MATCH(0,INDEX(COUNTIF($M$3:M264,الجدول1[اسم الطالب]),),0)),\"\")","v":""}]
[null,null,null,null,null,null,null,null,null,null,null,null,{"$f":"IFERROR(INDEX(الجدول1[اسم الطالب],MATCH(0,INDEX(COUNTIF($M$3:M265,الجدول1[اسم الطالب]),),0)),\"\")","v":""}]
[null,null,null,null,null,null,null,null,null,null,null,null,{"$f":"IFERROR(INDEX(الجدول1[اسم الطالب],MATCH(0,INDEX(COUNTIF($M$3:M266,الجدول1[اسم الطالب]),),0)),\"\")","v":""}]
[null,null,null,null,null,null,null,null,null,null,null,null,{"$f":"IFERROR(INDEX(الجدول1[اسم الطالب],MATCH(0,INDEX(COUNTIF($M$3:M267,الجدول1[اسم الطالب]),),0)),\"\")","v":""}]
[null,null,null,null,null,null,null,null,null,null,null,null,{"$f":"IFERROR(INDEX(الجدول1[اسم الطالب],MATCH(0,INDEX(COUNTIF($M$3:M268,الجدول1[اسم الطالب]),),0)),\"\")","v":""}]
[null,null,null,null,null,null,null,null,null,null,null,null,{"$f":"IFERROR(INDEX(الجدول1[اسم الطالب],MATCH(0,INDEX(COUNTIF($M$3:M269,الجدول1[اسم الطالب]),),0)),\"\")","v":""}]
[null,null,null,null,null,null,null,null,null,null,null,null,{"$f":"IFERROR(INDEX(الجدول1[اسم الطالب],MATCH(0,INDEX(COUNTIF($M$3:M270,الجدول1[اسم الطالب]),),0)),\"\")","v":""}]
[null,null,null,null,null,null,null,null,null,null,null,null,{"$f":"IFERROR(INDEX(الجدول1[اسم الطالب],MATCH(0,INDEX(COUNTIF($M$3:M271,الجدول1[اسم الطالب]),),0)),\"\")","v":""}]
[null,null,null,null,null,null,null,null,null,null,null,null,{"$f":"IFERROR(INDEX(الجدول1[اسم الطالب],MATCH(0,INDEX(COUNTIF($M$3:M272,الجدول1[اسم الطالب]),),0)),\"\")","v":""}]
[null,null,null,null,null,null,null,null,null,null,null,null,{"$f":"IFERROR(INDEX(الجدول1[اسم الطالب],MATCH(0,INDEX(COUNTIF($M$3:M273,الجدول1[اسم الطالب]),),0)),\"\")","v":""}]
[null,null,null,null,null,null,null,null,null,null,null,null,{"$f":"IFERROR(INDEX(الجدول1[اسم الطالب],MATCH(0,INDEX(COUNTIF($M$3:M274,الجدول1[اسم الطالب]),),0)),\"\")","v":""}]
[null,null,null,null,null,null,null,null,null,null,null,null,{"$f":"IFERROR(INDEX(الجدول1[اسم الطالب],MATCH(0,INDEX(COUNTIF($M$3:M275,الجدول1[اسم الطالب]),),0)),\"\")","v":""}]
[null,null,null,null,null,null,null,null,null,null,null,null,{"$f":"IFERROR(INDEX(الجدول1[اسم الطالب],MATCH(0,INDEX(COUNTIF($M$3:M276,الجدول1[اسم الطالب]),),0)),\"\")","v":""}]
[null,null,null,null,null,null,null,null,null,null,null,null,{"$f":"IFERROR(INDEX(الجدول1[اسم الطالب],MATCH(0,INDEX(COUNTIF($M$3:M277,الجدول1[اسم الطالب]),),0)),\"\")","v":""}]
[null,null,null,null,null,null,null,null,null,null,null,null,{"$f":"IFERROR(INDEX(الجدول1[اسم الطالب],MATCH(0,INDEX(COUNTIF($M$3:M278,الجدول1[اسم الطالب]),),0)),\"\")","v":""}]
[null,null,null,null,null,null,null,null,null,null,null,null,{"$f":"IFERROR(INDEX(الجدول1[اسم الطالب],MATCH(0,INDEX(COUNTIF($M$3:M279,الجدول1[اسم الطالب]),),0)),\"\")","v":""}]
[null,null,null,null,null,null,null,null,null,null,null,null,{"$f":"IFERROR(INDEX(الجدول1[اسم الطالب],MATCH(0,INDEX(COUNTIF($M$3:M280,الجدول1[اسم الطالب]),),0)),\"\")","v":""}]
[null,null,null,null,null,null,null,null,null,null,null,null,{"$f":"IFERROR(INDEX(الجدول1[اسم الطالب],MATCH(0,INDEX(COUNTIF($M$3:M281,الجدول1[اسم الطالب]),),0)),\"\")","v":""}]
[null,null,null,null,null,null,null,null,null,null,null,null,{"$f":"IFERROR(INDEX(الجدول1[اسم الطالب],MATCH(0,INDEX(COUNTIF($M$3:M282,الجدول1[اسم الطالب]),),0)),\"\")","v":""}]
[null,null,null,null,null,null,null,null,null,null,null,null,{"$f":"IFERROR(INDEX(الجدول1[اسم الطالب],MATCH(0,INDEX(COUNTIF($M$3:M283,الجدول1[اسم الطالب]),),0)),\"\")","v":""}]
[null,null,null,null,null,null,null,null,null,null,null,null,{"$f":"IFERROR(INDEX(الجدول1[اسم الطالب],MATCH(0,INDEX(COUNTIF($M$3:M284,الجدول1[اسم الطالب]),),0)),\"\")","v":""}]
[null,null,null,null,null,null,null,null,null,null,null,null,{"$f":"IFERROR(INDEX(الجدول1[اسم الطالب],MATCH(0,INDEX(COUNTIF($M$3:M285,الجدول1[اسم الطالب]),),0)),\"\")","v":""}]
[null,null,null,null,null,null,null,null,null,null,null,null,{"$f":"IFERROR(INDEX(الجدول1[اسم الطالب],MATCH(0,INDEX(COUNTIF($M$3:M286,الجدول1[اسم الطالب]),),0)),\"\")","v":""}]
[null,null,null,null,null,null,null,null,null,null,null,null,{"$f":"IFERROR(INDEX(الجدول1[اسم الطالب],MATCH(0,INDEX(COUNTIF($M$3:M287,الجدول1[اسم الطالب]),),0)),\"\")","v":""}]
[null,null,null,null,null,null,null,null,null,null,null,null,{"$f":"IFERROR(INDEX(الجدول1[اسم الطالب],MATCH(0,INDEX(COUNTIF($M$3:M288,الجدول1[اسم الطالب]),),0)),\"\")","v":""}]
[null,null,null,null,null,null,null,null,null,null,null,null,{"$f":"IFERROR(INDEX(الجدول1[اسم الطالب],MATCH(0,INDEX(COUNTIF($M$3:M289,الجدول1[اسم الطالب]),),0)),\"\")","v":""}]
[null,null,null,null,null,null,null,null,null,null,null,null,{"$f":"IFERROR(INDEX(الجدول1[اسم الطالب],MATCH(0,INDEX(COUNTIF($M$3:M290,الجدول1[اسم الطالب]),),0)),\"\")","v":""}]
[null,null,null,null,null,null,null,null,null,null,null,null,{"$f":"IFERROR(INDEX(الجدول1[اسم الطالب],MATCH(0,INDEX(COUNTIF($M$3:M291,الجدول1[اسم الطالب]),),0)),\"\")","v":""}]
[null,null,null,null,null,null,null,null,null,null,null,null,{"$f":"IFERROR(INDEX(الجدول1[اسم الطالب],MATCH(0,INDEX(COUNTIF($M$3:M292,الجدول1[اسم الطالب]),),0)),\"\")","v":""}]
[null,null,null,null,null,null,null,null,null,null,null,null,{"$f":"IFERROR(INDEX(الجدول1[اسم الطالب],MATCH(0,INDEX(COUNTIF($M$3:M293,الجدول1[اسم الطالب]),),0)),\"\")","v":""}]
[null,null,null,null,null,null,null,null,null,null,null,null,{"$f":"IFERROR(INDEX(الجدول1[اسم الطالب],MATCH(0,INDEX(COUNTIF($M$3:M294,الجدول1[اسم الطالب]),),0)),\"\")","v":""}]
[null,null,null,null,null,null,null,null,null,null,null,null,{"$f":"IFERROR(INDEX(الجدول1[اسم الطالب],MATCH(0,INDEX(COUNTIF($M$3:M295,الجدول1[اسم الطالب]),),0)),\"\")","v":""}]
[null,null,null,null,null,null,null,null,null,null,null,null,{"$f":"IFERROR(INDEX(الجدول1[اسم الطالب],MATCH(0,INDEX(COUNTIF($M$3:M296,الجدول1[اسم الطالب]),),0)),\"\")","v":""}]
[null,null,null,null,null,null,null,null,null,null,null,null,{"$f":"IFERROR(INDEX(الجدول1[اسم الطالب],MATCH(0,INDEX(COUNTIF($M$3:M297,الجدول1[اسم الطالب]),),0)),\"\")","v":""}]
[null,null,null,null,null,null,null,null,null,null,null,null,{"$f":"IFERROR(INDEX(الجدول1[اسم الطالب],MATCH(0,INDEX(COUNTIF($M$3:M298,الجدول1[اسم الطالب]),),0)),\"\")","v":""}]
[null,null,null,null,null,null,null,null,null,null,null,null,{"$f":"IFERROR(INDEX(الجدول1[اسم الطالب],MATCH(0,INDEX(COUNTIF($M$3:M299,الجدول1[اسم الطالب]),),0)),\"\")","v":""}]
[null,null,null,null,null,null,null,null,null,null,null,null,{"$f":"IFERROR(INDEX(الجدول1[اسم الطالب],MATCH(0,INDEX(COUNTIF($M$3:M300,الجدول1[اسم الطالب]),),0)),\"\")","v":""}]
[null,null,null,null,null,null,null,null,null,null,null,null,{"$f":"IFERROR(INDEX(الجدول1[اسم الطالب],MATCH(0,INDEX(COUNTIF($M$3:M301,الجدول1[اسم الطالب]),),0)),\"\")","v":""}]
[null,null,null,null,null,null,null,null,null,null,null,null,{"$f":"IFERROR(INDEX(الجدول1[اسم الطالب],MATCH(0,INDEX(COUNTIF($M$3:M302,الجدول1[اسم الطالب]),),0)),\"\")","v":""}]
[null,null,null,null,null,null,null,null,null,null,null,null,{"$f":"IFERROR(INDEX(الجدول1[اسم الطالب],MATCH(0,INDEX(COUNTIF($M$3:M303,الجدول1[اسم الطالب]),),0)),\"\")","v":""}]
[null,null,null,null,null,null,null,null,null,null,null,null,{"$f":"IFERROR(INDEX(الجدول1[اسم الطالب],MATCH(0,INDEX(COUNTIF($M$3:M304,الجدول1[اسم الطالب]),),0)),\"\")","v":""}]
[null,null,null,null,null,null,null,null,null,null,null,null,{"$f":"IFERROR(INDEX(الجدول1[اسم الطالب],MATCH(0,INDEX(COUNTIF($M$3:M305,الجدول1[اسم الطالب]),),0)),\"\")","v":""}]
[null,null,null,null,null,null,null,null,null,null,null,null,{"$f":"IFERROR(INDEX(الجدول1[اسم الطالب],MATCH(0,INDEX(COUNTIF($M$3:M306,الجدول1[اسم الطالب]),),0)),\"\")","v":""}]
[null,null,null,null,null,null,null,null,null,null,null,null,{"$f":"IFERROR(INDEX(الجدول1[اسم الطالب],MATCH(0,INDEX(COUNTIF($M$3:M307,الجدول1[اسم الطالب]),),0)),\"\")","v":""}]
[null,null,null,null,null,null,null,null,null,null,null,null,{"$f":"IFERROR(INDEX(الجدول1[اسم الطالب],MATCH(0,INDEX(COUNTIF($M$3:M308,الجدول1[اسم الطالب]),),0)),\"\")","v":""}]
[null,null,null,null,null,null,null,null,null,null,null,null,{"$f":"IFERROR(INDEX(الجدول1[اسم الطالب],MATCH(0,INDEX(COUNTIF($M$3:M309,الجدول1[اسم الطالب]),),0)),\"\")","v":""}]
[null,null,null,null,null,null,null,null,null,null,null,null,{"$f":"IFERROR(INDEX(الجدول1[اسم الطالب],MATCH(0,INDEX(COUNTIF($M$3:M310,الجدول1[اسم الطالب]),),0)),\"\")","v":""}]
[null,null,null,null,null,null,null,null,null,null,null,null,{"$f":"IFERROR(INDEX(الجدول1[اسم الطالب],MATCH(0,INDEX(COUNTIF($M$3:M311,الجدول1[اسم الطالب]),),0)),\"\")","v":""}]
[null,null,null,null,null,null,null,null,null,null,null,null,{"$f":"IFERROR(INDEX(الجدول1[اسم الطالب],MATCH(0,INDEX(COUNTIF($M$3:M312,الجدول1[اسم الطالب]),),0)),\"\")","v":""}]
[null,null,null,null,null,null,null,null,null,null,null,null,{"$f":"IFERROR(INDEX(الجدول1[اسم الطالب],MATCH(0,INDEX(COUNTIF($M$3:M313,الجدول1[اسم الطالب]),),0)),\"\")","v":""}]
[null,null,null,null,null,null,null,null,null,null,null,null,{"$f":"IFERROR(INDEX(الجدول1[اسم الطالب],MATCH(0,INDEX(COUNTIF($M$3:M314,الجدول1[اسم الطالب]),),0)),\"\")","v":""}]
[null,null,null,null,null,null,null,null,null,null,null,null,{"$f":"IFERROR(INDEX(الجدول1[اسم الطالب],MATCH(0,INDEX(COUNTIF($M$3:M315,الجدول1[اسم الطالب]),),0)),\"\")","v":""}]
[null,null,null,null,null,null,null,null,null,null,null,null,{"$f":"IFERROR(INDEX(الجدول1[اسم الطالب],MATCH(0,INDEX(COUNTIF($M$3:M316,الجدول1[اسم الطالب]),),0)),\"\")","v":""}]
[null,null,null,null,null,null,null,null,null,null,null,null,{"$f":"IFERROR(INDEX(الجدول1[اسم الطالب],MATCH(0,INDEX(COUNTIF($M$3:M317,الجدول1[اسم الطالب]),),0)),\"\")","v":""}]
[null,null,null,null,null,null,null,null,null,null,null,null,{"$f":"IFERROR(INDEX(الجدول1[اسم الطالب],MATCH(0,INDEX(COUNTIF($M$3:M318,الجدول1[اسم الطالب]),),0)),\"\")","v":""}]
[null,null,null,null,null,null,null,null,null,null,null,null,{"$f":"IFERROR(INDEX(الجدول1[اسم الطالب],MATCH(0,INDEX(COUNTIF($M$3:M319,الجدول1[اسم الطالب]),),0)),\"\")","v":""}]
[null,null,null,null,null,null,null,null,null,null,null,null,{"$f":"IFERROR(INDEX(الجدول1[اسم الطالب],MATCH(0,INDEX(COUNTIF($M$3:M320,الجدول1[اسم الطالب]),),0)),\"\")","v":""}]
[null,null,null,null,null,null,null,null,null,null,null,null,{"$f":"IFERROR(INDEX(الجدول1[اسم الطالب],MATCH(0,INDEX(COUNTIF($M$3:M321,الجدول1[اسم الطالب]),),0)),\"\")","v":""}]
[null,null,null,null,null,null,null,null,null,null,null,null,{"$f":"IFERROR(INDEX(الجدول1[اسم الطالب],MATCH(0,INDEX(COUNTIF($M$3:M322,الجدول1[اسم الطالب]),),0)),\"\")","v":""}]
[null,null,null,null,null,null,null,null,null,null,null,null,{"$f":"IFERROR(INDEX(الجدول1[اسم الطالب],MATCH(0,INDEX(COUNTIF($M$3:M323,الجدول1[اسم الطالب]),),0)),\"\")","v":""}]
[null,null,null,null,null,null,null,null,null,null,null,null,{"$f":"IFERROR(INDEX(الجدول1[اسم الطالب],MATCH(0,INDEX(COUNTIF($M$3:M324,الجدول1[اسم الطالب]),),0)),\"\")","v":""}]
[null,null,null,null,null,null,null,null,null,null,null,null,{"$f":"IFERROR(INDEX(الجدول1[اسم الطالب],MATCH(0,INDEX(COUNTIF($M$3:M325,الجدول1[اسم الطالب]),),0)),\"\")","v":""}]
[null,null,null,null,null,null,null,null,null,null,null,null,{"$f":"IFERROR(INDEX(الجدول1[اسم الطالب],MATCH(0,INDEX(COUNTIF($M$3:M326,الجدول1[اسم الطالب]),),0)),\"\")","v":""}]
[null,null,null,null,null,null,null,null,null,null,null,null,{"$f":"IFERROR(INDEX(الجدول1[اسم الطالب],MATCH(0,INDEX(COUNTIF($M$3:M327,الجدول1[اسم الطالب]),),0)),\"\")","v":""}]
[null,null,null,null,null,null,null,null,null,null,null,null,{"$f":"IFERROR(INDEX(الجدول1[اسم الطالب],MATCH(0,INDEX(COUNTIF($M$3:M328,الجدول1[اسم الطالب]),),0)),\"\")","v":""}]
[null,null,null,null,null,null,null,null,null,null,null,null,{"$f":"IFERROR(INDEX(الجدول1[اسم الطالب],MATCH(0,INDEX(COUNTIF($M$3:M329,الجدول1[اسم الطالب]),),0)),\"\")","v":""}]
[null,null,null,null,null,null,null,null,null,null,null,null,{"$f":"IFERROR(INDEX(الجدول1[اسم الطالب],MATCH(0,INDEX(COUNTIF($M$3:M330,الجدول1[اسم الطالب]),),0)),\"\")","v":""}]
[null,null,null,null,null,null,null,null,null,null,null,null,{"$f":"IFERROR(INDEX(الجدول1[اسم الطالب],MATCH(0,INDEX(COUNTIF($M$3:M331,الجدول1[اسم الطالب]),),0)),\"\")","v":""}]
[null,null,null,null,null,null,null,null,null,null,null,null,{"$f":"IFERROR(INDEX(الجدول1[اسم الطالب],MATCH(0,INDEX(COUNTIF($M$3:M332,الجدول1[اسم الطالب]),),0)),\"\")","v":""}]
[null,null,null,null,null,null,null,null,null,null,null,null,{"$f":"IFERROR(INDEX(الجدول1[اسم الطالب],MATCH(0,INDEX(COUNTIF($M$3:M333,الجدول1[اسم الطالب]),),0)),\"\")","v":""}]
[null,null,null,null,null,null,null,null,null,null,null,null,{"$f":"IFERROR(INDEX(الجدول1[اسم الطالب],MATCH(0,INDEX(COUNTIF($M$3:M334,الجدول1[اسم الطالب]),),0)),\"\")","v":""}]
[null,null,null,null,null,null,null,null,null,null,null,null,{"$f":"IFERROR(INDEX(الجدول1[اسم الطالب],MATCH(0,INDEX(COUNTIF($M$3:M335,الجدول1[اسم الطالب]),),0)),\"\")","v":""}]
[null,null,null,null,null,null,null,null,null,null,null,null,{"$f":"IFERROR(INDEX(الجدول1[اسم الطالب],MATCH(0,INDEX(COUNTIF($M$3:M336,الجدول1[اسم الطالب]),),0)),\"\")","v":""}]
[null,null,null,null,null,null,null,null,null,null,null,null,{"$f":"IFERROR(INDEX(الجدول1[اسم الطالب],MATCH(0,INDEX(COUNTIF($M$3:M337,الجدول1[اسم الطالب]),),0)),\"\")","v":""}]
[null,null,null,null,null,null,null,null,null,null,null,null,{"$f":"IFERROR(INDEX(الجدول1[اسم الطالب],MATCH(0,INDEX(COUNTIF($M$3:M338,الجدول1[اسم الطالب]),),0)),\"\")","v":""}]
[null,null,null,null,null,null,null,null,null,null,null,null,{"$f":"IFERROR(INDEX(الجدول1[اسم الطالب],MATCH(0,INDEX(COUNTIF($M$3:M339,الجدول1[اسم الطالب]),),0)),\"\")","v":""}]
[null,null,null,null,null,null,null,null,null,null,null,null,{"$f":"IFERROR(INDEX(الجدول1[اسم الطالب],MATCH(0,INDEX(COUNTIF($M$3:M340,الجدول1[اسم الطالب]),),0)),\"\")","v":""}]
[null,null,null,null,null,null,null,null,null,null,null,null,{"$f":"IFERROR(INDEX(الجدول1[اسم الطالب],MATCH(0,INDEX(COUNTIF($M$3:M341,الجدول1[اسم الطالب]),),0)),\"\")","v":""}]
[null,null,null,null,null,null,null,null,null,null,null,null,{"$f":"IFERROR(INDEX(الجدول1[اسم الطالب],MATCH(0,INDEX(COUNTIF($M$3:M342,الجدول1[اسم الطالب]),),0)),\"\")","v":""}]
[null,null,null,null,null,null,null,null,null,null,null,null,{"$f":"IFERROR(INDEX(الجدول1[اسم الطالب],MATCH(0,INDEX(COUNTIF($M$3:M343,الجدول1[اسم الطالب]),),0)),\"\")","v":""}]
[null,null,null,null,null,null,null,null,null,null,null,null,{"$f":"IFERROR(INDEX(الجدول1[اسم الطالب],MATCH(0,INDEX(COUNTIF($M$3:M344,الجدول1[اسم الطالب]),),0)),\"\")","v":""}]
[null,null,null,null,null,null,null,null,null,null,null,null,{"$f":"IFERROR(INDEX(الجدول1[اسم الطالب],MATCH(0,INDEX(COUNTIF($M$3:M345,الجدول1[اسم الطالب]),),0)),\"\")","v":""}]
[null,null,null,null,null,null,null,null,null,null,null,null,{"$f":"IFERROR(INDEX(الجدول1[اسم الطالب],MATCH(0,INDEX(COUNTIF($M$3:M346,الجدول1[اسم الطالب]),),0)),\"\")","v":""}]
[null,null,null,null,null,null,null,null,null,null,null,null,{"$f":"IFERROR(INDEX(الجدول1[اسم الطالب],MATCH(0,INDEX(COUNTIF($M$3:M347,الجدول1[اسم الطالب]),),0)),\"\")","v":""}]
[null,null,null,null,null,null,null,null,null,null,null,null,{"$f":"IFERROR(INDEX(الجدول1[اسم الطالب],MATCH(0,INDEX(COUNTIF($M$3:M348,الجدول1[اسم الطالب]),),0)),\"\")","v":""}]
[null,null,null,null,null,null,null,null,null,null,null,null,{"$f":"IFERROR(INDEX(الجدول1[اسم الطالب],MATCH(0,INDEX(COUNTIF($M$3:M349,الجدول1[اسم الطالب]),),0)),\"\")","v":""}]
[null,null,null,null,null,null,null,null,null,null,null,null,{"$f":"IFERROR(INDEX(الجدول1[اسم الطالب],MATCH(0,INDEX(COUNTIF($M$3:M350,الجدول1[اسم الطالب]),),0)),\"\")","v":""}]
[null,null,null,null,null,null,null,null,null,null,null,null,{"$f":"IFERROR(INDEX(الجدول1[اسم الطالب],MATCH(0,INDEX(COUNTIF($M$3:M351,الجدول1[اسم الطالب]),),0)),\"\")","v":""}]
[null,null,null,null,null,null,null,null,null,null,null,null,{"$f":"IFERROR(INDEX(الجدول1[اسم الطالب],MATCH(0,INDEX(COUNTIF($M$3:M352,الجدول1[اسم الطالب]),),0)),\"\")","v":""}]
[null,null,null,null,null,null,null,null,null,null,null,null,{"$f":"IFERROR(INDEX(الجدول1[اسم الطالب],MATCH(0,INDEX(COUNTIF($M$3:M353,الجدول1[اسم الطالب]),),0)),\"\")","v":""}]
[null,null,null,null,null,null,null,null,null,null,null,null,{"$f":"IFERROR(INDEX(الجدول1[اسم الطالب],MATCH(0,INDEX(COUNTIF($M$3:M354,الجدول1[اسم الطالب]),),0)),\"\")","v":""}]
[null,null,null,null,null,null,null,null,null,null,null,null,{"$f":"IFERROR(INDEX(الجدول1[اسم الطالب],MATCH(0,INDEX(COUNTIF($M$3:M355,الجدول1[اسم الطالب]),),0)),\"\")","v":""}]
[null,null,null,null,null,null,null,null,null,null,null,null,{"$f":"IFERROR(INDEX(الجدول1[اسم الطالب],MATCH(0,INDEX(COUNTIF($M$3:M356,الجدول1[اسم الطالب]),),0)),\"\")","v":""}]
[null,null,null,null,null,null,null,null,null,null,null,null,{"$f":"IFERROR(INDEX(الجدول1[اسم الطالب],MATCH(0,INDEX(COUNTIF($M$3:M357,الجدول1[اسم الطالب]),),0)),\"\")","v":""}]
[null,null,null,null,null,null,null,null,null,null,null,null,{"$f":"IFERROR(INDEX(الجدول1[اسم الطالب],MATCH(0,INDEX(COUNTIF($M$3:M358,الجدول1[اسم الطالب]),),0)),\"\")","v":""}]
[null,null,null,null,null,null,null,null,null,null,null,null,{"$f":"IFERROR(INDEX(الجدول1[اسم الطالب],MATCH(0,INDEX(COUNTIF($M$3:M359,الجدول1[اسم الطالب]),),0)),\"\")","v":""}]
[null,null,null,null,null,null,null,null,null,null,null,null,{"$f":"IFERROR(INDEX(الجدول1[اسم الطالب],MATCH(0,INDEX(COUNTIF($M$3:M360,الجدول1[اسم الطالب]),),0)),\"\")","v":""}]
[null,null,null,null,null,null,null,null,null,null,null,null,{"$f":"IFERROR(INDEX(الجدول1[اسم الطالب],MATCH(0,INDEX(COUNTIF($M$3:M361,الجدول1[اسم الطالب]),),0)),\"\")","v":""}]
[null,null,null,null,null,null,null,null,null,null,null,null,{"$f":"IFERROR(INDEX(الجدول1[اسم الطالب],MATCH(0,INDEX(COUNTIF($M$3:M362,الجدول1[اسم الطالب]),),0)),\"\")","v":""}]
[null,null,null,null,null,null,null,null,null,null,null,null,{"$f":"IFERROR(INDEX(الجدول1[اسم الطالب],MATCH(0,INDEX(COUNTIF($M$3:M363,الجدول1[اسم الطالب]),),0)),\"\")","v":""}]
[null,null,null,null,null,null,null,null,null,null,null,null,{"$f":"IFERROR(INDEX(الجدول1[اسم الطالب],MATCH(0,INDEX(COUNTIF($M$3:M364,الجدول1[اسم الطالب]),),0)),\"\")","v":""}]
[null,null,null,null,null,null,null,null,null,null,null,null,{"$f":"IFERROR(INDEX(الجدول1[اسم الطالب],MATCH(0,INDEX(COUNTIF($M$3:M365,الجدول1[اسم الطالب]),),0)),\"\")","v":""}]
[null,null,null,null,null,null,null,null,null,null,null,null,{"$f":"IFERROR(INDEX(الجدول1[اسم الطالب],MATCH(0,INDEX(COUNTIF($M$3:M366,الجدول1[اسم الطالب]),),0)),\"\")","v":""}]
[null,null,null,null,null,null,null,null,null,null,null,null,{"$f":"IFERROR(INDEX(الجدول1[اسم الطالب],MATCH(0,INDEX(COUNTIF($M$3:M367,الجدول1[اسم الطالب]),),0)),\"\")","v":""}]
[null,null,null,null,null,null,null,null,null,null,null,null,{"$f":"IFERROR(INDEX(الجدول1[اسم الطالب],MATCH(0,INDEX(COUNTIF($M$3:M368,الجدول1[اسم الطالب]),),0)),\"\")","v":""}]
[null,null,null,null,null,null,null,null,null,null,null,null,{"$f":"IFERROR(INDEX(الجدول1[اسم الطالب],MATCH(0,INDEX(COUNTIF($M$3:M369,الجدول1[اسم الطالب]),),0)),\"\")","v":""}]
[null,null,null,null,null,null,null,null,null,null,null,null,{"$f":"IFERROR(INDEX(الجدول1[اسم الطالب],MATCH(0,INDEX(COUNTIF($M$3:M370,الجدول1[اسم الطالب]),),0)),\"\")","v":""}]
[null,null,null,null,null,null,null,null,null,null,null,null,{"$f":"IFERROR(INDEX(الجدول1[اسم الطالب],MATCH(0,INDEX(COUNTIF($M$3:M371,الجدول1[اسم الطالب]),),0)),\"\")","v":""}]
[null,null,null,null,null,null,null,null,null,null,null,null,{"$f":"IFERROR(INDEX(الجدول1[اسم الطالب],MATCH(0,INDEX(COUNTIF($M$3:M372,الجدول1[اسم الطالب]),),0)),\"\")","v":""}]
[null,null,null,null,null,null,null,null,null,null,null,null,{"$f":"IFERROR(INDEX(الجدول1[اسم الطالب],MATCH(0,INDEX(COUNTIF($M$3:M373,الجدول1[اسم الطالب]),),0)),\"\")","v":""}]
[null,null,null,null,null,null,null,null,null,null,null,null,{"$f":"IFERROR(INDEX(الجدول1[اسم الطالب],MATCH(0,INDEX(COUNTIF($M$3:M374,الجدول1[اسم الطالب]),),0)),\"\")","v":""}]
[null,null,null,null,null,null,null,null,null,null,null,null,{"$f":"IFERROR(INDEX(الجدول1[اسم الطالب],MATCH(0,INDEX(COUNTIF($M$3:M375,الجدول1[اسم الطالب]),),0)),\"\")","v":""}]
[null,null,null,null,null,null,null,null,null,null,null,null,{"$f":"IFERROR(INDEX(الجدول1[اسم الطالب],MATCH(0,INDEX(COUNTIF($M$3:M376,الجدول1[اسم الطالب]),),0)),\"\")","v":""}]
[null,null,null,null,null,null,null,null,null,null,null,null,{"$f":"IFERROR(INDEX(الجدول1[اسم الطالب],MATCH(0,INDEX(COUNTIF($M$3:M377,الجدول1[اسم الطالب]),),0)),\"\")","v":""}]
[null,null,null,null,null,null,null,null,null,null,null,null,{"$f":"IFERROR(INDEX(الجدول1[اسم الطالب],MATCH(0,INDEX(COUNTIF($M$3:M378,الجدول1[اسم الطالب]),),0)),\"\")","v":""}]
[null,null,null,null,null,null,null,null,null,null,null,null,{"$f":"IFERROR(INDEX(الجدول1[اسم الطالب],MATCH(0,INDEX(COUNTIF($M$3:M379,الجدول1[اسم الطالب]),),0)),\"\")","v":""}]
[null,null,null,null,null,null,null,null,null,null,null,null,{"$f":"IFERROR(INDEX(الجدول1[اسم الطالب],MATCH(0,INDEX(COUNTIF($M$3:M380,الجدول1[اسم الطالب]),),0)),\"\")","v":""}]
[null,null,null,null,null,null,null,null,null,null,null,null,{"$f":"IFERROR(INDEX(الجدول1[اسم الطالب],MATCH(0,INDEX(COUNTIF($M$3:M381,الجدول1[اسم الطالب]),),0)),\"\")","v":""}]
[null,null,null,null,null,null,null,null,null,null,null,null,{"$f":"IFERROR(INDEX(الجدول1[اسم الطالب],MATCH(0,INDEX(COUNTIF($M$3:M382,الجدول1[اسم الطالب]),),0)),\"\")","v":""}]
[null,null,null,null,null,null,null,null,null,null,null,null,{"$f":"IFERROR(INDEX(الجدول1[اسم الطالب],MATCH(0,INDEX(COUNTIF($M$3:M383,الجدول1[اسم الطالب]),),0)),\"\")","v":""}]
[null,null,null,null,null,null,null,null,null,null,null,null,{"$f":"IFERROR(INDEX(الجدول1[اسم الطالب],MATCH(0,INDEX(COUNTIF($M$3:M384,الجدول1[اسم الطالب]),),0)),\"\")","v":""}]
[null,null,null,null,null,null,null,null,null,null,null,null,{"$f":"IFERROR(INDEX(الجدول1[اسم الطالب],MATCH(0,INDEX(COUNTIF($M$3:M385,الجدول1[اسم الطالب]),),0)),\"\")","v":""}]
[null,null,null,null,null,null,null,null,null,null,null,null,{"$f":"IFERROR(INDEX(الجدول1[اسم الطالب],MATCH(0,INDEX(COUNTIF($M$3:M386,الجدول1[اسم الطالب]),),0)),\"\")","v":""}]
[null,null,null,null,null,null,null,null,null,null,null,null,{"$f":"IFERROR(INDEX(الجدول1[اسم الطالب],MATCH(0,INDEX(COUNTIF($M$3:M387,الجدول1[اسم الطالب]),),0)),\"\")","v":""}]
[null,null,null,null,null,null,null,null,null,null,null,null,{"$f":"IFERROR(INDEX(الجدول1[اسم الطالب],MATCH(0,INDEX(COUNTIF($M$3:M388,الجدول1[اسم الطالب]),),0)),\"\")","v":""}]
[null,null,null,null,null,null,null,null,null,null,null,null,{"$f":"IFERROR(INDEX(الجدول1[اسم الطالب],MATCH(0,INDEX(COUNTIF($M$3:M389,الجدول1[اسم الطالب]),),0)),\"\")","v":""}]
[null,null,null,null,null,null,null,null,null,null,null,null,{"$f":"IFERROR(INDEX(الجدول1[اسم الطالب],MATCH(0,INDEX(COUNTIF($M$3:M390,الجدول1[اسم الطالب]),),0)),\"\")","v":""}]
[null,null,null,null,null,null,null,null,null,null,null,null,{"$f":"IFERROR(INDEX(الجدول1[اسم الطالب],MATCH(0,INDEX(COUNTIF($M$3:M391,الجدول1[اسم الطالب]),),0)),\"\")","v":""}]
[null,null,null,null,null,null,null,null,null,null,null,null,{"$f":"IFERROR(INDEX(الجدول1[اسم الطالب],MATCH(0,INDEX(COUNTIF($M$3:M392,الجدول1[اسم الطالب]),),0)),\"\")","v":""}]
[null,null,null,null,null,null,null,null,null,null,null,null,{"$f":"IFERROR(INDEX(الجدول1[اسم الطالب],MATCH(0,INDEX(COUNTIF($M$3:M393,الجدول1[اسم الطالب]),),0)),\"\")","v":""}]
[null,null,null,null,null,null,null,null,null,null,null,null,{"$f":"IFERROR(INDEX(الجدول1[اسم الطالب],MATCH(0,INDEX(COUNTIF($M$3:M394,الجدول1[اسم الطالب]),),0)),\"\")","v":""}]
[null,null,null,null,null,null,null,null,null,null,null,null,{"$f":"IFERROR(INDEX(الجدول1[اسم الطالب],MATCH(0,INDEX(COUNTIF($M$3:M395,الجدول1[اسم الطالب]),),0)),\"\")","v":""}]
[null,null,null,null,null,null,null,null,null,null,null,null,{"$f":"IFERROR(INDEX(الجدول1[اسم الطالب],MATCH(0,INDEX(COUNTIF($M$3:M396,الجدول1[اسم الطالب]),),0)),\"\")","v":""}]
[null,null,null,null,null,null,null,null,null,null,null,null,{"$f":"IFERROR(INDEX(الجدول1[اسم الطالب],MATCH(0,INDEX(COUNTIF($M$3:M397,الجدول1[اسم الطالب]),),0)),\"\")","v":""}]
[null,null,null,null,null,null,null,null,null,null,null,null,{"$f":"IFERROR(INDEX(الجدول1[اسم الطالب],MATCH(0,INDEX(COUNTIF($M$3:M398,الجدول1[اسم الطالب]),),0)),\"\")","v":""}]
[null,null,null,null,null,null,null,null,null,null,null,null,{"$f":"IFERROR(INDEX(الجدول1[اسم الطالب],MATCH(0,INDEX(COUNTIF($M$3:M399,الجدول1[اسم الطالب]),),0)),\"\")","v":""}]
[null,null,null,null,null,null,null,null,null,null,null,null,{"$f":"IFERROR(INDEX(الجدول1[اسم الطالب],MATCH(0,INDEX(COUNTIF($M$3:M400,الجدول1[اسم الطالب]),),0)),\"\")","v":""}]
[null,null,null,null,null,null,null,null,null,null,null,null,{"$f":"IFERROR(INDEX(الجدول1[اسم الطالب],MATCH(0,INDEX(COUNTIF($M$3:M401,الجدول1[اسم الطالب]),),0)),\"\")","v":""}]
[null,null,null,null,null,null,null,null,null,null,null,null,{"$f":"IFERROR(INDEX(الجدول1[اسم الطالب],MATCH(0,INDEX(COUNTIF($M$3:M402,الجدول1[اسم الطالب]),),0)),\"\")","v":""}]
[null,null,null,null,null,null,null,null,null,null,null,null,{"$f":"IFERROR(INDEX(الجدول1[اسم الطالب],MATCH(0,INDEX(COUNTIF($M$3:M403,الجدول1[اسم الطالب]),),0)),\"\")","v":""}]
[null,null,null,null,null,null,null,null,null,null,null,null,{"$f":"IFERROR(INDEX(الجدول1[اسم الطالب],MATCH(0,INDEX(COUNTIF($M$3:M404,الجدول1[اسم الطالب]),),0)),\"\")","v":""}]
[null,null,null,null,null,null,null,null,null,null,null,null,{"$f":"IFERROR(INDEX(الجدول1[اسم الطالب],MATCH(0,INDEX(COUNTIF($M$3:M405,الجدول1[اسم الطالب]),),0)),\"\")","v":""}]
[null,null,null,null,null,null,null,null,null,null,null,null,{"$f":"IFERROR(INDEX(الجدول1[اسم الطالب],MATCH(0,INDEX(COUNTIF($M$3:M406,الجدول1[اسم الطالب]),),0)),\"\")","v":""}]
[null,null,null,null,null,null,null,null,null,null,null,null,{"$f":"IFERROR(INDEX(الجدول1[اسم الطالب],MATCH(0,INDEX(COUNTIF($M$3:M407,الجدول1[اسم الطالب]),),0)),\"\")","v":""}]
[null,null,null,null,null,null,null,null,null,null,null,null,{"$f":"IFERROR(INDEX(الجدول1[اسم الطالب],MATCH(0,INDEX(COUNTIF($M$3:M408,الجدول1[اسم الطالب]),),0)),\"\")","v":""}]
[null,null,null,null,null,null,null,null,null,null,null,null,{"$f":"IFERROR(INDEX(الجدول1[اسم الطالب],MATCH(0,INDEX(COUNTIF($M$3:M409,الجدول1[اسم الطالب]),),0)),\"\")","v":""}]
[null,null,null,null,null,null,null,null,null,null,null,null,{"$f":"IFERROR(INDEX(الجدول1[اسم الطالب],MATCH(0,INDEX(COUNTIF($M$3:M410,الجدول1[اسم الطالب]),),0)),\"\")","v":""}]
[null,null,null,null,null,null,null,null,null,null,null,null,{"$f":"IFERROR(INDEX(الجدول1[اسم الطالب],MATCH(0,INDEX(COUNTIF($M$3:M411,الجدول1[اسم الطالب]),),0)),\"\")","v":""}]
[null,null,null,null,null,null,null,null,null,null,null,null,{"$f":"IFERROR(INDEX(الجدول1[اسم الطالب],MATCH(0,INDEX(COUNTIF($M$3:M412,الجدول1[اسم الطالب]),),0)),\"\")","v":""}]
[null,null,null,null,null,null,null,null,null,null,null,null,{"$f":"IFERROR(INDEX(الجدول1[اسم الطالب],MATCH(0,INDEX(COUNTIF($M$3:M413,الجدول1[اسم الطالب]),),0)),\"\")","v":""}]
[null,null,null,null,null,null,null,null,null,null,null,null,{"$f":"IFERROR(INDEX(الجدول1[اسم الطالب],MATCH(0,INDEX(COUNTIF($M$3:M414,الجدول1[اسم الطالب]),),0)),\"\")","v":""}]
[null,null,null,null,null,null,null,null,null,null,null,null,{"$f":"IFERROR(INDEX(الجدول1[اسم الطالب],MATCH(0,INDEX(COUNTIF($M$3:M415,الجدول1[اسم الطالب]),),0)),\"\")","v":""}]
[null,null,null,null,null,null,null,null,null,null,null,null,{"$f":"IFERROR(INDEX(الجدول1[اسم الطالب],MATCH(0,INDEX(COUNTIF($M$3:M416,الجدول1[اسم الطالب]),),0)),\"\")","v":""}]
[null,null,null,null,null,null,null,null,null,null,null,null,{"$f":"IFERROR(INDEX(الجدول1[اسم الطالب],MATCH(0,INDEX(COUNTIF($M$3:M417,الجدول1[اسم الطالب]),),0)),\"\")","v":""}]
[null,null,null,null,null,null,null,null,null,null,null,null,{"$f":"IFERROR(INDEX(الجدول1[اسم الطالب],MATCH(0,INDEX(COUNTIF($M$3:M418,الجدول1[اسم الطالب]),),0)),\"\")","v":""}]
[null,null,null,null,null,null,null,null,null,null,null,null,{"$f":"IFERROR(INDEX(الجدول1[اسم الطالب],MATCH(0,INDEX(COUNTIF($M$3:M419,الجدول1[اسم الطالب]),),0)),\"\")","v":""}]
[null,null,null,null,null,null,null,null,null,null,null,null,{"$f":"IFERROR(INDEX(الجدول1[اسم الطالب],MATCH(0,INDEX(COUNTIF($M$3:M420,الجدول1[اسم الطالب]),),0)),\"\")","v":""}]
[null,null,null,null,null,null,null,null,null,null,null,null,{"$f":"IFERROR(INDEX(الجدول1[اسم الطالب],MATCH(0,INDEX(COUNTIF($M$3:M421,الجدول1[اسم الطالب]),),0)),\"\")","v":""}]
[null,null,null,null,null,null,null,null,null,null,null,null,{"$f":"IFERROR(INDEX(الجدول1[اسم الطالب],MATCH(0,INDEX(COUNTIF($M$3:M422,الجدول1[اسم الطالب]),),0)),\"\")","v":""}]
[null,null,null,null,null,null,null,null,null,null,null,null,{"$f":"IFERROR(INDEX(الجدول1[اسم الطالب],MATCH(0,INDEX(COUNTIF($M$3:M423,الجدول1[اسم الطالب]),),0)),\"\")","v":""}]
[null,null,null,null,null,null,null,null,null,null,null,null,{"$f":"IFERROR(INDEX(الجدول1[اسم الطالب],MATCH(0,INDEX(COUNTIF($M$3:M424,الجدول1[اسم الطالب]),),0)),\"\")","v":""}]
[null,null,null,null,null,null,null,null,null,null,null,null,{"$f":"IFERROR(INDEX(الجدول1[اسم الطالب],MATCH(0,INDEX(COUNTIF($M$3:M425,الجدول1[اسم الطالب]),),0)),\"\")","v":""}]
[null,null,null,null,null,null,null,null,null,null,null,null,{"$f":"IFERROR(INDEX(الجدول1[اسم الطالب],MATCH(0,INDEX(COUNTIF($M$3:M426,الجدول1[اسم الطالب]),),0)),\"\")","v":""}]
[null,null,null,null,null,null,null,null,null,null,null,null,{"$f":"IFERROR(INDEX(الجدول1[اسم الطالب],MATCH(0,INDEX(COUNTIF($M$3:M427,الجدول1[اسم الطالب]),),0)),\"\")","v":""}]
[null,null,null,null,null,null,null,null,null,null,null,null,{"$f":"IFERROR(INDEX(الجدول1[اسم الطالب],MATCH(0,INDEX(COUNTIF($M$3:M428,الجدول1[اسم الطالب]),),0)),\"\")","v":""}]
[null,null,null,null,null,null,null,null,null,null,null,null,{"$f":"IFERROR(INDEX(الجدول1[اسم الطالب],MATCH(0,INDEX(COUNTIF($M$3:M429,الجدول1[اسم الطالب]),),0)),\"\")","v":""}]
[null,null,null,null,null,null,null,null,null,null,null,null,{"$f":"IFERROR(INDEX(الجدول1[اسم الطالب],MATCH(0,INDEX(COUNTIF($M$3:M430,الجدول1[اسم الطالب]),),0)),\"\")","v":""}]
[null,null,null,null,null,null,null,null,null,null,null,null,{"$f":"IFERROR(INDEX(الجدول1[اسم الطالب],MATCH(0,INDEX(COUNTIF($M$3:M431,الجدول1[اسم الطالب]),),0)),\"\")","v":""}]
[null,null,null,null,null,null,null,null,null,null,null,null,{"$f":"IFERROR(INDEX(الجدول1[اسم الطالب],MATCH(0,INDEX(COUNTIF($M$3:M432,الجدول1[اسم الطالب]),),0)),\"\")","v":""}]
[null,null,null,null,null,null,null,null,null,null,null,null,{"$f":"IFERROR(INDEX(الجدول1[اسم الطالب],MATCH(0,INDEX(COUNTIF($M$3:M433,الجدول1[اسم الطالب]),),0)),\"\")","v":""}]
[null,null,null,null,null,null,null,null,null,null,null,null,{"$f":"IFERROR(INDEX(الجدول1[اسم الطالب],MATCH(0,INDEX(COUNTIF($M$3:M434,الجدول1[اسم الطالب]),),0)),\"\")","v":""}]
[null,null,null,null,null,null,null,null,null,null,null,null,{"$f":"IFERROR(INDEX(الجدول1[اسم الطالب],MATCH(0,INDEX(COUNTIF($M$3:M435,الجدول1[اسم الطالب]),),0)),\"\")","v":""}]
[null,null,null,null,null,null,null,null,null,null,null,null,{"$f":"IFERROR(INDEX(الجدول1[اسم الطالب],MATCH(0,INDEX(COUNTIF($M$3:M436,الجدول1[اسم الطالب]),),0)),\"\")","v":""}]
[null,null,null,null,null,null,null,null,null,null,null,null,{"$f":"IFERROR(INDEX(الجدول1[اسم الطالب],MATCH(0,INDEX(COUNTIF($M$3:M437,الجدول1[اسم الطالب]),),0)),\"\")","v":""}]
[null,null,null,null,null,null,null,null,null,null,null,null,{"$f":"IFERROR(INDEX(الجدول1[اسم الطالب],MATCH(0,INDEX(COUNTIF($M$3:M438,الجدول1[اسم الطالب]),),0)),\"\")","v":""}]
[null,null,null,null,null,null,null,null,null,null,null,null,{"$f":"IFERROR(INDEX(الجدول1[اسم الطالب],MATCH(0,INDEX(COUNTIF($M$3:M439,الجدول1[اسم الطالب]),),0)),\"\")","v":""}]
[null,null,null,null,null,null,null,null,null,null,null,null,{"$f":"IFERROR(INDEX(الجدول1[اسم الطالب],MATCH(0,INDEX(COUNTIF($M$3:M440,الجدول1[اسم الطالب]),),0)),\"\")","v":""}]
[null,null,null,null,null,null,null,null,null,null,null,null,{"$f":"IFERROR(INDEX(الجدول1[اسم الطالب],MATCH(0,INDEX(COUNTIF($M$3:M441,الجدول1[اسم الطالب]),),0)),\"\")","v":""}]
[null,null,null,null,null,null,null,null,null,null,null,null,{"$f":"IFERROR(INDEX(الجدول1[اسم الطالب],MATCH(0,INDEX(COUNTIF($M$3:M442,الجدول1[اسم الطالب]),),0)),\"\")","v":""}]
[null,null,null,null,null,null,null,null,null,null,null,null,{"$f":"IFERROR(INDEX(الجدول1[اسم الطالب],MATCH(0,INDEX(COUNTIF($M$3:M443,الجدول1[اسم الطالب]),),0)),\"\")","v":""}]
[null,null,null,null,null,null,null,null,null,null,null,null,{"$f":"IFERROR(INDEX(الجدول1[اسم الطالب],MATCH(0,INDEX(COUNTIF($M$3:M444,الجدول1[اسم الطالب]),),0)),\"\")","v":""}]
[null,null,null,null,null,null,null,null,null,null,null,null,{"$f":"IFERROR(INDEX(الجدول1[اسم الطالب],MATCH(0,INDEX(COUNTIF($M$3:M445,الجدول1[اسم الطالب]),),0)),\"\")","v":""}]
[null,null,null,null,null,null,null,null,null,null,null,null,{"$f":"IFERROR(INDEX(الجدول1[اسم الطالب],MATCH(0,INDEX(COUNTIF($M$3:M446,الجدول1[اسم الطالب]),),0)),\"\")","v":""}]
[null,null,null,null,null,null,null,null,null,null,null,null,{"$f":"IFERROR(INDEX(الجدول1[اسم الطالب],MATCH(0,INDEX(COUNTIF($M$3:M447,الجدول1[اسم الطالب]),),0)),\"\")","v":""}]
[null,null,null,null,null,null,null,null,null,null,null,null,{"$f":"IFERROR(INDEX(الجدول1[اسم الطالب],MATCH(0,INDEX(COUNTIF($M$3:M448,الجدول1[اسم الطالب]),),0)),\"\")","v":""}]
[null,null,null,null,null,null,null,null,null,null,null,null,{"$f":"IFERROR(INDEX(الجدول1[اسم الطالب],MATCH(0,INDEX(COUNTIF($M$3:M449,الجدول1[اسم الطالب]),),0)),\"\")","v":""}]
[null,null,null,null,null,null,null,null,null,null,null,null,{"$f":"IFERROR(INDEX(الجدول1[اسم الطالب],MATCH(0,INDEX(COUNTIF($M$3:M450,الجدول1[اسم الطالب]),),0)),\"\")","v":""}]
[null,null,null,null,null,null,null,null,null,null,null,null,{"$f":"IFERROR(INDEX(الجدول1[اسم الطالب],MATCH(0,INDEX(COUNTIF($M$3:M451,الجدول1[اسم الطالب]),),0)),\"\")","v":""}]
[null,null,null,null,null,null,null,null,null,null,null,null,{"$f":"IFERROR(INDEX(الجدول1[اسم الطالب],MATCH(0,INDEX(COUNTIF($M$3:M452,الجدول1[اسم الطالب]),),0)),\"\")","v":""}]
[null,null,null,null,null,null,null,null,null,null,null,null,{"$f":"IFERROR(INDEX(الجدول1[اسم الطالب],MATCH(0,INDEX(COUNTIF($M$3:M453,الجدول1[اسم الطالب]),),0)),\"\")","v":""}]
[null,null,null,null,null,null,null,null,null,null,null,null,{"$f":"IFERROR(INDEX(الجدول1[اسم الطالب],MATCH(0,INDEX(COUNTIF($M$3:M454,الجدول1[اسم الطالب]),),0)),\"\")","v":""}]
[null,null,null,null,null,null,null,null,null,null,null,null,{"$f":"IFERROR(INDEX(الجدول1[اسم الطالب],MATCH(0,INDEX(COUNTIF($M$3:M455,الجدول1[اسم الطالب]),),0)),\"\")","v":""}]
[null,null,null,null,null,null,null,null,null,null,null,null,{"$f":"IFERROR(INDEX(الجدول1[اسم الطالب],MATCH(0,INDEX(COUNTIF($M$3:M456,الجدول1[اسم الطالب]),),0)),\"\")","v":""}]
[null,null,null,null,null,null,null,null,null,null,null,null,{"$f":"IFERROR(INDEX(الجدول1[اسم الطالب],MATCH(0,INDEX(COUNTIF($M$3:M457,الجدول1[اسم الطالب]),),0)),\"\")","v":""}]
[null,null,null,null,null,null,null,null,null,null,null,null,{"$f":"IFERROR(INDEX(الجدول1[اسم الطالب],MATCH(0,INDEX(COUNTIF($M$3:M458,الجدول1[اسم الطالب]),),0)),\"\")","v":""}]
[null,null,null,null,null,null,null,null,null,null,null,null,{"$f":"IFERROR(INDEX(الجدول1[اسم الطالب],MATCH(0,INDEX(COUNTIF($M$3:M459,الجدول1[اسم الطالب]),),0)),\"\")","v":""}]
[null,null,null,null,null,null,null,null,null,null,null,null,{"$f":"IFERROR(INDEX(الجدول1[اسم الطالب],MATCH(0,INDEX(COUNTIF($M$3:M460,الجدول1[اسم الطالب]),),0)),\"\")","v":""}]
[null,null,null,null,null,null,null,null,null,null,null,null,{"$f":"IFERROR(INDEX(الجدول1[اسم الطالب],MATCH(0,INDEX(COUNTIF($M$3:M461,الجدول1[اسم الطالب]),),0)),\"\")","v":""}]
[null,null,null,null,null,null,null,null,null,null,null,null,{"$f":"IFERROR(INDEX(الجدول1[اسم الطالب],MATCH(0,INDEX(COUNTIF($M$3:M462,الجدول1[اسم الطالب]),),0)),\"\")","v":""}]
[null,null,null,null,null,null,null,null,null,null,null,null,{"$f":"IFERROR(INDEX(الجدول1[اسم الطالب],MATCH(0,INDEX(COUNTIF($M$3:M463,الجدول1[اسم الطالب]),),0)),\"\")","v":""}]
[null,null,null,null,null,null,null,null,null,null,null,null,{"$f":"IFERROR(INDEX(الجدول1[اسم الطالب],MATCH(0,INDEX(COUNTIF($M$3:M464,الجدول1[اسم الطالب]),),0)),\"\")","v":""}]
[null,null,null,null,null,null,null,null,null,null,null,null,{"$f":"IFERROR(INDEX(الجدول1[اسم الطالب],MATCH(0,INDEX(COUNTIF($M$3:M465,الجدول1[اسم الطالب]),),0)),\"\")","v":""}]
[null,null,null,null,null,null,null,null,null,null,null,null,{"$f":"IFERROR(INDEX(الجدول1[اسم الطالب],MATCH(0,INDEX(COUNTIF($M$3:M466,الجدول1[اسم الطالب]),),0)),\"\")","v":""}]
[null,null,null,null,null,null,null,null,null,null,null,null,{"$f":"IFERROR(INDEX(الجدول1[اسم الطالب],MATCH(0,INDEX(COUNTIF($M$3:M467,الجدول1[اسم الطالب]),),0)),\"\")","v":""}]
[null,null,null,null,null,null,null,null,null,null,null,null,{"$f":"IFERROR(INDEX(الجدول1[اسم الطالب],MATCH(0,INDEX(COUNTIF($M$3:M468,الجدول1[اسم الطالب]),),0)),\"\")","v":""}]
[null,null,null,null,null,null,null,null,null,null,null,null,{"$f":"IFERROR(INDEX(الجدول1[اسم الطالب],MATCH(0,INDEX(COUNTIF($M$3:M469,الجدول1[اسم الطالب]),),0)),\"\")","v":""}]
[null,null,null,null,null,null,null,null,null,null,null,null,{"$f":"IFERROR(INDEX(الجدول1[اسم الطالب],MATCH(0,INDEX(COUNTIF($M$3:M470,الجدول1[اسم الطالب]),),0)),\"\")","v":""}]
[null,null,null,null,null,null,null,null,null,null,null,null,{"$f":"IFERROR(INDEX(الجدول1[اسم الطالب],MATCH(0,INDEX(COUNTIF($M$3:M471,الجدول1[اسم الطالب]),),0)),\"\")","v":""}]
[null,null,null,null,null,null,null,null,null,null,null,null,{"$f":"IFERROR(INDEX(الجدول1[اسم الطالب],MATCH(0,INDEX(COUNTIF($M$3:M472,الجدول1[اسم الطالب]),),0)),\"\")","v":""}]
[null,null,null,null,null,null,null,null,null,null,null,null,{"$f":"IFERROR(INDEX(الجدول1[اسم الطالب],MATCH(0,INDEX(COUNTIF($M$3:M473,الجدول1[اسم الطالب]),),0)),\"\")","v":""}]
[null,null,null,null,null,null,null,null,null,null,null,null,{"$f":"IFERROR(INDEX(الجدول1[اسم الطالب],MATCH(0,INDEX(COUNTIF($M$3:M474,الجدول1[اسم الطالب]),),0)),\"\")","v":""}]
[null,null,null,null,null,null,null,null,null,null,null,null,{"$f":"IFERROR(INDEX(الجدول1[اسم الطالب],MATCH(0,INDEX(COUNTIF($M$3:M475,الجدول1[اسم الطالب]),),0)),\"\")","v":""}]
[null,null,null,null,null,null,null,null,null,null,null,null,{"$f":"IFERROR(INDEX(الجدول1[اسم الطالب],MATCH(0,INDEX(COUNTIF($M$3:M476,الجدول1[اسم الطالب]),),0)),\"\")","v":""}]
[null,null,null,null,null,null,null,null,null,null,null,null,{"$f":"IFERROR(INDEX(الجدول1[اسم الطالب],MATCH(0,INDEX(COUNTIF($M$3:M477,الجدول1[اسم الطالب]),),0)),\"\")","v":""}]
[null,null,null,null,null,null,null,null,null,null,null,null,{"$f":"IFERROR(INDEX(الجدول1[اسم الطالب],MATCH(0,INDEX(COUNTIF($M$3:M478,الجدول1[اسم الطالب]),),0)),\"\")","v":""}]
[null,null,null,null,null,null,null,null,null,null,null,null,{"$f":"IFERROR(INDEX(الجدول1[اسم الطالب],MATCH(0,INDEX(COUNTIF($M$3:M479,الجدول1[اسم الطالب]),),0)),\"\")","v":""}]
[null,null,null,null,null,null,null,null,null,null,null,null,{"$f":"IFERROR(INDEX(الجدول1[اسم الطالب],MATCH(0,INDEX(COUNTIF($M$3:M480,الجدول1[اسم الطالب]),),0)),\"\")","v":""}]
[null,null,null,null,null,null,null,null,null,null,null,null,{"$f":"IFERROR(INDEX(الجدول1[اسم الطالب],MATCH(0,INDEX(COUNTIF($M$3:M481,الجدول1[اسم الطالب]),),0)),\"\")","v":""}]
[null,null,null,null,null,null,null,null,null,null,null,null,{"$f":"IFERROR(INDEX(الجدول1[اسم الطالب],MATCH(0,INDEX(COUNTIF($M$3:M482,الجدول1[اسم الطالب]),),0)),\"\")","v":""}]
[null,null,null,null,null,null,null,null,null,null,null,null,{"$f":"IFERROR(INDEX(الجدول1[اسم الطالب],MATCH(0,INDEX(COUNTIF($M$3:M483,الجدول1[اسم الطالب]),),0)),\"\")","v":""}]
[null,null,null,null,null,null,null,null,null,null,null,null,{"$f":"IFERROR(INDEX(الجدول1[اسم الطالب],MATCH(0,INDEX(COUNTIF($M$3:M484,الجدول1[اسم الطالب]),),0)),\"\")","v":""}]
[null,null,null,null,null,null,null,null,null,null,null,null,{"$f":"IFERROR(INDEX(الجدول1[اسم الطالب],MATCH(0,INDEX(COUNTIF($M$3:M485,الجدول1[اسم الطالب]),),0)),\"\")","v":""}]
[null,null,null,null,null,null,null,null,null,null,null,null,{"$f":"IFERROR(INDEX(الجدول1[اسم الطالب],MATCH(0,INDEX(COUNTIF($M$3:M486,الجدول1[اسم الطالب]),),0)),\"\")","v":""}]
[null,null,null,null,null,null,null,null,null,null,null,null,{"$f":"IFERROR(INDEX(الجدول1[اسم الطالب],MATCH(0,INDEX(COUNTIF($M$3:M487,الجدول1[اسم الطالب]),),0)),\"\")","v":""}]
[null,null,null,null,null,null,null,null,null,null,null,null,{"$f":"IFERROR(INDEX(الجدول1[اسم الطالب],MATCH(0,INDEX(COUNTIF($M$3:M488,الجدول1[اسم الطالب]),),0)),\"\")","v":""}]
[null,null,null,null,null,null,null,null,null,null,null,null,{"$f":"IFERROR(INDEX(الجدول1[اسم الطالب],MATCH(0,INDEX(COUNTIF($M$3:M489,الجدول1[اسم الطالب]),),0)),\"\")","v":""}]
[null,null,null,null,null,null,null,null,null,null,null,null,{"$f":"IFERROR(INDEX(الجدول1[اسم الطالب],MATCH(0,INDEX(COUNTIF($M$3:M490,الجدول1[اسم الطالب]),),0)),\"\")","v":""}]
[null,null,null,null,null,null,null,null,null,null,null,null,{"$f":"IFERROR(INDEX(الجدول1[اسم الطالب],MATCH(0,INDEX(COUNTIF($M$3:M491,الجدول1[اسم الطالب]),),0)),\"\")","v":""}]
[null,null,null,null,null,null,null,null,null,null,null,null,{"$f":"IFERROR(INDEX(الجدول1[اسم الطالب],MATCH(0,INDEX(COUNTIF($M$3:M492,الجدول1[اسم الطالب]),),0)),\"\")","v":""}]
[null,null,null,null,null,null,null,null,null,null,null,null,{"$f":"IFERROR(INDEX(الجدول1[اسم الطالب],MATCH(0,INDEX(COUNTIF($M$3:M493,الجدول1[اسم الطالب]),),0)),\"\")","v":""}]
[null,null,null,null,null,null,null,null,null,null,null,null,{"$f":"IFERROR(INDEX(الجدول1[اسم الطالب],MATCH(0,INDEX(COUNTIF($M$3:M494,الجدول1[اسم الطالب]),),0)),\"\")","v":""}]
[null,null,null,null,null,null,null,null,null,null,null,null,{"$f":"IFERROR(INDEX(الجدول1[اسم الطالب],MATCH(0,INDEX(COUNTIF($M$3:M495,الجدول1[اسم الطالب]),),0)),\"\")","v":""}]
[null,null,null,null,null,null,null,null,null,null,null,null,{"$f":"IFERROR(INDEX(الجدول1[اسم الطالب],MATCH(0,INDEX(COUNTIF($M$3:M496,الجدول1[اسم الطالب]),),0)),\"\")","v":""}]
[null,null,null,null,null,null,null,null,null,null,null,null,{"$f":"IFERROR(INDEX(الجدول1[اسم الطالب],MATCH(0,INDEX(COUNTIF($M$3:M497,الجدول1[اسم الطالب]),),0)),\"\")","v":""}]
[null,null,null,null,null,null,null,null,null,null,null,null,{"$f":"IFERROR(INDEX(الجدول1[اسم الطالب],MATCH(0,INDEX(COUNTIF($M$3:M498,الجدول1[اسم الطالب]),),0)),\"\")","v":""}]
[null,null,null,null,null,null,null,null,null,null,null,null,{"$f":"IFERROR(INDEX(الجدول1[اسم الطالب],MATCH(0,INDEX(COUNTIF($M$3:M499,الجدول1[اسم الطالب]),),0)),\"\")","v":""}]
[null,null,null,null,null,null,null,null,null,null,null,null,{"$f":"IFERROR(INDEX(الجدول1[اسم الطالب],MATCH(0,INDEX(COUNTIF($M$3:M500,الجدول1[اسم الطالب]),),0)),\"\")","v":""}]
[null,null,null,null,null,null,null,null,null,null,null,null,{"$f":"IFERROR(INDEX(الجدول1[اسم الطالب],MATCH(0,INDEX(COUNTIF($M$3:M501,الجدول1[اسم الطالب]),),0)),\"\")","v":""}]
[null,null,null,null,null,null,null,null,null,null,null,null,{"$f":"IFERROR(INDEX(الجدول1[اسم الطالب],MATCH(0,INDEX(COUNTIF($M$3:M502,الجدول1[اسم الطالب]),),0)),\"\")","v":""}]
[null,null,null,null,null,null,null,null,null,null,null,null,{"$f":"IFERROR(INDEX(الجدول1[اسم الطالب],MATCH(0,INDEX(COUNTIF($M$3:M503,الجدول1[اسم الطالب]),),0)),\"\")","v":""}]
[null,null,null,null,null,null,null,null,null,null,null,null,{"$f":"IFERROR(INDEX(الجدول1[اسم الطالب],MATCH(0,INDEX(COUNTIF($M$3:M504,الجدول1[اسم الطالب]),),0)),\"\")","v":""}]
[null,null,null,null,null,null,null,null,null,null,null,null,{"$f":"IFERROR(INDEX(الجدول1[اسم الطالب],MATCH(0,INDEX(COUNTIF($M$3:M505,الجدول1[اسم الطالب]),),0)),\"\")","v":""}]
[null,null,null,null,null,null,null,null,null,null,null,null,{"$f":"IFERROR(INDEX(الجدول1[اسم الطالب],MATCH(0,INDEX(COUNTIF($M$3:M506,الجدول1[اسم الطالب]),),0)),\"\")","v":""}]
[null,null,null,null,null,null,null,null,null,null,null,null,{"$f":"IFERROR(INDEX(الجدول1[اسم الطالب],MATCH(0,INDEX(COUNTIF($M$3:M507,الجدول1[اسم الطالب]),),0)),\"\")","v":""}]
[null,null,null,null,null,null,null,null,null,null,null,null,{"$f":"IFERROR(INDEX(الجدول1[اسم الطالب],MATCH(0,INDEX(COUNTIF($M$3:M508,الجدول1[اسم الطالب]),),0)),\"\")","v":""}]
[null,null,null,null,null,null,null,null,null,null,null,null,{"$f":"IFERROR(INDEX(الجدول1[اسم الطالب],MATCH(0,INDEX(COUNTIF($M$3:M509,الجدول1[اسم الطالب]),),0)),\"\")","v":""}]
[null,null,null,null,null,null,null,null,null,null,null,null,{"$f":"IFERROR(INDEX(الجدول1[اسم الطالب],MATCH(0,INDEX(COUNTIF($M$3:M510,الجدول1[اسم الطالب]),),0)),\"\")","v":""}]
[null,null,null,null,null,null,null,null,null,null,null,null,{"$f":"IFERROR(INDEX(الجدول1[اسم الطالب],MATCH(0,INDEX(COUNTIF($M$3:M511,الجدول1[اسم الطالب]),),0)),\"\")","v":""}]
[null,null,null,null,null,null,null,null,null,null,null,null,{"$f":"IFERROR(INDEX(الجدول1[اسم الطالب],MATCH(0,INDEX(COUNTIF($M$3:M512,الجدول1[اسم الطالب]),),0)),\"\")","v":""}]
[null,null,null,null,null,null,null,null,null,null,null,null,{"$f":"IFERROR(INDEX(الجدول1[اسم الطالب],MATCH(0,INDEX(COUNTIF($M$3:M513,الجدول1[اسم الطالب]),),0)),\"\")","v":""}]
[null,null,null,null,null,null,null,null,null,null,null,null,{"$f":"IFERROR(INDEX(الجدول1[اسم الطالب],MATCH(0,INDEX(COUNTIF($M$3:M514,الجدول1[اسم الطالب]),),0)),\"\")","v":""}]
[null,null,null,null,null,null,null,null,null,null,null,null,{"$f":"IFERROR(INDEX(الجدول1[اسم الطالب],MATCH(0,INDEX(COUNTIF($M$3:M515,الجدول1[اسم الطالب]),),0)),\"\")","v":""}]
[null,null,null,null,null,null,null,null,null,null,null,null,{"$f":"IFERROR(INDEX(الجدول1[اسم الطالب],MATCH(0,INDEX(COUNTIF($M$3:M516,الجدول1[اسم الطالب]),),0)),\"\")","v":""}]
[null,null,null,null,null,null,null,null,null,null,null,null,{"$f":"IFERROR(INDEX(الجدول1[اسم الطالب],MATCH(0,INDEX(COUNTIF($M$3:M517,الجدول1[اسم الطالب]),),0)),\"\")","v":""}]
[null,null,null,null,null,null,null,null,null,null,null,null,{"$f":"IFERROR(INDEX(الجدول1[اسم الطالب],MATCH(0,INDEX(COUNTIF($M$3:M518,الجدول1[اسم الطالب]),),0)),\"\")","v":""}]
[null,null,null,null,null,null,null,null,null,null,null,null,{"$f":"IFERROR(INDEX(الجدول1[اسم الطالب],MATCH(0,INDEX(COUNTIF($M$3:M519,الجدول1[اسم الطالب]),),0)),\"\")","v":""}]
[null,null,null,null,null,null,null,null,null,null,null,null,{"$f":"IFERROR(INDEX(الجدول1[اسم الطالب],MATCH(0,INDEX(COUNTIF($M$3:M520,الجدول1[اسم الطالب]),),0)),\"\")","v":""}]
[null,null,null,null,null,null,null,null,null,null,null,null,{"$f":"IFERROR(INDEX(الجدول1[اسم الطالب],MATCH(0,INDEX(COUNTIF($M$3:M521,الجدول1[اسم الطالب]),),0)),\"\")","v":""}]
[null,null,null,null,null,null,null,null,null,null,null,null,{"$f":"IFERROR(INDEX(الجدول1[اسم الطالب],MATCH(0,INDEX(COUNTIF($M$3:M522,الجدول1[اسم الطالب]),),0)),\"\")","v":""}]
[null,null,null,null,null,null,null,null,null,null,null,null,{"$f":"IFERROR(INDEX(الجدول1[اسم الطالب],MATCH(0,INDEX(COUNTIF($M$3:M523,الجدول1[اسم الطالب]),),0)),\"\")","v":""}]
[null,null,null,null,null,null,null,null,null,null,null,null,{"$f":"IFERROR(INDEX(الجدول1[اسم الطالب],MATCH(0,INDEX(COUNTIF($M$3:M524,الجدول1[اسم الطالب]),),0)),\"\")","v":""}]
[null,null,null,null,null,null,null,null,null,null,null,null,{"$f":"IFERROR(INDEX(الجدول1[اسم الطالب],MATCH(0,INDEX(COUNTIF($M$3:M525,الجدول1[اسم الطالب]),),0)),\"\")","v":""}]
[null,null,null,null,null,null,null,null,null,null,null,null,{"$f":"IFERROR(INDEX(الجدول1[اسم الطالب],MATCH(0,INDEX(COUNTIF($M$3:M526,الجدول1[اسم الطالب]),),0)),\"\")","v":""}]
[null,null,null,null,null,null,null,null,null,null,null,null,{"$f":"IFERROR(INDEX(الجدول1[اسم الطالب],MATCH(0,INDEX(COUNTIF($M$3:M527,الجدول1[اسم الطالب]),),0)),\"\")","v":""}]
[null,null,null,null,null,null,null,null,null,null,null,null,{"$f":"IFERROR(INDEX(الجدول1[اسم الطالب],MATCH(0,INDEX(COUNTIF($M$3:M528,الجدول1[اسم الطالب]),),0)),\"\")","v":""}]
[null,null,null,null,null,null,null,null,null,null,null,null,{"$f":"IFERROR(INDEX(الجدول1[اسم الطالب],MATCH(0,INDEX(COUNTIF($M$3:M529,الجدول1[اسم الطالب]),),0)),\"\")","v":""}]
[null,null,null,null,null,null,null,null,null,null,null,null,{"$f":"IFERROR(INDEX(الجدول1[اسم الطالب],MATCH(0,INDEX(COUNTIF($M$3:M530,الجدول1[اسم الطالب]),),0)),\"\")","v":""}]
[null,null,null,null,null,null,null,null,null,null,null,null,{"$f":"IFERROR(INDEX(الجدول1[اسم الطالب],MATCH(0,INDEX(COUNTIF($M$3:M531,الجدول1[اسم الطالب]),),0)),\"\")","v":""}]
[null,null,null,null,null,null,null,null,null,null,null,null,{"$f":"IFERROR(INDEX(الجدول1[اسم الطالب],MATCH(0,INDEX(COUNTIF($M$3:M532,الجدول1[اسم الطالب]),),0)),\"\")","v":""}]
[null,null,null,null,null,null,null,null,null,null,null,null,{"$f":"IFERROR(INDEX(الجدول1[اسم الطالب],MATCH(0,INDEX(COUNTIF($M$3:M533,الجدول1[اسم الطالب]),),0)),\"\")","v":""}]
[null,null,null,null,null,null,null,null,null,null,null,null,{"$f":"IFERROR(INDEX(الجدول1[اسم الطالب],MATCH(0,INDEX(COUNTIF($M$3:M534,الجدول1[اسم الطالب]),),0)),\"\")","v":""}]
[null,null,null,null,null,null,null,null,null,null,null,null,{"$f":"IFERROR(INDEX(الجدول1[اسم الطالب],MATCH(0,INDEX(COUNTIF($M$3:M535,الجدول1[اسم الطالب]),),0)),\"\")","v":""}]
[null,null,null,null,null,null,null,null,null,null,null,null,{"$f":"IFERROR(INDEX(الجدول1[اسم الطالب],MATCH(0,INDEX(COUNTIF($M$3:M536,الجدول1[اسم الطالب]),),0)),\"\")","v":""}]
[null,null,null,null,null,null,null,null,null,null,null,null,{"$f":"IFERROR(INDEX(الجدول1[اسم الطالب],MATCH(0,INDEX(COUNTIF($M$3:M537,الجدول1[اسم الطالب]),),0)),\"\")","v":""}]
[null,null,null,null,null,null,null,null,null,null,null,null,{"$f":"IFERROR(INDEX(الجدول1[اسم الطالب],MATCH(0,INDEX(COUNTIF($M$3:M538,الجدول1[اسم الطالب]),),0)),\"\")","v":""}]
[null,null,null,null,null,null,null,null,null,null,null,null,{"$f":"IFERROR(INDEX(الجدول1[اسم الطالب],MATCH(0,INDEX(COUNTIF($M$3:M539,الجدول1[اسم الطالب]),),0)),\"\")","v":""}]
[null,null,null,null,null,null,null,null,null,null,null,null,{"$f":"IFERROR(INDEX(الجدول1[اسم الطالب],MATCH(0,INDEX(COUNTIF($M$3:M540,الجدول1[اسم الطالب]),),0)),\"\")","v":""}]
[null,null,null,null,null,null,null,null,null,null,null,null,{"$f":"IFERROR(INDEX(الجدول1[اسم الطالب],MATCH(0,INDEX(COUNTIF($M$3:M541,الجدول1[اسم الطالب]),),0)),\"\")","v":""}]
[null,null,null,null,null,null,null,null,null,null,null,null,{"$f":"IFERROR(INDEX(الجدول1[اسم الطالب],MATCH(0,INDEX(COUNTIF($M$3:M542,الجدول1[اسم الطالب]),),0)),\"\")","v":""}]
[null,null,null,null,null,null,null,null,null,null,null,null,{"$f":"IFERROR(INDEX(الجدول1[اسم الطالب],MATCH(0,INDEX(COUNTIF($M$3:M543,الجدول1[اسم الطالب]),),0)),\"\")","v":""}]
[null,null,null,null,null,null,null,null,null,null,null,null,{"$f":"IFERROR(INDEX(الجدول1[اسم الطالب],MATCH(0,INDEX(COUNTIF($M$3:M544,الجدول1[اسم الطالب]),),0)),\"\")","v":""}]
[null,null,null,null,null,null,null,null,null,null,null,null,{"$f":"IFERROR(INDEX(الجدول1[اسم الطالب],MATCH(0,INDEX(COUNTIF($M$3:M545,الجدول1[اسم الطالب]),),0)),\"\")","v":""}]
[null,null,null,null,null,null,null,null,null,null,null,null,{"$f":"IFERROR(INDEX(الجدول1[اسم الطالب],MATCH(0,INDEX(COUNTIF($M$3:M546,الجدول1[اسم الطالب]),),0)),\"\")","v":""}]
[null,null,null,null,null,null,null,null,null,null,null,null,{"$f":"IFERROR(INDEX(الجدول1[اسم الطالب],MATCH(0,INDEX(COUNTIF($M$3:M547,الجدول1[اسم الطالب]),),0)),\"\")","v":""}]
[null,null,null,null,null,null,null,null,null,null,null,null,{"$f":"IFERROR(INDEX(الجدول1[اسم الطالب],MATCH(0,INDEX(COUNTIF($M$3:M548,الجدول1[اسم الطالب]),),0)),\"\")","v":""}]
[null,null,null,null,null,null,null,null,null,null,null,null,{"$f":"IFERROR(INDEX(الجدول1[اسم الطالب],MATCH(0,INDEX(COUNTIF($M$3:M549,الجدول1[اسم الطالب]),),0)),\"\")","v":""}]
[null,null,null,null,null,null,null,null,null,null,null,null,{"$f":"IFERROR(INDEX(الجدول1[اسم الطالب],MATCH(0,INDEX(COUNTIF($M$3:M550,الجدول1[اسم الطالب]),),0)),\"\")","v":""}]
[null,null,null,null,null,null,null,null,null,null,null,null,{"$f":"IFERROR(INDEX(الجدول1[اسم الطالب],MATCH(0,INDEX(COUNTIF($M$3:M551,الجدول1[اسم الطالب]),),0)),\"\")","v":""}]
[null,null,null,null,null,null,null,null,null,null,null,null,{"$f":"IFERROR(INDEX(الجدول1[اسم الطالب],MATCH(0,INDEX(COUNTIF($M$3:M552,الجدول1[اسم الطالب]),),0)),\"\")","v":""}]
[null,null,null,null,null,null,null,null,null,null,null,null,{"$f":"IFERROR(INDEX(الجدول1[اسم الطالب],MATCH(0,INDEX(COUNTIF($M$3:M553,الجدول1[اسم الطالب]),),0)),\"\")","v":""}]
[null,null,null,null,null,null,null,null,null,null,null,null,{"$f":"IFERROR(INDEX(الجدول1[اسم الطالب],MATCH(0,INDEX(COUNTIF($M$3:M554,الجدول1[اسم الطالب]),),0)),\"\")","v":""}]
[null,null,null,null,null,null,null,null,null,null,null,null,{"$f":"IFERROR(INDEX(الجدول1[اسم الطالب],MATCH(0,INDEX(COUNTIF($M$3:M555,الجدول1[اسم الطالب]),),0)),\"\")","v":""}]
[null,null,null,null,null,null,null,null,null,null,null,null,{"$f":"IFERROR(INDEX(الجدول1[اسم الطالب],MATCH(0,INDEX(COUNTIF($M$3:M556,الجدول1[اسم الطالب]),),0)),\"\")","v":""}]
[null,null,null,null,null,null,null,null,null,null,null,null,{"$f":"IFERROR(INDEX(الجدول1[اسم الطالب],MATCH(0,INDEX(COUNTIF($M$3:M557,الجدول1[اسم الطالب]),),0)),\"\")","v":""}]
[null,null,null,null,null,null,null,null,null,null,null,null,{"$f":"IFERROR(INDEX(الجدول1[اسم الطالب],MATCH(0,INDEX(COUNTIF($M$3:M558,الجدول1[اسم الطالب]),),0)),\"\")","v":""}]
[null,null,null,null,null,null,null,null,null,null,null,null,{"$f":"IFERROR(INDEX(الجدول1[اسم الطالب],MATCH(0,INDEX(COUNTIF($M$3:M559,الجدول1[اسم الطالب]),),0)),\"\")","v":""}]
[null,null,null,null,null,null,null,null,null,null,null,null,{"$f":"IFERROR(INDEX(الجدول1[اسم الطالب],MATCH(0,INDEX(COUNTIF($M$3:M560,الجدول1[اسم الطالب]),),0)),\"\")","v":""}]
[null,null,null,null,null,null,null,null,null,null,null,null,{"$f":"IFERROR(INDEX(الجدول1[اسم الطالب],MATCH(0,INDEX(COUNTIF($M$3:M561,الجدول1[اسم الطالب]),),0)),\"\")","v":""}]
[null,null,null,null,null,null,null,null,null,null,null,null,{"$f":"IFERROR(INDEX(الجدول1[اسم الطالب],MATCH(0,INDEX(COUNTIF($M$3:M562,الجدول1[اسم الطالب]),),0)),\"\")","v":""}]
[null,null,null,null,null,null,null,null,null,null,null,null,{"$f":"IFERROR(INDEX(الجدول1[اسم الطالب],MATCH(0,INDEX(COUNTIF($M$3:M563,الجدول1[اسم الطالب]),),0)),\"\")","v":""}]
[null,null,null,null,null,null,null,null,null,null,null,null,{"$f":"IFERROR(INDEX(الجدول1[اسم الطالب],MATCH(0,INDEX(COUNTIF($M$3:M564,الجدول1[اسم الطالب]),),0)),\"\")","v":""}]
[null,null,null,null,null,null,null,null,null,null,null,null,{"$f":"IFERROR(INDEX(الجدول1[اسم الطالب],MATCH(0,INDEX(COUNTIF($M$3:M565,الجدول1[اسم الطالب]),),0)),\"\")","v":""}]
[null,null,null,null,null,null,null,null,null,null,null,null,{"$f":"IFERROR(INDEX(الجدول1[اسم الطالب],MATCH(0,INDEX(COUNTIF($M$3:M566,الجدول1[اسم الطالب]),),0)),\"\")","v":""}]
[null,null,null,null,null,null,null,null,null,null,null,null,{"$f":"IFERROR(INDEX(الجدول1[اسم الطالب],MATCH(0,INDEX(COUNTIF($M$3:M567,الجدول1[اسم الطالب]),),0)),\"\")","v":""}]
[null,null,null,null,null,null,null,null,null,null,null,null,{"$f":"IFERROR(INDEX(الجدول1[اسم الطالب],MATCH(0,INDEX(COUNTIF($M$3:M568,الجدول1[اسم الطالب]),),0)),\"\")","v":""}]
[null,null,null,null,null,null,null,null,null,null,null,null,{"$f":"IFERROR(INDEX(الجدول1[اسم الطالب],MATCH(0,INDEX(COUNTIF($M$3:M569,الجدول1[اسم الطالب]),),0)),\"\")","v":""}]
[null,null,null,null,null,null,null,null,null,null,null,null,{"$f":"IFERROR(INDEX(الجدول1[اسم الطالب],MATCH(0,INDEX(COUNTIF($M$3:M570,الجدول1[اسم الطالب]),),0)),\"\")","v":""}]
[null,null,null,null,null,null,null,null,null,null,null,null,{"$f":"IFERROR(INDEX(الجدول1[اسم الطالب],MATCH(0,INDEX(COUNTIF($M$3:M571,الجدول1[اسم الطالب]),),0)),\"\")","v":""}]
[null,null,null,null,null,null,null,null,null,null,null,null,{"$f":"IFERROR(INDEX(الجدول1[اسم الطالب],MATCH(0,INDEX(COUNTIF($M$3:M572,الجدول1[اسم الطالب]),),0)),\"\")","v":""}]
[null,null,null,null,null,null,null,null,null,null,null,null,{"$f":"IFERROR(INDEX(الجدول1[اسم الطالب],MATCH(0,INDEX(COUNTIF($M$3:M573,الجدول1[اسم الطالب]),),0)),\"\")","v":""}]
[null,null,null,null,null,null,null,null,null,null,null,null,{"$f":"IFERROR(INDEX(الجدول1[اسم الطالب],MATCH(0,INDEX(COUNTIF($M$3:M574,الجدول1[اسم الطالب]),),0)),\"\")","v":""}]
[null,null,null,null,null,null,null,null,null,null,null,null,{"$f":"IFERROR(INDEX(الجدول1[اسم الطالب],MATCH(0,INDEX(COUNTIF($M$3:M575,الجدول1[اسم الطالب]),),0)),\"\")","v":""}]
[null,null,null,null,null,null,null,null,null,null,null,null,{"$f":"IFERROR(INDEX(الجدول1[اسم الطالب],MATCH(0,INDEX(COUNTIF($M$3:M576,الجدول1[اسم الطالب]),),0)),\"\")","v":""}]
[null,null,null,null,null,null,null,null,null,null,null,null,{"$f":"IFERROR(INDEX(الجدول1[اسم الطالب],MATCH(0,INDEX(COUNTIF($M$3:M577,الجدول1[اسم الطالب]),),0)),\"\")","v":""}]
[null,null,null,null,null,null,null,null,null,null,null,null,{"$f":"IFERROR(INDEX(الجدول1[اسم الطالب],MATCH(0,INDEX(COUNTIF($M$3:M578,الجدول1[اسم الطالب]),),0)),\"\")","v":""}]
[null,null,null,null,null,null,null,null,null,null,null,null,{"$f":"IFERROR(INDEX(الجدول1[اسم الطالب],MATCH(0,INDEX(COUNTIF($M$3:M579,الجدول1[اسم الطالب]),),0)),\"\")","v":""}]
[null,null,null,null,null,null,null,null,null,null,null,null,{"$f":"IFERROR(INDEX(الجدول1[اسم الطالب],MATCH(0,INDEX(COUNTIF($M$3:M580,الجدول1[اسم الطالب]),),0)),\"\")","v":""}]
[null,null,null,null,null,null,null,null,null,null,null,null,{"$f":"IFERROR(INDEX(الجدول1[اسم الطالب],MATCH(0,INDEX(COUNTIF($M$3:M581,الجدول1[اسم الطالب]),),0)),\"\")","v":""}]
[null,null,null,null,null,null,null,null,null,null,null,null,{"$f":"IFERROR(INDEX(الجدول1[اسم الطالب],MATCH(0,INDEX(COUNTIF($M$3:M582,الجدول1[اسم الطالب]),),0)),\"\")","v":""}]
[null,null,null,null,null,null,null,null,null,null,null,null,{"$f":"IFERROR(INDEX(الجدول1[اسم الطالب],MATCH(0,INDEX(COUNTIF($M$3:M583,الجدول1[اسم الطالب]),),0)),\"\")","v":""}]
[null,null,null,null,null,null,null,null,null,null,null,null,{"$f":"IFERROR(INDEX(الجدول1[اسم الطالب],MATCH(0,INDEX(COUNTIF($M$3:M584,الجدول1[اسم الطالب]),),0)),\"\")","v":""}]
[null,null,null,null,null,null,null,null,null,null,null,null,{"$f":"IFERROR(INDEX(الجدول1[اسم الطالب],MATCH(0,INDEX(COUNTIF($M$3:M585,الجدول1[اسم الطالب]),),0)),\"\")","v":""}]
[null,null,null,null,null,null,null,null,null,null,null,null,{"$f":"IFERROR(INDEX(الجدول1[اسم الطالب],MATCH(0,INDEX(COUNTIF($M$3:M586,الجدول1[اسم الطالب]),),0)),\"\")","v":""}]
[null,null,null,null,null,null,null,null,null,null,null,null,{"$f":"IFERROR(INDEX(الجدول1[اسم الطالب],MATCH(0,INDEX(COUNTIF($M$3:M587,الجدول1[اسم الطالب]),),0)),\"\")","v":""}]
[null,null,null,null,null,null,null,null,null,null,null,null,{"$f":"IFERROR(INDEX(الجدول1[اسم الطالب],MATCH(0,INDEX(COUNTIF($M$3:M588,الجدول1[اسم الطالب]),),0)),\"\")","v":""}]
[null,null,null,null,null,null,null,null,null,null,null,null,{"$f":"IFERROR(INDEX(الجدول1[اسم الطالب],MATCH(0,INDEX(COUNTIF($M$3:M589,الجدول1[اسم الطالب]),),0)),\"\")","v":""}]
[null,null,null,null,null,null,null,null,null,null,null,null,{"$f":"IFERROR(INDEX(الجدول1[اسم الطالب],MATCH(0,INDEX(COUNTIF($M$3:M590,الجدول1[اسم الطالب]),),0)),\"\")","v":""}]
[null,null,null,null,null,null,null,null,null,null,null,null,{"$f":"IFERROR(INDEX(الجدول1[اسم الطالب],MATCH(0,INDEX(COUNTIF($M$3:M591,الجدول1[اسم الطالب]),),0)),\"\")","v":""}]
[null,null,null,null,null,null,null,null,null,null,null,null,{"$f":"IFERROR(INDEX(الجدول1[اسم الطالب],MATCH(0,INDEX(COUNTIF($M$3:M592,الجدول1[اسم الطالب]),),0)),\"\")","v":""}]
[null,null,null,null,null,null,null,null,null,null,null,null,{"$f":"IFERROR(INDEX(الجدول1[اسم الطالب],MATCH(0,INDEX(COUNTIF($M$3:M593,الجدول1[اسم الطالب]),),0)),\"\")","v":""}]
[null,null,null,null,null,null,null,null,null,null,null,null,{"$f":"IFERROR(INDEX(الجدول1[اسم الطالب],MATCH(0,INDEX(COUNTIF($M$3:M594,الجدول1[اسم الطالب]),),0)),\"\")","v":""}]
[null,null,null,null,null,null,null,null,null,null,null,null,{"$f":"IFERROR(INDEX(الجدول1[اسم الطالب],MATCH(0,INDEX(COUNTIF($M$3:M595,الجدول1[اسم الطالب]),),0)),\"\")","v":""}]
[null,null,null,null,null,null,null,null,null,null,null,null,{"$f":"IFERROR(INDEX(الجدول1[اسم الطالب],MATCH(0,INDEX(COUNTIF($M$3:M596,الجدول1[اسم الطالب]),),0)),\"\")","v":""}]
[null,null,null,null,null,null,null,null,null,null,null,null,{"$f":"IFERROR(INDEX(الجدول1[اسم الطالب],MATCH(0,INDEX(COUNTIF($M$3:M597,الجدول1[اسم الطالب]),),0)),\"\")","v":""}]
[null,null,null,null,null,null,null,null,null,null,null,null,{"$f":"IFERROR(INDEX(الجدول1[اسم الطالب],MATCH(0,INDEX(COUNTIF($M$3:M598,الجدول1[اسم الطالب]),),0)),\"\")","v":""}]
[null,null,null,null,null,null,null,null,null,null,null,null,{"$f":"IFERROR(INDEX(الجدول1[اسم الطالب],MATCH(0,INDEX(COUNTIF($M$3:M599,الجدول1[اسم الطالب]),),0)),\"\")","v":""}]
[null,null,null,null,null,null,null,null,null,null,null,null,{"$f":"IFERROR(INDEX(الجدول1[اسم الطالب],MATCH(0,INDEX(COUNTIF($M$3:M600,الجدول1[اسم الطالب]),),0)),\"\")","v":""}]
[null,null,null,null,null,null,null,null,null,null,null,null,{"$f":"IFERROR(INDEX(الجدول1[اسم الطالب],MATCH(0,INDEX(COUNTIF($M$3:M601,الجدول1[اسم الطالب]),),0)),\"\")","v":""}]
[null,null,null,null,null,null,null,null,null,null,null,null,{"$f":"IFERROR(INDEX(الجدول1[اسم الطالب],MATCH(0,INDEX(COUNTIF($M$3:M602,الجدول1[اسم الطالب]),),0)),\"\")","v":""}]
[null,null,null,null,null,null,null,null,null,null,null,null,{"$f":"IFERROR(INDEX(الجدول1[اسم الطالب],MATCH(0,INDEX(COUNTIF($M$3:M603,الجدول1[اسم الطالب]),),0)),\"\")","v":""}]
[null,null,null,null,null,null,null,null,null,null,null,null,{"$f":"IFERROR(INDEX(الجدول1[اسم الطالب],MATCH(0,INDEX(COUNTIF($M$3:M604,الجدول1[اسم الطالب]),),0)),\"\")","v":""}]
[null,null,null,null,null,null,null,null,null,null,null,null,{"$f":"IFERROR(INDEX(الجدول1[اسم الطالب],MATCH(0,INDEX(COUNTIF($M$3:M605,الجدول1[اسم الطالب]),),0)),\"\")","v":""}]
[null,null,null,null,null,null,null,null,null,null,null,null,{"$f":"IFERROR(INDEX(الجدول1[اسم الطالب],MATCH(0,INDEX(COUNTIF($M$3:M606,الجدول1[اسم الطالب]),),0)),\"\")","v":""}]
[null,null,null,null,null,null,null,null,null,null,null,null,{"$f":"IFERROR(INDEX(الجدول1[اسم الطالب],MATCH(0,INDEX(COUNTIF($M$3:M607,الجدول1[اسم الطالب]),),0)),\"\")","v":""}]
[null,null,null,null,null,null,null,null,null,null,null,null,{"$f":"IFERROR(INDEX(الجدول1[اسم الطالب],MATCH(0,INDEX(COUNTIF($M$3:M608,الجدول1[اسم الطالب]),),0)),\"\")","v":""}]
[null,null,null,null,null,null,null,null,null,null,null,null,{"$f":"IFERROR(INDEX(الجدول1[اسم الطالب],MATCH(0,INDEX(COUNTIF($M$3:M609,الجدول1[اسم الطالب]),),0)),\"\")","v":""}]
[null,null,null,null,null,null,null,null,null,null,null,null,{"$f":"IFERROR(INDEX(الجدول1[اسم الطالب],MATCH(0,INDEX(COUNTIF($M$3:M610,الجدول1[اسم الطالب]),),0)),\"\")","v":""}]
[null,null,null,null,null,null,null,null,null,null,null,null,{"$f":"IFERROR(INDEX(الجدول1[اسم الطالب],MATCH(0,INDEX(COUNTIF($M$3:M611,الجدول1[اسم الطالب]),),0)),\"\")","v":""}]
[null,null,null,null,null,null,null,null,null,null,null,null,{"$f":"IFERROR(INDEX(الجدول1[اسم الطالب],MATCH(0,INDEX(COUNTIF($M$3:M612,الجدول1[اسم الطالب]),),0)),\"\")","v":""}]
[null,null,null,null,null,null,null,null,null,null,null,null,{"$f":"IFERROR(INDEX(الجدول1[اسم الطالب],MATCH(0,INDEX(COUNTIF($M$3:M613,الجدول1[اسم الطالب]),),0)),\"\")","v":""}]
[null,null,null,null,null,null,null,null,null,null,null,null,{"$f":"IFERROR(INDEX(الجدول1[اسم الطالب],MATCH(0,INDEX(COUNTIF($M$3:M614,الجدول1[اسم الطالب]),),0)),\"\")","v":""}]
[null,null,null,null,null,null,null,null,null,null,null,null,{"$f":"IFERROR(INDEX(الجدول1[اسم الطالب],MATCH(0,INDEX(COUNTIF($M$3:M615,الجدول1[اسم الطالب]),),0)),\"\")","v":""}]
[null,null,null,null,null,null,null,null,null,null,null,null,{"$f":"IFERROR(INDEX(الجدول1[اسم الطالب],MATCH(0,INDEX(COUNTIF($M$3:M616,الجدول1[اسم الطالب]),),0)),\"\")","v":""}]
[null,null,null,null,null,null,null,null,null,null,null,null,{"$f":"IFERROR(INDEX(الجدول1[اسم الطالب],MATCH(0,INDEX(COUNTIF($M$3:M617,الجدول1[اسم الطالب]),),0)),\"\")","v":""}]
[null,null,null,null,null,null,null,null,null,null,null,null,{"$f":"IFERROR(INDEX(الجدول1[اسم الطالب],MATCH(0,INDEX(COUNTIF($M$3:M618,الجدول1[اسم الطالب]),),0)),\"\")","v":""}]
[null,null,null,null,null,null,null,null,null,null,null,null,{"$f":"IFERROR(INDEX(الجدول1[اسم الطالب],MATCH(0,INDEX(COUNTIF($M$3:M619,الجدول1[اسم الطالب]),),0)),\"\")","v":""}]
[null,null,null,null,null,null,null,null,null,null,null,null,{"$f":"IFERROR(INDEX(الجدول1[اسم الطالب],MATCH(0,INDEX(COUNTIF($M$3:M620,الجدول1[اسم الطالب]),),0)),\"\")","v":""}]
[null,null,null,null,null,null,null,null,null,null,null,null,{"$f":"IFERROR(INDEX(الجدول1[اسم الطالب],MATCH(0,INDEX(COUNTIF($M$3:M621,الجدول1[اسم الطالب]),),0)),\"\")","v":""}]
[null,null,null,null,null,null,null,null,null,null,null,null,{"$f":"IFERROR(INDEX(الجدول1[اسم الطالب],MATCH(0,INDEX(COUNTIF($M$3:M622,الجدول1[اسم الطالب]),),0)),\"\")","v":""}]
[null,null,null,null,null,null,null,null,null,null,null,null,{"$f":"IFERROR(INDEX(الجدول1[اسم الطالب],MATCH(0,INDEX(COUNTIF($M$3:M623,الجدول1[اسم الطالب]),),0)),\"\")","v":""}]
[null,null,null,null,null,null,null,null,null,null,null,null,{"$f":"IFERROR(INDEX(الجدول1[اسم الطالب],MATCH(0,INDEX(COUNTIF($M$3:M624,الجدول1[اسم الطالب]),),0)),\"\")","v":""}]
[null,null,null,null,null,null,null,null,null,null,null,null,{"$f":"IFERROR(INDEX(الجدول1[اسم الطالب],MATCH(0,INDEX(COUNTIF($M$3:M625,الجدول1[اسم الطالب]),),0)),\"\")","v":""}]
[null,null,null,null,null,null,null,null,null,null,null,null,{"$f":"IFERROR(INDEX(الجدول1[اسم الطالب],MATCH(0,INDEX(COUNTIF($M$3:M626,الجدول1[اسم الطالب]),),0)),\"\")","v":""}]
[null,null,null,null,null,null,null,null,null,null,null,null,{"$f":"IFERROR(INDEX(الجدول1[اسم الطالب],MATCH(0,INDEX(COUNTIF($M$3:M627,الجدول1[اسم الطالب]),),0)),\"\")","v":""}]
[null,null,null,null,null,null,null,null,null,null,null,null,{"$f":"IFERROR(INDEX(الجدول1[اسم الطالب],MATCH(0,INDEX(COUNTIF($M$3:M628,الجدول1[اسم الطالب]),),0)),\"\")","v":""}]
[null,null,null,null,null,null,null,null,null,null,null,null,{"$f":"IFERROR(INDEX(الجدول1[اسم الطالب],MATCH(0,INDEX(COUNTIF($M$3:M629,الجدول1[اسم الطالب]),),0)),\"\")","v":""}]
[null,null,null,null,null,null,null,null,null,null,null,null,{"$f":"IFERROR(INDEX(الجدول1[اسم الطالب],MATCH(0,INDEX(COUNTIF($M$3:M630,الجدول1[اسم الطالب]),),0)),\"\")","v":""}]
[null,null,null,null,null,null,null,null,null,null,null,null,{"$f":"IFERROR(INDEX(الجدول1[اسم الطالب],MATCH(0,INDEX(COUNTIF($M$3:M631,الجدول1[اسم الطالب]),),0)),\"\")","v":""}]
[null,null,null,null,null,null,null,null,null,null,null,null,{"$f":"IFERROR(INDEX(الجدول1[اسم الطالب],MATCH(0,INDEX(COUNTIF($M$3:M632,الجدول1[اسم الطالب]),),0)),\"\")","v":""}]
[null,null,null,null,null,null,null,null,null,null,null,null,{"$f":"IFERROR(INDEX(الجدول1[اسم الطالب],MATCH(0,INDEX(COUNTIF($M$3:M633,الجدول1[اسم الطالب]),),0)),\"\")","v":""}]
[null,null,null,null,null,null,null,null,null,null,null,null,{"$f":"IFERROR(INDEX(الجدول1[اسم الطالب],MATCH(0,INDEX(COUNTIF($M$3:M634,الجدول1[اسم الطالب]),),0)),\"\")","v":""}]
[null,null,null,null,null,null,null,null,null,null,null,null,{"$f":"IFERROR(INDEX(الجدول1[اسم الطالب],MATCH(0,INDEX(COUNTIF($M$3:M635,الجدول1[اسم الطالب]),),0)),\"\")","v":""}]
[null,null,null,null,null,null,null,null,null,null,null,null,{"$f":"IFERROR(INDEX(الجدول1[اسم الطالب],MATCH(0,INDEX(COUNTIF($M$3:M636,الجدول1[اسم الطالب]),),0)),\"\")","v":""}]
[null,null,null,null,null,null,null,null,null,null,null,null,{"$f":"IFERROR(INDEX(الجدول1[اسم الطالب],MATCH(0,INDEX(COUNTIF($M$3:M637,الجدول1[اسم الطالب]),),0)),\"\")","v":""}]
[null,null,null,null,null,null,null,null,null,null,null,null,{"$f":"IFERROR(INDEX(الجدول1[اسم الطالب],MATCH(0,INDEX(COUNTIF($M$3:M638,الجدول1[اسم الطالب]),),0)),\"\")","v":""}]
[null,null,null,null,null,null,null,null,null,null,null,null,{"$f":"IFERROR(INDEX(الجدول1[اسم الطالب],MATCH(0,INDEX(COUNTIF($M$3:M639,الجدول1[اسم الطالب]),),0)),\"\")","v":""}]
[null,null,null,null,null,null,null,null,null,null,null,null,{"$f":"IFERROR(INDEX(الجدول1[اسم الطالب],MATCH(0,INDEX(COUNTIF($M$3:M640,الجدول1[اسم الطالب]),),0)),\"\")","v":""}]
[null,null,null,null,null,null,null,null,null,null,null,null,{"$f":"IFERROR(INDEX(الجدول1[اسم الطالب],MATCH(0,INDEX(COUNTIF($M$3:M641,الجدول1[اسم الطالب]),),0)),\"\")","v":""}]
[null,null,null,null,null,null,null,null,null,null,null,null,{"$f":"IFERROR(INDEX(الجدول1[اسم الطالب],MATCH(0,INDEX(COUNTIF($M$3:M642,الجدول1[اسم الطالب]),),0)),\"\")","v":""}]
[null,null,null,null,null,null,null,null,null,null,null,null,{"$f":"IFERROR(INDEX(الجدول1[اسم الطالب],MATCH(0,INDEX(COUNTIF($M$3:M643,الجدول1[اسم الطالب]),),0)),\"\")","v":""}]
[null,null,null,null,null,null,null,null,null,null,null,null,{"$f":"IFERROR(INDEX(الجدول1[اسم الطالب],MATCH(0,INDEX(COUNTIF($M$3:M644,الجدول1[اسم الطالب]),),0)),\"\")","v":""}]
[null,null,null,null,null,null,null,null,null,null,null,null,{"$f":"IFERROR(INDEX(الجدول1[اسم الطالب],MATCH(0,INDEX(COUNTIF($M$3:M645,الجدول1[اسم الطالب]),),0)),\"\")","v":""}]
[null,null,null,null,null,null,null,null,null,null,null,null,{"$f":"IFERROR(INDEX(الجدول1[اسم الطالب],MATCH(0,INDEX(COUNTIF($M$3:M646,الجدول1[اسم الطالب]),),0)),\"\")","v":""}]
[null,null,null,null,null,null,null,null,null,null,null,null,{"$f":"IFERROR(INDEX(الجدول1[اسم الطالب],MATCH(0,INDEX(COUNTIF($M$3:M647,الجدول1[اسم الطالب]),),0)),\"\")","v":""}]
[null,null,null,null,null,null,null,null,null,null,null,null,{"$f":"IFERROR(INDEX(الجدول1[اسم الطالب],MATCH(0,INDEX(COUNTIF($M$3:M648,الجدول1[اسم الطالب]),),0)),\"\")","v":""}]
[null,null,null,null,null,null,null,null,null,null,null,null,{"$f":"IFERROR(INDEX(الجدول1[اسم الطالب],MATCH(0,INDEX(COUNTIF($M$3:M649,الجدول1[اسم الطالب]),),0)),\"\")","v":""}]
[null,null,null,null,null,null,null,null,null,null,null,null,{"$f":"IFERROR(INDEX(الجدول1[اسم الطالب],MATCH(0,INDEX(COUNTIF($M$3:M650,الجدول1[اسم الطالب]),),0)),\"\")","v":""}]
[null,null,null,null,null,null,null,null,null,null,null,null,{"$f":"IFERROR(INDEX(الجدول1[اسم الطالب],MATCH(0,INDEX(COUNTIF($M$3:M651,الجدول1[اسم الطالب]),),0)),\"\")","v":""}]
[null,null,null,null,null,null,null,null,null,null,null,null,{"$f":"IFERROR(INDEX(الجدول1[اسم الطالب],MATCH(0,INDEX(COUNTIF($M$3:M652,الجدول1[اسم الطالب]),),0)),\"\")","v":""}]
[null,null,null,null,null,null,null,null,null,null,null,null,{"$f":"IFERROR(INDEX(الجدول1[اسم الطالب],MATCH(0,INDEX(COUNTIF($M$3:M653,الجدول1[اسم الطالب]),),0)),\"\")","v":""}]
[null,null,null,null,null,null,null,null,null,null,null,null,{"$f":"IFERROR(INDEX(الجدول1[اسم الطالب],MATCH(0,INDEX(COUNTIF($M$3:M654,الجدول1[اسم الطالب]),),0)),\"\")","v":""}]
[null,null,null,null,null,null,null,null,null,null,null,null,{"$f":"IFERROR(INDEX(الجدول1[اسم الطالب],MATCH(0,INDEX(COUNTIF($M$3:M655,الجدول1[اسم الطالب]),),0)),\"\")","v":""}]
[null,null,null,null,null,null,null,null,null,null,null,null,{"$f":"IFERROR(INDEX(الجدول1[اسم الطالب],MATCH(0,INDEX(COUNTIF($M$3:M656,الجدول1[اسم الطالب]),),0)),\"\")","v":""}]
[null,null,null,null,null,null,null,null,null,null,null,null,{"$f":"IFERROR(INDEX(الجدول1[اسم الطالب],MATCH(0,INDEX(COUNTIF($M$3:M657,الجدول1[اسم الطالب]),),0)),\"\")","v":""}]
[null,null,null,null,null,null,null,null,null,null,null,null,{"$f":"IFERROR(INDEX(الجدول1[اسم الطالب],MATCH(0,INDEX(COUNTIF($M$3:M658,الجدول1[اسم الطالب]),),0)),\"\")","v":""}]
[null,null,null,null,null,null,null,null,null,null,null,null,{"$f":"IFERROR(INDEX(الجدول1[اسم الطالب],MATCH(0,INDEX(COUNTIF($M$3:M659,الجدول1[اسم الطالب]),),0)),\"\")","v":""}]
[null,null,null,null,null,null,null,null,null,null,null,null,{"$f":"IFERROR(INDEX(الجدول1[اسم الطالب],MATCH(0,INDEX(COUNTIF($M$3:M660,الجدول1[اسم الطالب]),),0)),\"\")","v":""}]
[null,null,null,null,null,null,null,null,null,null,null,null,{"$f":"IFERROR(INDEX(الجدول1[اسم الطالب],MATCH(0,INDEX(COUNTIF($M$3:M661,الجدول1[اسم الطالب]),),0)),\"\")","v":""}]
[null,null,null,null,null,null,null,null,null,null,null,null,{"$f":"IFERROR(INDEX(الجدول1[اسم الطالب],MATCH(0,INDEX(COUNTIF($M$3:M662,الجدول1[اسم الطالب]),),0)),\"\")","v":""}]
[null,null,null,null,null,null,null,null,null,null,null,null,{"$f":"IFERROR(INDEX(الجدول1[اسم الطالب],MATCH(0,INDEX(COUNTIF($M$3:M663,الجدول1[اسم الطالب]),),0)),\"\")","v":""}]
[null,null,null,null,null,null,null,null,null,null,null,null,{"$f":"IFERROR(INDEX(الجدول1[اسم الطالب],MATCH(0,INDEX(COUNTIF($M$3:M664,الجدول1[اسم الطالب]),),0)),\"\")","v":""}]
[null,null,null,null,null,null,null,null,null,null,null,null,{"$f":"IFERROR(INDEX(الجدول1[اسم الطالب],MATCH(0,INDEX(COUNTIF($M$3:M665,الجدول1[اسم الطالب]),),0)),\"\")","v":""}]
[null,null,null,null,null,null,null,null,null,null,null,null,{"$f":"IFERROR(INDEX(الجدول1[اسم الطالب],MATCH(0,INDEX(COUNTIF($M$3:M666,الجدول1[اسم الطالب]),),0)),\"\")","v":""}]
[null,null,null,null,null,null,null,null,null,null,null,null,{"$f":"IFERROR(INDEX(الجدول1[اسم الطالب],MATCH(0,INDEX(COUNTIF($M$3:M667,الجدول1[اسم الطالب]),),0)),\"\")","v":""}]
[null,null,null,null,null,null,null,null,null,null,null,null,{"$f":"IFERROR(INDEX(الجدول1[اسم الطالب],MATCH(0,INDEX(COUNTIF($M$3:M668,الجدول1[اسم الطالب]),),0)),\"\")","v":""}]
[null,null,null,null,null,null,null,null,null,null,null,null,{"$f":"IFERROR(INDEX(الجدول1[اسم الطالب],MATCH(0,INDEX(COUNTIF($M$3:M669,الجدول1[اسم الطالب]),),0)),\"\")","v":""}]
[null,null,null,null,null,null,null,null,null,null,null,null,{"$f":"IFERROR(INDEX(الجدول1[اسم الطالب],MATCH(0,INDEX(COUNTIF($M$3:M670,الجدول1[اسم الطالب]),),0)),\"\")","v":""}]
[null,null,null,null,null,null,null,null,null,null,null,null,{"$f":"IFERROR(INDEX(الجدول1[اسم الطالب],MATCH(0,INDEX(COUNTIF($M$3:M671,الجدول1[اسم الطالب]),),0)),\"\")","v":""}]
[null,null,null,null,null,null,null,null,null,null,null,null,{"$f":"IFERROR(INDEX(الجدول1[اسم الطالب],MATCH(0,INDEX(COUNTIF($M$3:M672,الجدول1[اسم الطالب]),),0)),\"\")","v":""}]
[null,null,null,null,null,null,null,null,null,null,null,null,{"$f":"IFERROR(INDEX(الجدول1[اسم الطالب],MATCH(0,INDEX(COUNTIF($M$3:M673,الجدول1[اسم الطالب]),),0)),\"\")","v":""}]
[null,null,null,null,null,null,null,null,null,null,null,null,{"$f":"IFERROR(INDEX(الجدول1[اسم الطالب],MATCH(0,INDEX(COUNTIF($M$3:M674,الجدول1[اسم الطالب]),),0)),\"\")","v":""}]
[null,null,null,null,null,null,null,null,null,null,null,null,{"$f":"IFERROR(INDEX(الجدول1[اسم الطالب],MATCH(0,INDEX(COUNTIF($M$3:M675,الجدول1[اسم الطالب]),),0)),\"\")","v":""}]
[null,null,null,null,null,null,null,null,null,null,null,null,{"$f":"IFERROR(INDEX(الجدول1[اسم الطالب],MATCH(0,INDEX(COUNTIF($M$3:M676,الجدول1[اسم الطالب]),),0)),\"\")","v":""}]
[null,null,null,null,null,null,null,null,null,null,null,null,{"$f":"IFERROR(INDEX(الجدول1[اسم الطالب],MATCH(0,INDEX(COUNTIF($M$3:M677,الجدول1[اسم الطالب]),),0)),\"\")","v":""}]
[null,null,null,null,null,null,null,null,null,null,null,null,{"$f":"IFERROR(INDEX(الجدول1[اسم الطالب],MATCH(0,INDEX(COUNTIF($M$3:M678,الجدول1[اسم الطالب]),),0)),\"\")","v":""}]
[null,null,null,null,null,null,null,null,null,null,null,null,{"$f":"IFERROR(INDEX(الجدول1[اسم الطالب],MATCH(0,INDEX(COUNTIF($M$3:M679,الجدول1[اسم الطالب]),),0)),\"\")","v":""}]
[null,null,null,null,null,null,null,null,null,null,null,null,{"$f":"IFERROR(INDEX(الجدول1[اسم الطالب],MATCH(0,INDEX(COUNTIF($M$3:M680,الجدول1[اسم الطالب]),),0)),\"\")","v":""}]
[null,null,null,null,null,null,null,null,null,null,null,null,{"$f":"IFERROR(INDEX(الجدول1[اسم الطالب],MATCH(0,INDEX(COUNTIF($M$3:M681,الجدول1[اسم الطالب]),),0)),\"\")","v":""}]
[null,null,null,null,null,null,null,null,null,null,null,null,{"$f":"IFERROR(INDEX(الجدول1[اسم الطالب],MATCH(0,INDEX(COUNTIF($M$3:M682,الجدول1[اسم الطالب]),),0)),\"\")","v":""}]
[null,null,null,null,null,null,null,null,null,null,null,null,{"$f":"IFERROR(INDEX(الجدول1[اسم الطالب],MATCH(0,INDEX(COUNTIF($M$3:M683,الجدول1[اسم الطالب]),),0)),\"\")","v":""}]
[null,null,null,null,null,null,null,null,null,null,null,null,{"$f":"IFERROR(INDEX(الجدول1[اسم الطالب],MATCH(0,INDEX(COUNTIF($M$3:M684,الجدول1[اسم الطالب]),),0)),\"\")","v":""}]
[null,null,null,null,null,null,null,null,null,null,null,null,{"$f":"IFERROR(INDEX(الجدول1[اسم الطالب],MATCH(0,INDEX(COUNTIF($M$3:M685,الجدول1[اسم الطالب]),),0)),\"\")","v":""}]
[null,null,null,null,null,null,null,null,null,null,null,null,{"$f":"IFERROR(INDEX(الجدول1[اسم الطالب],MATCH(0,INDEX(COUNTIF($M$3:M686,الجدول1[اسم الطالب]),),0)),\"\")","v":""}]
[null,null,null,null,null,null,null,null,null,null,null,null,{"$f":"IFERROR(INDEX(الجدول1[اسم الطالب],MATCH(0,INDEX(COUNTIF($M$3:M687,الجدول1[اسم الطالب]),),0)),\"\")","v":""}]
[null,null,null,null,null,null,null,null,null,null,null,null,{"$f":"IFERROR(INDEX(الجدول1[اسم الطالب],MATCH(0,INDEX(COUNTIF($M$3:M688,الجدول1[اسم الطالب]),),0)),\"\")","v":""}]
[null,null,null,null,null,null,null,null,null,null,null,null,{"$f":"IFERROR(INDEX(الجدول1[اسم الطالب],MATCH(0,INDEX(COUNTIF($M$3:M689,الجدول1[اسم الطالب]),),0)),\"\")","v":""}]
[null,null,null,null,null,null,null,null,null,null,null,null,{"$f":"IFERROR(INDEX(الجدول1[اسم الطالب],MATCH(0,INDEX(COUNTIF($M$3:M690,الجدول1[اسم الطالب]),),0)),\"\")","v":""}]
[null,null,null,null,null,null,null,null,null,null,null,null,{"$f":"IFERROR(INDEX(الجدول1[اسم الطالب],MATCH(0,INDEX(COUNTIF($M$3:M691,الجدول1[اسم الطالب]),),0)),\"\")","v":""}]
[null,null,null,null,null,null,null,null,null,null,null,null,{"$f":"IFERROR(INDEX(الجدول1[اسم الطالب],MATCH(0,INDEX(COUNTIF($M$3:M692,الجدول1[اسم الطالب]),),0)),\"\")","v":""}]
[null,null,null,null,null,null,null,null,null,null,null,null,{"$f":"IFERROR(INDEX(الجدول1[اسم الطالب],MATCH(0,INDEX(COUNTIF($M$3:M693,الجدول1[اسم الطالب]),),0)),\"\")","v":""}]
[null,null,null,null,null,null,null,null,null,null,null,null,{"$f":"IFERROR(INDEX(الجدول1[اسم الطالب],MATCH(0,INDEX(COUNTIF($M$3:M694,الجدول1[اسم الطالب]),),0)),\"\")","v":""}]
[null,null,null,null,null,null,null,null,null,null,null,null,{"$f":"IFERROR(INDEX(الجدول1[اسم الطالب],MATCH(0,INDEX(COUNTIF($M$3:M695,الجدول1[اسم الطالب]),),0)),\"\")","v":""}]
[null,null,null,null,null,null,null,null,null,null,null,null,{"$f":"IFERROR(INDEX(الجدول1[اسم الطالب],MATCH(0,INDEX(COUNTIF($M$3:M696,الجدول1[اسم الطالب]),),0)),\"\")","v":""}]
[null,null,null,null,null,null,null,null,null,null,null,null,{"$f":"IFERROR(INDEX(الجدول1[اسم الطالب],MATCH(0,INDEX(COUNTIF($M$3:M697,الجدول1[اسم الطالب]),),0)),\"\")","v":""}]
[null,null,null,null,null,null,null,null,null,null,null,null,{"$f":"IFERROR(INDEX(الجدول1[اسم الطالب],MATCH(0,INDEX(COUNTIF($M$3:M698,الجدول1[اسم الطالب]),),0)),\"\")","v":""}]
[null,null,null,null,null,null,null,null,null,null,null,null,{"$f":"IFERROR(INDEX(الجدول1[اسم الطالب],MATCH(0,INDEX(COUNTIF($M$3:M699,الجدول1[اسم الطالب]),),0)),\"\")","v":""}]
[null,null,null,null,null,null,null,null,null,null,null,null,{"$f":"IFERROR(INDEX(الجدول1[اسم الطالب],MATCH(0,INDEX(COUNTIF($M$3:M700,الجدول1[اسم الطالب]),),0)),\"\")","v":""}]
[null,null,null,null,null,null,null,null,null,null,null,null,{"$f":"IFERROR(INDEX(الجدول1[اسم الطالب],MATCH(0,INDEX(COUNTIF($M$3:M701,الجدول1[اسم الطالب]),),0)),\"\")","v":""}]
[null,null,null,null,null,null,null,null,null,null,null,null,{"$f":"IFERROR(INDEX(الجدول1[اسم الطالب],MATCH(0,INDEX(COUNTIF($M$3:M702,الجدول1[اسم الطالب]),),0)),\"\")","v":""}]
[null,null,null,null,null,null,null,null,null,null,null,null,{"$f":"IFERROR(INDEX(الجدول1[اسم الطالب],MATCH(0,INDEX(COUNTIF($M$3:M703,الجدول1[اسم الطالب]),),0)),\"\")","v":""}]
[null,null,null,null,null,null,null,null,null,null,null,null,{"$f":"IFERROR(INDEX(الجدول1[اسم الطالب],MATCH(0,INDEX(COUNTIF($M$3:M704,الجدول1[اسم الطالب]),),0)),\"\")","v":""}]
[null,null,null,null,null,null,null,null,null,null,null,null,{"$f":"IFERROR(INDEX(الجدول1[اسم الطالب],MATCH(0,INDEX(COUNTIF($M$3:M705,الجدول1[اسم الطالب]),),0)),\"\")","v":""}]
[null,null,null,null,null,null,null,null,null,null,null,null,{"$f":"IFERROR(INDEX(الجدول1[اسم الطالب],MATCH(0,INDEX(COUNTIF($M$3:M706,الجدول1[اسم الطالب]),),0)),\"\")","v":""}]
[null,null,null,null,null,null,null,null,null,null,null,null,{"$f":"IFERROR(INDEX(الجدول1[اسم الطالب],MATCH(0,INDEX(COUNTIF($M$3:M707,الجدول1[اسم الطالب]),),0)),\"\")","v":""}]
[null,null,null,null,null,null,null,null,null,null,null,null,{"$f":"IFERROR(INDEX(الجدول1[اسم الطالب],MATCH(0,INDEX(COUNTIF($M$3:M708,الجدول1[اسم الطالب]),),0)),\"\")","v":""}]
[null,null,null,null,null,null,null,null,null,null,null,null,{"$f":"IFERROR(INDEX(الجدول1[اسم الطالب],MATCH(0,INDEX(COUNTIF($M$3:M709,الجدول1[اسم الطالب]),),0)),\"\")","v":""}]
[null,null,null,null,null,null,null,null,null,null,null,null,{"$f":"IFERROR(INDEX(الجدول1[اسم الطالب],MATCH(0,INDEX(COUNTIF($M$3:M710,الجدول1[اسم الطالب]),),0)),\"\")","v":""}]
[null,null,null,null,null,null,null,null,null,null,null,null,{"$f":"IFERROR(INDEX(الجدول1[اسم الطالب],MATCH(0,INDEX(COUNTIF($M$3:M711,الجدول1[اسم الطالب]),),0)),\"\")","v":""}]
[null,null,null,null,null,null,null,null,null,null,null,null,{"$f":"IFERROR(INDEX(الجدول1[اسم الطالب],MATCH(0,INDEX(COUNTIF($M$3:M712,الجدول1[اسم الطالب]),),0)),\"\")","v":""}]
[null,null,null,null,null,null,null,null,null,null,null,null,{"$f":"IFERROR(INDEX(الجدول1[اسم الطالب],MATCH(0,INDEX(COUNTIF($M$3:M713,الجدول1[اسم الطالب]),),0)),\"\")","v":""}]
[null,null,null,null,null,null,null,null,null,null,null,null,{"$f":"IFERROR(INDEX(الجدول1[اسم الطالب],MATCH(0,INDEX(COUNTIF($M$3:M714,الجدول1[اسم الطالب]),),0)),\"\")","v":""}]
[null,null,null,null,null,null,null,null,null,null,null,null,{"$f":"IFERROR(INDEX(الجدول1[اسم الطالب],MATCH(0,INDEX(COUNTIF($M$3:M715,الجدول1[اسم الطالب]),),0)),\"\")","v":""}]
[null,null,null,null,null,null,null,null,null,null,null,null,{"$f":"IFERROR(INDEX(الجدول1[اسم الطالب],MATCH(0,INDEX(COUNTIF($M$3:M716,الجدول1[اسم الطالب]),),0)),\"\")","v":""}]
[null,null,null,null,null,null,null,null,null,null,null,null,{"$f":"IFERROR(INDEX(الجدول1[اسم الطالب],MATCH(0,INDEX(COUNTIF($M$3:M717,الجدول1[اسم الطالب]),),0)),\"\")","v":""}]
[null,null,null,null,null,null,null,null,null,null,null,null,{"$f":"IFERROR(INDEX(الجدول1[اسم الطالب],MATCH(0,INDEX(COUNTIF($M$3:M718,الجدول1[اسم الطالب]),),0)),\"\")","v":""}]
[null,null,null,null,null,null,null,null,null,null,null,null,{"$f":"IFERROR(INDEX(الجدول1[اسم الطالب],MATCH(0,INDEX(COUNTIF($M$3:M719,الجدول1[اسم الطالب]),),0)),\"\")","v":""}]
[null,null,null,null,null,null,null,null,null,null,null,null,{"$f":"IFERROR(INDEX(الجدول1[اسم الطالب],MATCH(0,INDEX(COUNTIF($M$3:M720,الجدول1[اسم الطالب]),),0)),\"\")","v":""}]
[null,null,null,null,null,null,null,null,null,null,null,null,{"$f":"IFERROR(INDEX(الجدول1[اسم الطالب],MATCH(0,INDEX(COUNTIF($M$3:M721,الجدول1[اسم الطالب]),),0)),\"\")","v":""}]
[null,null,null,null,null,null,null,null,null,null,null,null,{"$f":"IFERROR(INDEX(الجدول1[اسم الطالب],MATCH(0,INDEX(COUNTIF($M$3:M722,الجدول1[اسم الطالب]),),0)),\"\")","v":""}]
[null,null,null,null,null,null,null,null,null,null,null,null,{"$f":"IFERROR(INDEX(الجدول1[اسم الطالب],MATCH(0,INDEX(COUNTIF($M$3:M723,الجدول1[اسم الطالب]),),0)),\"\")","v":""}]
[null,null,null,null,null,null,null,null,null,null,null,null,{"$f":"IFERROR(INDEX(الجدول1[اسم الطالب],MATCH(0,INDEX(COUNTIF($M$3:M724,الجدول1[اسم الطالب]),),0)),\"\")","v":""}]
[null,null,null,null,null,null,null,null,null,null,null,null,{"$f":"IFERROR(INDEX(الجدول1[اسم الطالب],MATCH(0,INDEX(COUNTIF($M$3:M725,الجدول1[اسم الطالب]),),0)),\"\")","v":""}]
[null,null,null,null,null,null,null,null,null,null,null,null,{"$f":"IFERROR(INDEX(الجدول1[اسم الطالب],MATCH(0,INDEX(COUNTIF($M$3:M726,الجدول1[اسم الطالب]),),0)),\"\")","v":""}]
[null,null,null,null,null,null,null,null,null,null,null,null,{"$f":"IFERROR(INDEX(الجدول1[اسم الطالب],MATCH(0,INDEX(COUNTIF($M$3:M727,الجدول1[اسم الطالب]),),0)),\"\")","v":""}]
[null,null,null,null,null,null,null,null,null,null,null,null,{"$f":"IFERROR(INDEX(الجدول1[اسم الطالب],MATCH(0,INDEX(COUNTIF($M$3:M728,الجدول1[اسم الطالب]),),0)),\"\")","v":""}]
[null,null,null,null,null,null,null,null,null,null,null,null,{"$f":"IFERROR(INDEX(الجدول1[اسم الطالب],MATCH(0,INDEX(COUNTIF($M$3:M729,الجدول1[اسم الطالب]),),0)),\"\")","v":""}]
[null,null,null,null,null,null,null,null,null,null,null,null,{"$f":"IFERROR(INDEX(الجدول1[اسم الطالب],MATCH(0,INDEX(COUNTIF($M$3:M730,الجدول1[اسم الطالب]),),0)),\"\")","v":""}]
[null,null,null,null,null,null,null,null,null,null,null,null,{"$f":"IFERROR(INDEX(الجدول1[اسم الطالب],MATCH(0,INDEX(COUNTIF($M$3:M731,الجدول1[اسم الطالب]),),0)),\"\")","v":""}]
[null,null,null,null,null,null,null,null,null,null,null,null,{"$f":"IFERROR(INDEX(الجدول1[اسم الطالب],MATCH(0,INDEX(COUNTIF($M$3:M732,الجدول1[اسم الطالب]),),0)),\"\")","v":""}]
[null,null,null,null,null,null,null,null,null,null,null,null,{"$f":"IFERROR(INDEX(الجدول1[اسم الطالب],MATCH(0,INDEX(COUNTIF($M$3:M733,الجدول1[اسم الطالب]),),0)),\"\")","v":""}]
[null,null,null,null,null,null,null,null,null,null,null,null,{"$f":"IFERROR(INDEX(الجدول1[اسم الطالب],MATCH(0,INDEX(COUNTIF($M$3:M734,الجدول1[اسم الطالب]),),0)),\"\")","v":""}]
[null,null,null,null,null,null,null,null,null,null,null,null,{"$f":"IFERROR(INDEX(الجدول1[اسم الطالب],MATCH(0,INDEX(COUNTIF($M$3:M735,الجدول1[اسم الطالب]),),0)),\"\")","v":""}]
[null,null,null,null,null,null,null,null,null,null,null,null,{"$f":"IFERROR(INDEX(الجدول1[اسم الطالب],MATCH(0,INDEX(COUNTIF($M$3:M736,الجدول1[اسم الطالب]),),0)),\"\")","v":""}]
[null,null,null,null,null,null,null,null,null,null,null,null,{"$f":"IFERROR(INDEX(الجدول1[اسم الطالب],MATCH(0,INDEX(COUNTIF($M$3:M737,الجدول1[اسم الطالب]),),0)),\"\")","v":""}]
[null,null,null,null,null,null,null,null,null,null,null,null,{"$f":"IFERROR(INDEX(الجدول1[اسم الطالب],MATCH(0,INDEX(COUNTIF($M$3:M738,الجدول1[اسم الطالب]),),0)),\"\")","v":""}]
[null,null,null,null,null,null,null,null,null,null,null,null,{"$f":"IFERROR(INDEX(الجدول1[اسم الطالب],MATCH(0,INDEX(COUNTIF($M$3:M739,الجدول1[اسم الطالب]),),0)),\"\")","v":""}]
[null,null,null,null,null,null,null,null,null,null,null,null,{"$f":"IFERROR(INDEX(الجدول1[اسم الطالب],MATCH(0,INDEX(COUNTIF($M$3:M740,الجدول1[اسم الطالب]),),0)),\"\")","v":""}]
[null,null,null,null,null,null,null,null,null,null,null,null,{"$f":"IFERROR(INDEX(الجدول1[اسم الطالب],MATCH(0,INDEX(COUNTIF($M$3:M741,الجدول1[اسم الطالب]),),0)),\"\")","v":""}]
[null,null,null,null,null,null,null,null,null,null,null,null,{"$f":"IFERROR(INDEX(الجدول1[اسم الطالب],MATCH(0,INDEX(COUNTIF($M$3:M742,الجدول1[اسم الطالب]),),0)),\"\")","v":""}]
[null,null,null,null,null,null,null,null,null,null,null,null,{"$f":"IFERROR(INDEX(الجدول1[اسم الطالب],MATCH(0,INDEX(COUNTIF($M$3:M743,الجدول1[اسم الطالب]),),0)),\"\")","v":""}]
[null,null,null,null,null,null,null,null,null,null,null,null,{"$f":"IFERROR(INDEX(الجدول1[اسم الطالب],MATCH(0,INDEX(COUNTIF($M$3:M744,الجدول1[اسم الطالب]),),0)),\"\")","v":""}]
[null,null,null,null,null,null,null,null,null,null,null,null,{"$f":"IFERROR(INDEX(الجدول1[اسم الطالب],MATCH(0,INDEX(COUNTIF($M$3:M745,الجدول1[اسم الطالب]),),0)),\"\")","v":""}]
[null,null,null,null,null,null,null,null,null,null,null,null,{"$f":"IFERROR(INDEX(الجدول1[اسم الطالب],MATCH(0,INDEX(COUNTIF($M$3:M746,الجدول1[اسم الطالب]),),0)),\"\")","v":""}]
[null,null,null,null,null,null,null,null,null,null,null,null,{"$f":"IFERROR(INDEX(الجدول1[اسم الطالب],MATCH(0,INDEX(COUNTIF($M$3:M747,الجدول1[اسم الطالب]),),0)),\"\")","v":""}]
[null,null,null,null,null,null,null,null,null,null,null,null,{"$f":"IFERROR(INDEX(الجدول1[اسم الطالب],MATCH(0,INDEX(COUNTIF($M$3:M748,الجدول1[اسم الطالب]),),0)),\"\")","v":""}]
[null,null,null,null,null,null,null,null,null,null,null,null,{"$f":"IFERROR(INDEX(الجدول1[اسم الطالب],MATCH(0,INDEX(COUNTIF($M$3:M749,الجدول1[اسم الطالب]),),0)),\"\")","v":""}]
[null,null,null,null,null,null,null,null,null,null,null,null,{"$f":"IFERROR(INDEX(الجدول1[اسم الطالب],MATCH(0,INDEX(COUNTIF($M$3:M750,الجدول1[اسم الطالب]),),0)),\"\")","v":""}]
[null,null,null,null,null,null,null,null,null,null,null,null,{"$f":"IFERROR(INDEX(الجدول1[اسم الطالب],MATCH(0,INDEX(COUNTIF($M$3:M751,الجدول1[اسم الطالب]),),0)),\"\")","v":""}]
[null,null,null,null,null,null,null,null,null,null,null,null,{"$f":"IFERROR(INDEX(الجدول1[اسم الطالب],MATCH(0,INDEX(COUNTIF($M$3:M752,الجدول1[اسم الطالب]),),0)),\"\")","v":""}]
[null,null,null,null,null,null,null,null,null,null,null,null,{"$f":"IFERROR(INDEX(الجدول1[اسم الطالب],MATCH(0,INDEX(COUNTIF($M$3:M753,الجدول1[اسم الطالب]),),0)),\"\")","v":""}]
[null,null,null,null,null,null,null,null,null,null,null,null,{"$f":"IFERROR(INDEX(الجدول1[اسم الطالب],MATCH(0,INDEX(COUNTIF($M$3:M754,الجدول1[اسم الطالب]),),0)),\"\")","v":""}]
[null,null,null,null,null,null,null,null,null,null,null,null,{"$f":"IFERROR(INDEX(الجدول1[اسم الطالب],MATCH(0,INDEX(COUNTIF($M$3:M755,الجدول1[اسم الطالب]),),0)),\"\")","v":""}]
[null,null,null,null,null,null,null,null,null,null,null,null,{"$f":"IFERROR(INDEX(الجدول1[اسم الطالب],MATCH(0,INDEX(COUNTIF($M$3:M756,الجدول1[اسم الطالب]),),0)),\"\")","v":""}]
[null,null,null,null,null,null,null,null,null,null,null,null,{"$f":"IFERROR(INDEX(الجدول1[اسم الطالب],MATCH(0,INDEX(COUNTIF($M$3:M757,الجدول1[اسم الطالب]),),0)),\"\")","v":""}]
[null,null,null,null,null,null,null,null,null,null,null,null,{"$f":"IFERROR(INDEX(الجدول1[اسم الطالب],MATCH(0,INDEX(COUNTIF($M$3:M758,الجدول1[اسم الطالب]),),0)),\"\")","v":""}]
[null,null,null,null,null,null,null,null,null,null,null,null,{"$f":"IFERROR(INDEX(الجدول1[اسم الطالب],MATCH(0,INDEX(COUNTIF($M$3:M759,الجدول1[اسم الطالب]),),0)),\"\")","v":""}]
[null,null,null,null,null,null,null,null,null,null,null,null,{"$f":"IFERROR(INDEX(الجدول1[اسم الطالب],MATCH(0,INDEX(COUNTIF($M$3:M760,الجدول1[اسم الطالب]),),0)),\"\")","v":""}]
[null,null,null,null,null,null,null,null,null,null,null,null,{"$f":"IFERROR(INDEX(الجدول1[اسم الطالب],MATCH(0,INDEX(COUNTIF($M$3:M761,الجدول1[اسم الطالب]),),0)),\"\")","v":""}]
[null,null,null,null,null,null,null,null,null,null,null,null,{"$f":"IFERROR(INDEX(الجدول1[اسم الطالب],MATCH(0,INDEX(COUNTIF($M$3:M762,الجدول1[اسم الطالب]),),0)),\"\")","v":""}]
[null,null,null,null,null,null,null,null,null,null,null,null,{"$f":"IFERROR(INDEX(الجدول1[اسم الطالب],MATCH(0,INDEX(COUNTIF($M$3:M763,الجدول1[اسم الطالب]),),0)),\"\")","v":""}]
[null,null,null,null,null,null,null,null,null,null,null,null,{"$f":"IFERROR(INDEX(الجدول1[اسم الطالب],MATCH(0,INDEX(COUNTIF($M$3:M764,الجدول1[اسم الطالب]),),0)),\"\")","v":""}]
[null,null,null,null,null,null,null,null,null,null,null,null,{"$f":"IFERROR(INDEX(الجدول1[اسم الطالب],MATCH(0,INDEX(COUNTIF($M$3:M765,الجدول1[اسم الطالب]),),0)),\"\")","v":""}]
[null,null,null,null,null,null,null,null,null,null,null,null,{"$f":"IFERROR(INDEX(الجدول1[اسم الطالب],MATCH(0,INDEX(COUNTIF($M$3:M766,الجدول1[اسم الطالب]),),0)),\"\")","v":""}]
[null,null,null,null,null,null,null,null,null,null,null,null,{"$f":"IFERROR(INDEX(الجدول1[اسم الطالب],MATCH(0,INDEX(COUNTIF($M$3:M767,الجدول1[اسم الطالب]),),0)),\"\")","v":""}]
[null,null,null,null,null,null,null,null,null,null,null,null,{"$f":"IFERROR(INDEX(الجدول1[اسم الطالب],MATCH(0,INDEX(COUNTIF($M$3:M768,الجدول1[اسم الطالب]),),0)),\"\")","v":""}]
[null,null,null,null,null,null,null,null,null,null,null,null,{"$f":"IFERROR(INDEX(الجدول1[اسم الطالب],MATCH(0,INDEX(COUNTIF($M$3:M769,الجدول1[اسم الطالب]),),0)),\"\")","v":""}]
[null,null,null,null,null,null,null,null,null,null,null,null,{"$f":"IFERROR(INDEX(الجدول1[اسم الطالب],MATCH(0,INDEX(COUNTIF($M$3:M770,الجدول1[اسم الطالب]),),0)),\"\")","v":""}]
[null,null,null,null,null,null,null,null,null,null,null,null,{"$f":"IFERROR(INDEX(الجدول1[اسم الطالب],MATCH(0,INDEX(COUNTIF($M$3:M771,الجدول1[اسم الطالب]),),0)),\"\")","v":""}]
[null,null,null,null,null,null,null,null,null,null,null,null,{"$f":"IFERROR(INDEX(الجدول1[اسم الطالب],MATCH(0,INDEX(COUNTIF($M$3:M772,الجدول1[اسم الطالب]),),0)),\"\")","v":""}]
[null,null,null,null,null,null,null,null,null,null,null,null,{"$f":"IFERROR(INDEX(الجدول1[اسم الطالب],MATCH(0,INDEX(COUNTIF($M$3:M773,الجدول1[اسم الطالب]),),0)),\"\")","v":""}]
[null,null,null,null,null,null,null,null,null,null,null,null,{"$f":"IFERROR(INDEX(الجدول1[اسم الطالب],MATCH(0,INDEX(COUNTIF($M$3:M774,الجدول1[اسم الطالب]),),0)),\"\")","v":""}]
[null,null,null,null,null,null,null,null,null,null,null,null,{"$f":"IFERROR(INDEX(الجدول1[اسم الطالب],MATCH(0,INDEX(COUNTIF($M$3:M775,الجدول1[اسم الطالب]),),0)),\"\")","v":""}]
[null,null,null,null,null,null,null,null,null,null,null,null,{"$f":"IFERROR(INDEX(الجدول1[اسم الطالب],MATCH(0,INDEX(COUNTIF($M$3:M776,الجدول1[اسم الطالب]),),0)),\"\")","v":""}]
[null,null,null,null,null,null,null,null,null,null,null,null,{"$f":"IFERROR(INDEX(الجدول1[اسم الطالب],MATCH(0,INDEX(COUNTIF($M$3:M777,الجدول1[اسم الطالب]),),0)),\"\")","v":""}]
[null,null,null,null,null,null,null,null,null,null,null,null,{"$f":"IFERROR(INDEX(الجدول1[اسم الطالب],MATCH(0,INDEX(COUNTIF($M$3:M778,الجدول1[اسم الطالب]),),0)),\"\")","v":""}]
[null,null,null,null,null,null,null,null,null,null,null,null,{"$f":"IFERROR(INDEX(الجدول1[اسم الطالب],MATCH(0,INDEX(COUNTIF($M$3:M779,الجدول1[اسم الطالب]),),0)),\"\")","v":""}]
[null,null,null,null,null,null,null,null,null,null,null,null,{"$f":"IFERROR(INDEX(الجدول1[اسم الطالب],MATCH(0,INDEX(COUNTIF($M$3:M780,الجدول1[اسم الطالب]),),0)),\"\")","v":""}]
[null,null,null,null,null,null,null,null,null,null,null,null,{"$f":"IFERROR(INDEX(الجدول1[اسم الطالب],MATCH(0,INDEX(COUNTIF($M$3:M781,الجدول1[اسم الطالب]),),0)),\"\")","v":""}]
[null,null,null,null,null,null,null,null,null,null,null,null,{"$f":"IFERROR(INDEX(الجدول1[اسم الطالب],MATCH(0,INDEX(COUNTIF($M$3:M782,الجدول1[اسم الطالب]),),0)),\"\")","v":""}]
[null,null,null,null,null,null,null,null,null,null,null,null,{"$f":"IFERROR(INDEX(الجدول1[اسم الطالب],MATCH(0,INDEX(COUNTIF($M$3:M783,الجدول1[اسم الطالب]),),0)),\"\")","v":""}]
[null,null,null,null,null,null,null,null,null,null,null,null,{"$f":"IFERROR(INDEX(الجدول1[اسم الطالب],MATCH(0,INDEX(COUNTIF($M$3:M784,الجدول1[اسم الطالب]),),0)),\"\")","v":""}]
[null,null,null,null,null,null,null,null,null,null,null,null,{"$f":"IFERROR(INDEX(الجدول1[اسم الطالب],MATCH(0,INDEX(COUNTIF($M$3:M785,الجدول1[اسم الطالب]),),0)),\"\")","v":""}]
[null,null,null,null,null,null,null,null,null,null,null,null,{"$f":"IFERROR(INDEX(الجدول1[اسم الطالب],MATCH(0,INDEX(COUNTIF($M$3:M786,الجدول1[اسم الطالب]),),0)),\"\")","v":""}]
[null,null,null,null,null,null,null,null,null,null,null,null,{"$f":"IFERROR(INDEX(الجدول1[اسم الطالب],MATCH(0,INDEX(COUNTIF($M$3:M787,الجدول1[اسم الطالب]),),0)),\"\")","v":""}]
[null,null,null,null,null,null,null,null,null,null,null,null,{"$f":"IFERROR(INDEX(الجدول1[اسم الطالب],MATCH(0,INDEX(COUNTIF($M$3:M788,الجدول1[اسم الطالب]),),0)),\"\")","v":""}]
[null,null,null,null,null,null,null,null,null,null,null,null,{"$f":"IFERROR(INDEX(الجدول1[اسم الطالب],MATCH(0,INDEX(COUNTIF($M$3:M789,الجدول1[اسم الطالب]),),0)),\"\")","v":""}]
[null,null,null,null,null,null,null,null,null,null,null,null,{"$f":"IFERROR(INDEX(الجدول1[اسم الطالب],MATCH(0,INDEX(COUNTIF($M$3:M790,الجدول1[اسم الطالب]),),0)),\"\")","v":""}]
[null,null,null,null,null,null,null,null,null,null,null,null,{"$f":"IFERROR(INDEX(الجدول1[اسم الطالب],MATCH(0,INDEX(COUNTIF($M$3:M791,الجدول1[اسم الطالب]),),0)),\"\")","v":""}]
[null,null,null,null,null,null,null,null,null,null,null,null,{"$f":"IFERROR(INDEX(الجدول1[اسم الطالب],MATCH(0,INDEX(COUNTIF($M$3:M792,الجدول1[اسم الطالب]),),0)),\"\")","v":""}]
[null,null,null,null,null,null,null,null,null,null,null,null,{"$f":"IFERROR(INDEX(الجدول1[اسم الطالب],MATCH(0,INDEX(COUNTIF($M$3:M793,الجدول1[اسم الطالب]),),0)),\"\")","v":""}]
[null,null,null,null,null,null,null,null,null,null,null,null,{"$f":"IFERROR(INDEX(الجدول1[اسم الطالب],MATCH(0,INDEX(COUNTIF($M$3:M794,الجدول1[اسم الطالب]),),0)),\"\")","v":""}]
[null,null,null,null,null,null,null,null,null,null,null,null,{"$f":"IFERROR(INDEX(الجدول1[اسم الطالب],MATCH(0,INDEX(COUNTIF($M$3:M795,الجدول1[اسم الطالب]),),0)),\"\")","v":""}]
[null,null,null,null,null,null,null,null,null,null,null,null,{"$f":"IFERROR(INDEX(الجدول1[اسم الطالب],MATCH(0,INDEX(COUNTIF($M$3:M796,الجدول1[اسم الطالب]),),0)),\"\")","v":""}]
[null,null,null,null,null,null,null,null,null,null,null,null,{"$f":"IFERROR(INDEX(الجدول1[اسم الطالب],MATCH(0,INDEX(COUNTIF($M$3:M797,الجدول1[اسم الطالب]),),0)),\"\")","v":""}]
[null,null,null,null,null,null,null,null,null,null,null,null,{"$f":"IFERROR(INDEX(الجدول1[اسم الطالب],MATCH(0,INDEX(COUNTIF($M$3:M798,الجدول1[اسم الطالب]),),0)),\"\")","v":""}]
[null,null,null,null,null,null,null,null,null,null,null,null,{"$f":"IFERROR(INDEX(الجدول1[اسم الطالب],MATCH(0,INDEX(COUNTIF($M$3:M799,الجدول1[اسم الطالب]),),0)),\"\")","v":""}]
[null,null,null,null,null,null,null,null,null,null,null,null,{"$f":"IFERROR(INDEX(الجدول1[اسم الطالب],MATCH(0,INDEX(COUNTIF($M$3:M800,الجدول1[اسم الطالب]),),0)),\"\")","v":""}]
[null,null,null,null,null,null,null,null,null,null,null,null,{"$f":"IFERROR(INDEX(الجدول1[اسم الطالب],MATCH(0,INDEX(COUNTIF($M$3:M801,الجدول1[اسم الطالب]),),0)),\"\")","v":""}]
[null,null,null,null,null,null,null,null,null,null,null,null,{"$f":"IFERROR(INDEX(الجدول1[اسم الطالب],MATCH(0,INDEX(COUNTIF($M$3:M802,الجدول1[اسم الطالب]),),0)),\"\")","v":""}]
[null,null,null,null,null,null,null,null,null,null,null,null,{"$f":"IFERROR(INDEX(الجدول1[اسم الطالب],MATCH(0,INDEX(COUNTIF($M$3:M803,الجدول1[اسم الطالب]),),0)),\"\")","v":""}]
[null,null,null,null,null,null,null,null,null,null,null,null,{"$f":"IFERROR(INDEX(الجدول1[اسم الطالب],MATCH(0,INDEX(COUNTIF($M$3:M804,الجدول1[اسم الطالب]),),0)),\"\")","v":""}]
[null,null,null,null,null,null,null,null,null,null,null,null,{"$f":"IFERROR(INDEX(الجدول1[اسم الطالب],MATCH(0,INDEX(COUNTIF($M$3:M805,الجدول1[اسم الطالب]),),0)),\"\")","v":""}]
[null,null,null,null,null,null,null,null,null,null,null,null,{"$f":"IFERROR(INDEX(الجدول1[اسم الطالب],MATCH(0,INDEX(COUNTIF($M$3:M806,الجدول1[اسم الطالب]),),0)),\"\")","v":""}]
[null,null,null,null,null,null,null,null,null,null,null,null,{"$f":"IFERROR(INDEX(الجدول1[اسم الطالب],MATCH(0,INDEX(COUNTIF($M$3:M807,الجدول1[اسم الطالب]),),0)),\"\")","v":""}]
[null,null,null,null,null,null,null,null,null,null,null,null,{"$f":"IFERROR(INDEX(الجدول1[اسم الطالب],MATCH(0,INDEX(COUNTIF($M$3:M808,الجدول1[اسم الطالب]),),0)),\"\")","v":""}]
[null,null,null,null,null,null,null,null,null,null,null,null,{"$f":"IFERROR(INDEX(الجدول1[اسم الطالب],MATCH(0,INDEX(COUNTIF($M$3:M809,الجدول1[اسم الطالب]),),0)),\"\")","v":""}]
[null,null,null,null,null,null,null,null,null,null,null,null,{"$f":"IFERROR(INDEX(الجدول1[اسم الطالب],MATCH(0,INDEX(COUNTIF($M$3:M810,الجدول1[اسم الطالب]),),0)),\"\")","v":""}]
[null,null,null,null,null,null,null,null,null,null,null,null,{"$f":"IFERROR(INDEX(الجدول1[اسم الطالب],MATCH(0,INDEX(COUNTIF($M$3:M811,الجدول1[اسم الطالب]),),0)),\"\")","v":""}]
[null,null,null,null,null,null,null,null,null,null,null,null,{"$f":"IFERROR(INDEX(الجدول1[اسم الطالب],MATCH(0,INDEX(COUNTIF($M$3:M812,الجدول1[اسم الطالب]),),0)),\"\")","v":""}]
[null,null,null,null,null,null,null,null,null,null,null,null,{"$f":"IFERROR(INDEX(الجدول1[اسم الطالب],MATCH(0,INDEX(COUNTIF($M$3:M813,الجدول1[اسم الطالب]),),0)),\"\")","v":""}]
[null,null,null,null,null,null,null,null,null,null,null,null,{"$f":"IFERROR(INDEX(الجدول1[اسم الطالب],MATCH(0,INDEX(COUNTIF($M$3:M814,الجدول1[اسم الطالب]),),0)),\"\")","v":""}]
[null,null,null,null,null,null,null,null,null,null,null,null,{"$f":"IFERROR(INDEX(الجدول1[اسم الطالب],MATCH(0,INDEX(COUNTIF($M$3:M815,الجدول1[اسم الطالب]),),0)),\"\")","v":""}]
[null,null,null,null,null,null,null,null,null,null,null,null,{"$f":"IFERROR(INDEX(الجدول1[اسم الطالب],MATCH(0,INDEX(COUNTIF($M$3:M816,الجدول1[اسم الطالب]),),0)),\"\")","v":""}]
[null,null,null,null,null,null,null,null,null,null,null,null,{"$f":"IFERROR(INDEX(الجدول1[اسم الطالب],MATCH(0,INDEX(COUNTIF($M$3:M817,الجدول1[اسم الطالب]),),0)),\"\")","v":""}]
[null,null,null,null,null,null,null,null,null,null,null,null,{"$f":"IFERROR(INDEX(الجدول1[اسم الطالب],MATCH(0,INDEX(COUNTIF($M$3:M818,الجدول1[اسم الطالب]),),0)),\"\")","v":""}]
[null,null,null,null,null,null,null,null,null,null,null,null,{"$f":"IFERROR(INDEX(الجدول1[اسم الطالب],MATCH(0,INDEX(COUNTIF($M$3:M819,الجدول1[اسم الطالب]),),0)),\"\")","v":""}]
[null,null,null,null,null,null,null,null,null,null,null,null,{"$f":"IFERROR(INDEX(الجدول1[اسم الطالب],MATCH(0,INDEX(COUNTIF($M$3:M820,الجدول1[اسم الطالب]),),0)),\"\")","v":""}]
[null,null,null,null,null,null,null,null,null,null,null,null,{"$f":"IFERROR(INDEX(الجدول1[اسم الطالب],MATCH(0,INDEX(COUNTIF($M$3:M821,الجدول1[اسم الطالب]),),0)),\"\")","v":""}]
[null,null,null,null,null,null,null,null,null,null,null,null,{"$f":"IFERROR(INDEX(الجدول1[اسم الطالب],MATCH(0,INDEX(COUNTIF($M$3:M822,الجدول1[اسم الطالب]),),0)),\"\")","v":""}]
[null,null,null,null,null,null,null,null,null,null,null,null,{"$f":"IFERROR(INDEX(الجدول1[اسم الطالب],MATCH(0,INDEX(COUNTIF($M$3:M823,الجدول1[اسم الطالب]),),0)),\"\")","v":""}]
[null,null,null,null,null,null,null,null,null,null,null,null,{"$f":"IFERROR(INDEX(الجدول1[اسم الطالب],MATCH(0,INDEX(COUNTIF($M$3:M824,الجدول1[اسم الطالب]),),0)),\"\")","v":""}]
[null,null,null,null,null,null,null,null,null,null,null,null,{"$f":"IFERROR(INDEX(الجدول1[اسم الطالب],MATCH(0,INDEX(COUNTIF($M$3:M825,الجدول1[اسم الطالب]),),0)),\"\")","v":""}]
[null,null,null,null,null,null,null,null,null,null,null,null,{"$f":"IFERROR(INDEX(الجدول1[اسم الطالب],MATCH(0,INDEX(COUNTIF($M$3:M826,الجدول1[اسم الطالب]),),0)),\"\")","v":""}]
[null,null,null,null,null,null,null,null,null,null,null,null,{"$f":"IFERROR(INDEX(الجدول1[اسم الطالب],MATCH(0,INDEX(COUNTIF($M$3:M827,الجدول1[اسم الطالب]),),0)),\"\")","v":""}]
[null,null,null,null,null,null,null,null,null,null,null,null,{"$f":"IFERROR(INDEX(الجدول1[اسم الطالب],MATCH(0,INDEX(COUNTIF($M$3:M828,الجدول1[اسم الطالب]),),0)),\"\")","v":""}]
[null,null,null,null,null,null,null,null,null,null,null,null,{"$f":"IFERROR(INDEX(الجدول1[اسم الطالب],MATCH(0,INDEX(COUNTIF($M$3:M829,الجدول1[اسم الطالب]),),0)),\"\")","v":""}]
[null,null,null,null,null,null,null,null,null,null,null,null,{"$f":"IFERROR(INDEX(الجدول1[اسم الطالب],MATCH(0,INDEX(COUNTIF($M$3:M830,الجدول1[اسم الطالب]),),0)),\"\")","v":""}]
[null,null,null,null,null,null,null,null,null,null,null,null,{"$f":"IFERROR(INDEX(الجدول1[اسم الطالب],MATCH(0,INDEX(COUNTIF($M$3:M831,الجدول1[اسم الطالب]),),0)),\"\")","v":""}]
[null,null,null,null,null,null,null,null,null,null,null,null,{"$f":"IFERROR(INDEX(الجدول1[اسم الطالب],MATCH(0,INDEX(COUNTIF($M$3:M832,الجدول1[اسم الطالب]),),0)),\"\")","v":""}]
[null,null,null,null,null,null,null,null,null,null,null,null,{"$f":"IFERROR(INDEX(الجدول1[اسم الطالب],MATCH(0,INDEX(COUNTIF($M$3:M833,الجدول1[اسم الطالب]),),0)),\"\")","v":""}]
[null,null,null,null,null,null,null,null,null,null,null,null,{"$f":"IFERROR(INDEX(الجدول1[اسم الطالب],MATCH(0,INDEX(COUNTIF($M$3:M834,الجدول1[اسم الطالب]),),0)),\"\")","v":""}]
[null,null,null,null,null,null,null,null,null,null,null,null,{"$f":"IFERROR(INDEX(الجدول1[اسم الطالب],MATCH(0,INDEX(COUNTIF($M$3:M835,الجدول1[اسم الطالب]),),0)),\"\")","v":""}]
[null,null,null,null,null,null,null,null,null,null,null,null,{"$f":"IFERROR(INDEX(الجدول1[اسم الطالب],MATCH(0,INDEX(COUNTIF($M$3:M836,الجدول1[اسم الطالب]),),0)),\"\")","v":""}]
[null,null,null,null,null,null,null,null,null,null,null,null,{"$f":"IFERROR(INDEX(الجدول1[اسم الطالب],MATCH(0,INDEX(COUNTIF($M$3:M837,الجدول1[اسم الطالب]),),0)),\"\")","v":""}]
[null,null,null,null,null,null,null,null,null,null,null,null,{"$f":"IFERROR(INDEX(الجدول1[اسم الطالب],MATCH(0,INDEX(COUNTIF($M$3:M838,الجدول1[اسم الطالب]),),0)),\"\")","v":""}]
[null,null,null,null,null,null,null,null,null,null,null,null,{"$f":"IFERROR(INDEX(الجدول1[اسم الطالب],MATCH(0,INDEX(COUNTIF($M$3:M839,الجدول1[اسم الطالب]),),0)),\"\")","v":""}]
[null,null,null,null,null,null,null,null,null,null,null,null,{"$f":"IFERROR(INDEX(الجدول1[اسم الطالب],MATCH(0,INDEX(COUNTIF($M$3:M840,الجدول1[اسم الطالب]),),0)),\"\")","v":""}]
[null,null,null,null,null,null,null,null,null,null,null,null,{"$f":"IFERROR(INDEX(الجدول1[اسم الطالب],MATCH(0,INDEX(COUNTIF($M$3:M841,الجدول1[اسم الطالب]),),0)),\"\")","v":""}]
[null,null,null,null,null,null,null,null,null,null,null,null,{"$f":"IFERROR(INDEX(الجدول1[اسم الطالب],MATCH(0,INDEX(COUNTIF($M$3:M842,الجدول1[اسم الطالب]),),0)),\"\")","v":""}]
[null,null,null,null,null,null,null,null,null,null,null,null,{"$f":"IFERROR(INDEX(الجدول1[اسم الطالب],MATCH(0,INDEX(COUNTIF($M$3:M843,الجدول1[اسم الطالب]),),0)),\"\")","v":""}]
[null,null,null,null,null,null,null,null,null,null,null,null,{"$f":"IFERROR(INDEX(الجدول1[اسم الطالب],MATCH(0,INDEX(COUNTIF($M$3:M844,الجدول1[اسم الطالب]),),0)),\"\")","v":""}]
[null,null,null,null,null,null,null,null,null,null,null,null,{"$f":"IFERROR(INDEX(الجدول1[اسم الطالب],MATCH(0,INDEX(COUNTIF($M$3:M845,الجدول1[اسم الطالب]),),0)),\"\")","v":""}]
[null,null,null,null,null,null,null,null,null,null,null,null,{"$f":"IFERROR(INDEX(الجدول1[اسم الطالب],MATCH(0,INDEX(COUNTIF($M$3:M846,الجدول1[اسم الطالب]),),0)),\"\")","v":""}]
[null,null,null,null,null,null,null,null,null,null,null,null,{"$f":"IFERROR(INDEX(الجدول1[اسم الطالب],MATCH(0,INDEX(COUNTIF($M$3:M847,الجدول1[اسم الطالب]),),0)),\"\")","v":""}]
[null,null,null,null,null,null,null,null,null,null,null,null,{"$f":"IFERROR(INDEX(الجدول1[اسم الطالب],MATCH(0,INDEX(COUNTIF($M$3:M848,الجدول1[اسم الطالب]),),0)),\"\")","v":""}]
[null,null,null,null,null,null,null,null,null,null,null,null,{"$f":"IFERROR(INDEX(الجدول1[اسم الطالب],MATCH(0,INDEX(COUNTIF($M$3:M849,الجدول1[اسم الطالب]),),0)),\"\")","v":""}]
[null,null,null,null,null,null,null,null,null,null,null,null,{"$f":"IFERROR(INDEX(الجدول1[اسم الطالب],MATCH(0,INDEX(COUNTIF($M$3:M850,الجدول1[اسم الطالب]),),0)),\"\")","v":""}]
[null,null,null,null,null,null,null,null,null,null,null,null,{"$f":"IFERROR(INDEX(الجدول1[اسم الطالب],MATCH(0,INDEX(COUNTIF($M$3:M851,الجدول1[اسم الطالب]),),0)),\"\")","v":""}]
[null,null,null,null,null,null,null,null,null,null,null,null,{"$f":"IFERROR(INDEX(الجدول1[اسم الطالب],MATCH(0,INDEX(COUNTIF($M$3:M852,الجدول1[اسم الطالب]),),0)),\"\")","v":""}]
[null,null,null,null,null,null,null,null,null,null,null,null,{"$f":"IFERROR(INDEX(الجدول1[اسم الطالب],MATCH(0,INDEX(COUNTIF($M$3:M853,الجدول1[اسم الطالب]),),0)),\"\")","v":""}]
[null,null,null,null,null,null,null,null,null,null,null,null,{"$f":"IFERROR(INDEX(الجدول1[اسم الطالب],MATCH(0,INDEX(COUNTIF($M$3:M854,الجدول1[اسم الطالب]),),0)),\"\")","v":""}]
[null,null,null,null,null,null,null,null,null,null,null,null,{"$f":"IFERROR(INDEX(الجدول1[اسم الطالب],MATCH(0,INDEX(COUNTIF($M$3:M855,الجدول1[اسم الطالب]),),0)),\"\")","v":""}]
[null,null,null,null,null,null,null,null,null,null,null,null,{"$f":"IFERROR(INDEX(الجدول1[اسم الطالب],MATCH(0,INDEX(COUNTIF($M$3:M856,الجدول1[اسم الطالب]),),0)),\"\")","v":""}]
[null,null,null,null,null,null,null,null,null,null,null,null,{"$f":"IFERROR(INDEX(الجدول1[اسم الطالب],MATCH(0,INDEX(COUNTIF($M$3:M857,الجدول1[اسم الطالب]),),0)),\"\")","v":""}]
[null,null,null,null,null,null,null,null,null,null,null,null,{"$f":"IFERROR(INDEX(الجدول1[اسم الطالب],MATCH(0,INDEX(COUNTIF($M$3:M858,الجدول1[اسم الطالب]),),0)),\"\")","v":""}]
[null,null,null,null,null,null,null,null,null,null,null,null,{"$f":"IFERROR(INDEX(الجدول1[اسم الطالب],MATCH(0,INDEX(COUNTIF($M$3:M859,الجدول1[اسم الطالب]),),0)),\"\")","v":""}]
[null,null,null,null,null,null,null,null,null,null,null,null,{"$f":"IFERROR(INDEX(الجدول1[اسم الطالب],MATCH(0,INDEX(COUNTIF($M$3:M860,الجدول1[اسم الطالب]),),0)),\"\")","v":""}]
[null,null,null,null,null,null,null,null,null,null,null,null,{"$f":"IFERROR(INDEX(الجدول1[اسم الطالب],MATCH(0,INDEX(COUNTIF($M$3:M861,الجدول1[اسم الطالب]),),0)),\"\")","v":""}]
[null,null,null,null,null,null,null,null,null,null,null,null,{"$f":"IFERROR(INDEX(الجدول1[اسم الطالب],MATCH(0,INDEX(COUNTIF($M$3:M862,الجدول1[اسم الطالب]),),0)),\"\")","v":""}]
[null,null,null,null,null,null,null,null,null,null,null,null,{"$f":"IFERROR(INDEX(الجدول1[اسم الطالب],MATCH(0,INDEX(COUNTIF($M$3:M863,الجدول1[اسم الطالب]),),0)),\"\")","v":""}]
[null,null,null,null,null,null,null,null,null,null,null,null,{"$f":"IFERROR(INDEX(الجدول1[اسم الطالب],MATCH(0,INDEX(COUNTIF($M$3:M864,الجدول1[اسم الطالب]),),0)),\"\")","v":""}]
[null,null,null,null,null,null,null,null,null,null,null,null,{"$f":"IFERROR(INDEX(الجدول1[اسم الطالب],MATCH(0,INDEX(COUNTIF($M$3:M865,الجدول1[اسم الطالب]),),0)),\"\")","v":""}]
[null,null,null,null,null,null,null,null,null,null,null,null,{"$f":"IFERROR(INDEX(الجدول1[اسم الطالب],MATCH(0,INDEX(COUNTIF($M$3:M866,الجدول1[اسم الطالب]),),0)),\"\")","v":""}]
[null,null,null,null,null,null,null,null,null,null,null,null,{"$f":"IFERROR(INDEX(الجدول1[اسم الطالب],MATCH(0,INDEX(COUNTIF($M$3:M867,الجدول1[اسم الطالب]),),0)),\"\")","v":""}]
[null,null,null,null,null,null,null,null,null,null,null,null,{"$f":"IFERROR(INDEX(الجدول1[اسم الطالب],MATCH(0,INDEX(COUNTIF($M$3:M868,الجدول1[اسم الطالب]),),0)),\"\")","v":""}]
[null,null,null,null,null,null,null,null,null,null,null,null,{"$f":"IFERROR(INDEX(الجدول1[اسم الطالب],MATCH(0,INDEX(COUNTIF($M$3:M869,الجدول1[اسم الطالب]),),0)),\"\")","v":""}]
[null,null,null,null,null,null,null,null,null,null,null,null,{"$f":"IFERROR(INDEX(الجدول1[اسم الطالب],MATCH(0,INDEX(COUNTIF($M$3:M870,الجدول1[اسم الطالب]),),0)),\"\")","v":""}]
[null,null,null,null,null,null,null,null,null,null,null,null,{"$f":"IFERROR(INDEX(الجدول1[اسم الطالب],MATCH(0,INDEX(COUNTIF($M$3:M871,الجدول1[اسم الطالب]),),0)),\"\")","v":""}]
[null,null,null,null,null,null,null,null,null,null,null,null,{"$f":"IFERROR(INDEX(الجدول1[اسم الطالب],MATCH(0,INDEX(COUNTIF($M$3:M872,الجدول1[اسم الطالب]),),0)),\"\")","v":""}]
[null,null,null,null,null,null,null,null,null,null,null,null,{"$f":"IFERROR(INDEX(الجدول1[اسم الطالب],MATCH(0,INDEX(COUNTIF($M$3:M873,الجدول1[اسم الطالب]),),0)),\"\")","v":""}]
[null,null,null,null,null,null,null,null,null,null,null,null,{"$f":"IFERROR(INDEX(الجدول1[اسم الطالب],MATCH(0,INDEX(COUNTIF($M$3:M874,الجدول1[اسم الطالب]),),0)),\"\")","v":""}]
[null,null,null,null,null,null,null,null,null,null,null,null,{"$f":"IFERROR(INDEX(الجدول1[اسم الطالب],MATCH(0,INDEX(COUNTIF($M$3:M875,الجدول1[اسم الطالب]),),0)),\"\")","v":""}]
[null,null,null,null,null,null,null,null,null,null,null,null,{"$f":"IFERROR(INDEX(الجدول1[اسم الطالب],MATCH(0,INDEX(COUNTIF($M$3:M876,الجدول1[اسم الطالب]),),0)),\"\")","v":""}]
[null,null,null,null,null,null,null,null,null,null,null,null,{"$f":"IFERROR(INDEX(الجدول1[اسم الطالب],MATCH(0,INDEX(COUNTIF($M$3:M877,الجدول1[اسم الطالب]),),0)),\"\")","v":""}]
[null,null,null,null,null,null,null,null,null,null,null,null,{"$f":"IFERROR(INDEX(الجدول1[اسم الطالب],MATCH(0,INDEX(COUNTIF($M$3:M878,الجدول1[اسم الطالب]),),0)),\"\")","v":""}]
[null,null,null,null,null,null,null,null,null,null,null,null,{"$f":"IFERROR(INDEX(الجدول1[اسم الطالب],MATCH(0,INDEX(COUNTIF($M$3:M879,الجدول1[اسم الطالب]),),0)),\"\")","v":""}]
[null,null,null,null,null,null,null,null,null,null,null,null,{"$f":"IFERROR(INDEX(الجدول1[اسم الطالب],MATCH(0,INDEX(COUNTIF($M$3:M880,الجدول1[اسم الطالب]),),0)),\"\")","v":""}]
[null,null,null,null,null,null,null,null,null,null,null,null,{"$f":"IFERROR(INDEX(الجدول1[اسم الطالب],MATCH(0,INDEX(COUNTIF($M$3:M881,الجدول1[اسم الطالب]),),0)),\"\")","v":""}]
[null,null,null,null,null,null,null,null,null,null,null,null,{"$f":"IFERROR(INDEX(الجدول1[اسم الطالب],MATCH(0,INDEX(COUNTIF($M$3:M882,الجدول1[اسم الطالب]),),0)),\"\")","v":""}]
[null,null,null,null,null,null,null,null,null,null,null,null,{"$f":"IFERROR(INDEX(الجدول1[اسم الطالب],MATCH(0,INDEX(COUNTIF($M$3:M883,الجدول1[اسم الطالب]),),0)),\"\")","v":""}]
[null,null,null,null,null,null,null,null,null,null,null,null,{"$f":"IFERROR(INDEX(الجدول1[اسم الطالب],MATCH(0,INDEX(COUNTIF($M$3:M884,الجدول1[اسم الطالب]),),0)),\"\")","v":""}]
[null,null,null,null,null,null,null,null,null,null,null,null,{"$f":"IFERROR(INDEX(الجدول1[اسم الطالب],MATCH(0,INDEX(COUNTIF($M$3:M885,الجدول1[اسم الطالب]),),0)),\"\")","v":""}]
[null,null,null,null,null,null,null,null,null,null,null,null,{"$f":"IFERROR(INDEX(الجدول1[اسم الطالب],MATCH(0,INDEX(COUNTIF($M$3:M886,الجدول1[اسم الطالب]),),0)),\"\")","v":""}]
[null,null,null,null,null,null,null,null,null,null,null,null,{"$f":"IFERROR(INDEX(الجدول1[اسم الطالب],MATCH(0,INDEX(COUNTIF($M$3:M887,الجدول1[اسم الطالب]),),0)),\"\")","v":""}]
[null,null,null,null,null,null,null,null,null,null,null,null,{"$f":"IFERROR(INDEX(الجدول1[اسم الطالب],MATCH(0,INDEX(COUNTIF($M$3:M888,الجدول1[اسم الطالب]),),0)),\"\")","v":""}]
[null,null,null,null,null,null,null,null,null,null,null,null,{"$f":"IFERROR(INDEX(الجدول1[اسم الطالب],MATCH(0,INDEX(COUNTIF($M$3:M889,الجدول1[اسم الطالب]),),0)),\"\")","v":""}]
[null,null,null,null,null,null,null,null,null,null,null,null,{"$f":"IFERROR(INDEX(الجدول1[اسم الطالب],MATCH(0,INDEX(COUNTIF($M$3:M890,الجدول1[اسم الطالب]),),0)),\"\")","v":""}]
[null,null,null,null,null,null,null,null,null,null,null,null,{"$f":"IFERROR(INDEX(الجدول1[اسم الطالب],MATCH(0,INDEX(COUNTIF($M$3:M891,الجدول1[اسم الطالب]),),0)),\"\")","v":""}]
[null,null,null,null,null,null,null,null,null,null,null,null,{"$f":"IFERROR(INDEX(الجدول1[اسم الطالب],MATCH(0,INDEX(COUNTIF($M$3:M892,الجدول1[اسم الطالب]),),0)),\"\")","v":""}]
[null,null,null,null,null,null,null,null,null,null,null,null,{"$f":"IFERROR(INDEX(الجدول1[اسم الطالب],MATCH(0,INDEX(COUNTIF($M$3:M893,الجدول1[اسم الطالب]),),0)),\"\")","v":""}]
[null,null,null,null,null,null,null,null,null,null,null,null,{"$f":"IFERROR(INDEX(الجدول1[اسم الطالب],MATCH(0,INDEX(COUNTIF($M$3:M894,الجدول1[اسم الطالب]),),0)),\"\")","v":""}]
[null,null,null,null,null,null,null,null,null,null,null,null,{"$f":"IFERROR(INDEX(الجدول1[اسم الطالب],MATCH(0,INDEX(COUNTIF($M$3:M895,الجدول1[اسم الطالب]),),0)),\"\")","v":""}]
[null,null,null,null,null,null,null,null,null,null,null,null,{"$f":"IFERROR(INDEX(الجدول1[اسم الطالب],MATCH(0,INDEX(COUNTIF($M$3:M896,الجدول1[اسم الطالب]),),0)),\"\")","v":""}]
[null,null,null,null,null,null,null,null,null,null,null,null,{"$f":"IFERROR(INDEX(الجدول1[اسم الطالب],MATCH(0,INDEX(COUNTIF($M$3:M897,الجدول1[اسم الطالب]),),0)),\"\")","v":""}]
[null,null,null,null,null,null,null,null,null,null,null,null,{"$f":"IFERROR(INDEX(الجدول1[اسم الطالب],MATCH(0,INDEX(COUNTIF($M$3:M898,الجدول1[اسم الطالب]),),0)),\"\")","v":""}]
[null,null,null,null,null,null,null,null,null,null,null,null,{"$f":"IFERROR(INDEX(الجدول1[اسم الطالب],MATCH(0,INDEX(COUNTIF($M$3:M899,الجدول1[اسم الطالب]),),0)),\"\")","v":""}]
[null,null,null,null,null,null,null,null,null,null,null,null,{"$f":"IFERROR(INDEX(الجدول1[اسم الطالب],MATCH(0,INDEX(COUNTIF($M$3:M900,الجدول1[اسم الطالب]),),0)),\"\")","v":""}]
[null,null,null,null,null,null,null,null,null,null,null,null,{"$f":"IFERROR(INDEX(الجدول1[اسم الطالب],MATCH(0,INDEX(COUNTIF($M$3:M901,الجدول1[اسم الطالب]),),0)),\"\")","v":""}]
[null,null,null,null,null,null,null,null,null,null,null,null,{"$f":"IFERROR(INDEX(الجدول1[اسم الطالب],MATCH(0,INDEX(COUNTIF($M$3:M902,الجدول1[اسم الطالب]),),0)),\"\")","v":""}]
[null,null,null,null,null,null,null,null,null,null,null,null,{"$f":"IFERROR(INDEX(الجدول1[اسم الطالب],MATCH(0,INDEX(COUNTIF($M$3:M903,الجدول1[اسم الطالب]),),0)),\"\")","v":""}]
[null,null,null,null,null,null,null,null,null,null,null,null,{"$f":"IFERROR(INDEX(الجدول1[اسم الطالب],MATCH(0,INDEX(COUNTIF($M$3:M904,الجدول1[اسم الطالب]),),0)),\"\")","v":""}]
[null,null,null,null,null,null,null,null,null,null,null,null,{"$f":"IFERROR(INDEX(الجدول1[اسم الطالب],MATCH(0,INDEX(COUNTIF($M$3:M905,الجدول1[اسم الطالب]),),0)),\"\")","v":""}]
[null,null,null,null,null,null,null,null,null,null,null,null,{"$f":"IFERROR(INDEX(الجدول1[اسم الطالب],MATCH(0,INDEX(COUNTIF($M$3:M906,الجدول1[اسم الطالب]),),0)),\"\")","v":""}]
[null,null,null,null,null,null,null,null,null,null,null,null,{"$f":"IFERROR(INDEX(الجدول1[اسم الطالب],MATCH(0,INDEX(COUNTIF($M$3:M907,الجدول1[اسم الطالب]),),0)),\"\")","v":""}]
[null,null,null,null,null,null,null,null,null,null,null,null,{"$f":"IFERROR(INDEX(الجدول1[اسم الطالب],MATCH(0,INDEX(COUNTIF($M$3:M908,الجدول1[اسم الطالب]),),0)),\"\")","v":""}]
[null,null,null,null,null,null,null,null,null,null,null,null,{"$f":"IFERROR(INDEX(الجدول1[اسم الطالب],MATCH(0,INDEX(COUNTIF($M$3:M909,الجدول1[اسم الطالب]),),0)),\"\")","v":""}]
[null,null,null,null,null,null,null,null,null,null,null,null,{"$f":"IFERROR(INDEX(الجدول1[اسم الطالب],MATCH(0,INDEX(COUNTIF($M$3:M910,الجدول1[اسم الطالب]),),0)),\"\")","v":""}]
[null,null,null,null,null,null,null,null,null,null,null,null,{"$f":"IFERROR(INDEX(الجدول1[اسم الطالب],MATCH(0,INDEX(COUNTIF($M$3:M911,الجدول1[اسم الطالب]),),0)),\"\")","v":""}]
[null,null,null,null,null,null,null,null,null,null,null,null,{"$f":"IFERROR(INDEX(الجدول1[اسم الطالب],MATCH(0,INDEX(COUNTIF($M$3:M912,الجدول1[اسم الطالب]),),0)),\"\")","v":""}]
[null,null,null,null,null,null,null,null,null,null,null,null,{"$f":"IFERROR(INDEX(الجدول1[اسم الطالب],MATCH(0,INDEX(COUNTIF($M$3:M913,الجدول1[اسم الطالب]),),0)),\"\")","v":""}]
[null,null,null,null,null,null,null,null,null,null,null,null,{"$f":"IFERROR(INDEX(الجدول1[اسم الطالب],MATCH(0,INDEX(COUNTIF($M$3:M914,الجدول1[اسم الطالب]),),0)),\"\")","v":""}]
[null,null,null,null,null,null,null,null,null,null,null,null,{"$f":"IFERROR(INDEX(الجدول1[اسم الطالب],MATCH(0,INDEX(COUNTIF($M$3:M915,الجدول1[اسم الطالب]),),0)),\"\")","v":""}]
[null,null,null,null,null,null,null,null,null,null,null,null,{"$f":"IFERROR(INDEX(الجدول1[اسم الطالب],MATCH(0,INDEX(COUNTIF($M$3:M916,الجدول1[اسم الطالب]),),0)),\"\")","v":""}]
[null,null,null,null,null,null,null,null,null,null,null,null,{"$f":"IFERROR(INDEX(الجدول1[اسم الطالب],MATCH(0,INDEX(COUNTIF($M$3:M917,الجدول1[اسم الطالب]),),0)),\"\")","v":""}]
[null,null,null,null,null,null,null,null,null,null,null,null,{"$f":"IFERROR(INDEX(الجدول1[اسم الطالب],MATCH(0,INDEX(COUNTIF($M$3:M918,الجدول1[اسم الطالب]),),0)),\"\")","v":""}]
[null,null,null,null,null,null,null,null,null,null,null,null,{"$f":"IFERROR(INDEX(الجدول1[اسم الطالب],MATCH(0,INDEX(COUNTIF($M$3:M919,الجدول1[اسم الطالب]),),0)),\"\")","v":""}]
[null,null,null,null,null,null,null,null,null,null,null,null,{"$f":"IFERROR(INDEX(الجدول1[اسم الطالب],MATCH(0,INDEX(COUNTIF($M$3:M920,الجدول1[اسم الطالب]),),0)),\"\")","v":""}]
[null,null,null,null,null,null,null,null,null,null,null,null,{"$f":"IFERROR(INDEX(الجدول1[اسم الطالب],MATCH(0,INDEX(COUNTIF($M$3:M921,الجدول1[اسم الطالب]),),0)),\"\")","v":""}]
[null,null,null,null,null,null,null,null,null,null,null,null,{"$f":"IFERROR(INDEX(الجدول1[اسم الطالب],MATCH(0,INDEX(COUNTIF($M$3:M922,الجدول1[اسم الطالب]),),0)),\"\")","v":""}]
[null,null,null,null,null,null,null,null,null,null,null,null,{"$f":"IFERROR(INDEX(الجدول1[اسم الطالب],MATCH(0,INDEX(COUNTIF($M$3:M923,الجدول1[اسم الطالب]),),0)),\"\")","v":""}]
[null,null,null,null,null,null,null,null,null,null,null,null,{"$f":"IFERROR(INDEX(الجدول1[اسم الطالب],MATCH(0,INDEX(COUNTIF($M$3:M924,الجدول1[اسم الطالب]),),0)),\"\")","v":""}]
[null,null,null,null,null,null,null,null,null,null,null,null,{"$f":"IFERROR(INDEX(الجدول1[اسم الطالب],MATCH(0,INDEX(COUNTIF($M$3:M925,الجدول1[اسم الطالب]),),0)),\"\")","v":""}]
[null,null,null,null,null,null,null,null,null,null,null,null,{"$f":"IFERROR(INDEX(الجدول1[اسم الطالب],MATCH(0,INDEX(COUNTIF($M$3:M926,الجدول1[اسم الطالب]),),0)),\"\")","v":""}]
[null,null,null,null,null,null,null,null,null,null,null,null,{"$f":"IFERROR(INDEX(الجدول1[اسم الطالب],MATCH(0,INDEX(COUNTIF($M$3:M927,الجدول1[اسم الطالب]),),0)),\"\")","v":""}]
[null,null,null,null,null,null,null,null,null,null,null,null,{"$f":"IFERROR(INDEX(الجدول1[اسم الطالب],MATCH(0,INDEX(COUNTIF($M$3:M928,الجدول1[اسم الطالب]),),0)),\"\")","v":""}]
[null,null,null,null,null,null,null,null,null,null,null,null,{"$f":"IFERROR(INDEX(الجدول1[اسم الطالب],MATCH(0,INDEX(COUNTIF($M$3:M929,الجدول1[اسم الطالب]),),0)),\"\")","v":""}]
[null,null,null,null,null,null,null,null,null,null,null,null,{"$f":"IFERROR(INDEX(الجدول1[اسم الطالب],MATCH(0,INDEX(COUNTIF($M$3:M930,الجدول1[اسم الطالب]),),0)),\"\")","v":""}]
[null,null,null,null,null,null,null,null,null,null,null,null,{"$f":"IFERROR(INDEX(الجدول1[اسم الطالب],MATCH(0,INDEX(COUNTIF($M$3:M931,الجدول1[اسم الطالب]),),0)),\"\")","v":""}]
[null,null,null,null,null,null,null,null,null,null,null,null,{"$f":"IFERROR(INDEX(الجدول1[اسم الطالب],MATCH(0,INDEX(COUNTIF($M$3:M932,الجدول1[اسم الطالب]),),0)),\"\")","v":""}]
[null,null,null,null,null,null,null,null,null,null,null,null,{"$f":"IFERROR(INDEX(الجدول1[اسم الطالب],MATCH(0,INDEX(COUNTIF($M$3:M933,الجدول1[اسم الطالب]),),0)),\"\")","v":""}]
[null,null,null,null,null,null,null,null,null,null,null,null,{"$f":"IFERROR(INDEX(الجدول1[اسم الطالب],MATCH(0,INDEX(COUNTIF($M$3:M934,الجدول1[اسم الطالب]),),0)),\"\")","v":""}]
[null,null,null,null,null,null,null,null,null,null,null,null,{"$f":"IFERROR(INDEX(الجدول1[اسم الطالب],MATCH(0,INDEX(COUNTIF($M$3:M935,الجدول1[اسم الطالب]),),0)),\"\")","v":""}]
[null,null,null,null,null,null,null,null,null,null,null,null,{"$f":"IFERROR(INDEX(الجدول1[اسم الطالب],MATCH(0,INDEX(COUNTIF($M$3:M936,الجدول1[اسم الطالب]),),0)),\"\")","v":""}]
[null,null,null,null,null,null,null,null,null,null,null,null,{"$f":"IFERROR(INDEX(الجدول1[اسم الطالب],MATCH(0,INDEX(COUNTIF($M$3:M937,الجدول1[اسم الطالب]),),0)),\"\")","v":""}]
[null,null,null,null,null,null,null,null,null,null,null,null,{"$f":"IFERROR(INDEX(الجدول1[اسم الطالب],MATCH(0,INDEX(COUNTIF($M$3:M938,الجدول1[اسم الطالب]),),0)),\"\")","v":""}]
[null,null,null,null,null,null,null,null,null,null,null,null,{"$f":"IFERROR(INDEX(الجدول1[اسم الطالب],MATCH(0,INDEX(COUNTIF($M$3:M939,الجدول1[اسم الطالب]),),0)),\"\")","v":""}]
[null,null,null,null,null,null,null,null,null,null,null,null,{"$f":"IFERROR(INDEX(الجدول1[اسم الطالب],MATCH(0,INDEX(COUNTIF($M$3:M940,الجدول1[اسم الطالب]),),0)),\"\")","v":""}]
[null,null,null,null,null,null,null,null,null,null,null,null,{"$f":"IFERROR(INDEX(الجدول1[اسم الطالب],MATCH(0,INDEX(COUNTIF($M$3:M941,الجدول1[اسم الطالب]),),0)),\"\")","v":""}]
[null,null,null,null,null,null,null,null,null,null,null,null,{"$f":"IFERROR(INDEX(الجدول1[اسم الطالب],MATCH(0,INDEX(COUNTIF($M$3:M942,الجدول1[اسم الطالب]),),0)),\"\")","v":""}]
[null,null,null,null,null,null,null,null,null,null,null,null,{"$f":"IFERROR(INDEX(الجدول1[اسم الطالب],MATCH(0,INDEX(COUNTIF($M$3:M943,الجدول1[اسم الطالب]),),0)),\"\")","v":""}]
[null,null,null,null,null,null,null,null,null,null,null,null,{"$f":"IFERROR(INDEX(الجدول1[اسم الطالب],MATCH(0,INDEX(COUNTIF($M$3:M944,الجدول1[اسم الطالب]),),0)),\"\")","v":""}]
[null,null,null,null,null,null,null,null,null,null,null,null,{"$f":"IFERROR(INDEX(الجدول1[اسم الطالب],MATCH(0,INDEX(COUNTIF($M$3:M945,الجدول1[اسم الطالب]),),0)),\"\")","v":""}]
[null,null,null,null,null,null,null,null,null,null,null,null,{"$f":"IFERROR(INDEX(الجدول1[اسم الطالب],MATCH(0,INDEX(COUNTIF($M$3:M946,الجدول1[اسم الطالب]),),0)),\"\")","v":""}]
[null,null,null,null,null,null,null,null,null,null,null,null,{"$f":"IFERROR(INDEX(الجدول1[اسم الطالب],MATCH(0,INDEX(COUNTIF($M$3:M947,الجدول1[اسم الطالب]),),0)),\"\")","v":""}]
[null,null,null,null,null,null,null,null,null,null,null,null,{"$f":"IFERROR(INDEX(الجدول1[اسم الطالب],MATCH(0,INDEX(COUNTIF($M$3:M948,الجدول1[اسم الطالب]),),0)),\"\")","v":""}]
[null,null,null,null,null,null,null,null,null,null,null,null,{"$f":"IFERROR(INDEX(الجدول1[اسم الطالب],MATCH(0,INDEX(COUNTIF($M$3:M949,الجدول1[اسم الطالب]),),0)),\"\")","v":""}]
[null,null,null,null,null,null,null,null,null,null,null,null,{"$f":"IFERROR(INDEX(الجدول1[اسم الطالب],MATCH(0,INDEX(COUNTIF($M$3:M950,الجدول1[اسم الطالب]),),0)),\"\")","v":""}]
[null,null,null,null,null,null,null,null,null,null,null,null,{"$f":"IFERROR(INDEX(الجدول1[اسم الطالب],MATCH(0,INDEX(COUNTIF($M$3:M951,الجدول1[اسم الطالب]),),0)),\"\")","v":""}]
[null,null,null,null,null,null,null,null,null,null,null,null,{"$f":"IFERROR(INDEX(الجدول1[اسم الطالب],MATCH(0,INDEX(COUNTIF($M$3:M952,الجدول1[اسم الطالب]),),0)),\"\")","v":""}]
[null,null,null,null,null,null,null,null,null,null,null,null,{"$f":"IFERROR(INDEX(الجدول1[اسم الطالب],MATCH(0,INDEX(COUNTIF($M$3:M953,الجدول1[اسم الطالب]),),0)),\"\")","v":""}]
[null,null,null,null,null,null,null,null,null,null,null,null,{"$f":"IFERROR(INDEX(الجدول1[اسم الطالب],MATCH(0,INDEX(COUNTIF($M$3:M954,الجدول1[اسم الطالب]),),0)),\"\")","v":""}]
[null,null,null,null,null,null,null,null,null,null,null,null,{"$f":"IFERROR(INDEX(الجدول1[اسم الطالب],MATCH(0,INDEX(COUNTIF($M$3:M955,الجدول1[اسم الطالب]),),0)),\"\")","v":""}]
[null,null,null,null,null,null,null,null,null,null,null,null,{"$f":"IFERROR(INDEX(الجدول1[اسم الطالب],MATCH(0,INDEX(COUNTIF($M$3:M956,الجدول1[اسم الطالب]),),0)),\"\")","v":""}]
[null,null,null,null,null,null,null,null,null,null,null,null,{"$f":"IFERROR(INDEX(الجدول1[اسم الطالب],MATCH(0,INDEX(COUNTIF($M$3:M957,الجدول1[اسم الطالب]),),0)),\"\")","v":""}]
[null,null,null,null,null,null,null,null,null,null,null,null,{"$f":"IFERROR(INDEX(الجدول1[اسم الطالب],MATCH(0,INDEX(COUNTIF($M$3:M958,الجدول1[اسم الطالب]),),0)),\"\")","v":""}]
[null,null,null,null,null,null,null,null,null,null,null,null,{"$f":"IFERROR(INDEX(الجدول1[اسم الطالب],MATCH(0,INDEX(COUNTIF($M$3:M959,الجدول1[اسم الطالب]),),0)),\"\")","v":""}]
[null,null,null,null,null,null,null,null,null,null,null,null,{"$f":"IFERROR(INDEX(الجدول1[اسم الطالب],MATCH(0,INDEX(COUNTIF($M$3:M960,الجدول1[اسم الطالب]),),0)),\"\")","v":""}]
[null,null,null,null,null,null,null,null,null,null,null,null,{"$f":"IFERROR(INDEX(الجدول1[اسم الطالب],MATCH(0,INDEX(COUNTIF($M$3:M961,الجدول1[اسم الطالب]),),0)),\"\")","v":""}]
[null,null,null,null,null,null,null,null,null,null,null,null,{"$f":"IFERROR(INDEX(الجدول1[اسم الطالب],MATCH(0,INDEX(COUNTIF($M$3:M962,الجدول1[اسم الطالب]),),0)),\"\")","v":""}]
[null,null,null,null,null,null,null,null,null,null,null,null,{"$f":"IFERROR(INDEX(الجدول1[اسم الطالب],MATCH(0,INDEX(COUNTIF($M$3:M963,الجدول1[اسم الطالب]),),0)),\"\")","v":""}]
[null,null,null,null,null,null,null,null,null,null,null,null,{"$f":"IFERROR(INDEX(الجدول1[اسم الطالب],MATCH(0,INDEX(COUNTIF($M$3:M964,الجدول1[اسم الطالب]),),0)),\"\")","v":""}]
[null,null,null,null,null,null,null,null,null,null,null,null,{"$f":"IFERROR(INDEX(الجدول1[اسم الطالب],MATCH(0,INDEX(COUNTIF($M$3:M965,الجدول1[اسم الطالب]),),0)),\"\")","v":""}]
[null,null,null,null,null,null,null,null,null,null,null,null,{"$f":"IFERROR(INDEX(الجدول1[اسم الطالب],MATCH(0,INDEX(COUNTIF($M$3:M966,الجدول1[اسم الطالب]),),0)),\"\")","v":""}]
[null,null,null,null,null,null,null,null,null,null,null,null,{"$f":"IFERROR(INDEX(الجدول1[اسم الطالب],MATCH(0,INDEX(COUNTIF($M$3:M967,الجدول1[اسم الطالب]),),0)),\"\")","v":""}]
[null,null,null,null,null,null,null,null,null,null,null,null,{"$f":"IFERROR(INDEX(الجدول1[اسم الطالب],MATCH(0,INDEX(COUNTIF($M$3:M968,الجدول1[اسم الطالب]),),0)),\"\")","v":""}]
[null,null,null,null,null,null,null,null,null,null,null,null,{"$f":"IFERROR(INDEX(الجدول1[اسم الطالب],MATCH(0,INDEX(COUNTIF($M$3:M969,الجدول1[اسم الطالب]),),0)),\"\")","v":""}]
[null,null,null,null,null,null,null,null,null,null,null,null,{"$f":"IFERROR(INDEX(الجدول1[اسم الطالب],MATCH(0,INDEX(COUNTIF($M$3:M970,الجدول1[اسم الطالب]),),0)),\"\")","v":""}]
[null,null,null,null,null,null,null,null,null,null,null,null,{"$f":"IFERROR(INDEX(الجدول1[اسم الطالب],MATCH(0,INDEX(COUNTIF($M$3:M971,الجدول1[اسم الطالب]),),0)),\"\")","v":""}]
[null,null,null,null,null,null,null,null,null,null,null,null,{"$f":"IFERROR(INDEX(الجدول1[اسم الطالب],MATCH(0,INDEX(COUNTIF($M$3:M972,الجدول1[اسم الطالب]),),0)),\"\")","v":""}]
[null,null,null,null,null,null,null,null,null,null,null,null,{"$f":"IFERROR(INDEX(الجدول1[اسم الطالب],MATCH(0,INDEX(COUNTIF($M$3:M973,الجدول1[اسم الطالب]),),0)),\"\")","v":""}]
[null,null,null,null,null,null,null,null,null,null,null,null,{"$f":"IFERROR(INDEX(الجدول1[اسم الطالب],MATCH(0,INDEX(COUNTIF($M$3:M974,الجدول1[اسم الطالب]),),0)),\"\")","v":""}]
[null,null,null,null,null,null,null,null,null,null,null,null,{"$f":"IFERROR(INDEX(الجدول1[اسم الطالب],MATCH(0,INDEX(COUNTIF($M$3:M975,الجدول1[اسم الطالب]),),0)),\"\")","v":""}]
[null,null,null,null,null,null,null,null,null,null,null,null,{"$f":"IFERROR(INDEX(الجدول1[اسم الطالب],MATCH(0,INDEX(COUNTIF($M$3:M976,الجدول1[اسم الطالب]),),0)),\"\")","v":""}]
[null,null,null,null,null,null,null,null,null,null,null,null,{"$f":"IFERROR(INDEX(الجدول1[اسم الطالب],MATCH(0,INDEX(COUNTIF($M$3:M977,الجدول1[اسم الطالب]),),0)),\"\")","v":""}]
[null,null,null,null,null,null,null,null,null,null,null,null,{"$f":"IFERROR(INDEX(الجدول1[اسم الطالب],MATCH(0,INDEX(COUNTIF($M$3:M978,الجدول1[اسم الطالب]),),0)),\"\")","v":""}]
[null,null,null,null,null,null,null,null,null,null,null,null,{"$f":"IFERROR(INDEX(الجدول1[اسم الطالب],MATCH(0,INDEX(COUNTIF($M$3:M979,الجدول1[اسم الطالب]),),0)),\"\")","v":""}]
[null,null,null,null,null,null,null,null,null,null,null,null,{"$f":"IFERROR(INDEX(الجدول1[اسم الطالب],MATCH(0,INDEX(COUNTIF($M$3:M980,الجدول1[اسم الطالب]),),0)),\"\")","v":""}]
[null,null,null,null,null,null,null,null,null,null,null,null,{"$f":"IFERROR(INDEX(الجدول1[اسم الطالب],MATCH(0,INDEX(COUNTIF($M$3:M981,الجدول1[اسم الطالب]),),0)),\"\")","v":""}]
[null,null,null,null,null,null,null,null,null,null,null,null,{"$f":"IFERROR(INDEX(الجدول1[اسم الطالب],MATCH(0,INDEX(COUNTIF($M$3:M982,الجدول1[اسم الطالب]),),0)),\"\")","v":""}]
[null,null,null,null,null,null,null,null,null,null,null,null,{"$f":"IFERROR(INDEX(الجدول1[اسم الطالب],MATCH(0,INDEX(COUNTIF($M$3:M983,الجدول1[اسم الطالب]),),0)),\"\")","v":""}]
[null,null,null,null,null,null,null,null,null,null,null,null,{"$f":"IFERROR(INDEX(الجدول1[اسم الطالب],MATCH(0,INDEX(COUNTIF($M$3:M984,الجدول1[اسم الطالب]),),0)),\"\")","v":""}]
[null,null,null,null,null,null,null,null,null,null,null,null,{"$f":"IFERROR(INDEX(الجدول1[اسم الطالب],MATCH(0,INDEX(COUNTIF($M$3:M985,الجدول1[اسم الطالب]),),0)),\"\")","v":""}]
[null,null,null,null,null,null,null,null,null,null,null,null,{"$f":"IFERROR(INDEX(الجدول1[اسم الطالب],MATCH(0,INDEX(COUNTIF($M$3:M986,الجدول1[اسم الطالب]),),0)),\"\")","v":""}]
[null,null,null,null,null,null,null,null,null,null,null,null,{"$f":"IFERROR(INDEX(الجدول1[اسم الطالب],MATCH(0,INDEX(COUNTIF($M$3:M987,الجدول1[اسم الطالب]),),0)),\"\")","v":""}]
[null,null,null,null,null,null,null,null,null,null,null,null,{"$f":"IFERROR(INDEX(الجدول1[اسم الطالب],MATCH(0,INDEX(COUNTIF($M$3:M988,الجدول1[اسم الطالب]),),0)),\"\")","v":""}]
[null,null,null,null,null,null,null,null,null,null,null,null,{"$f":"IFERROR(INDEX(الجدول1[اسم الطالب],MATCH(0,INDEX(COUNTIF($M$3:M989,الجدول1[اسم الطالب]),),0)),\"\")","v":""}]
[null,null,null,null,null,null,null,null,null,null,null,null,{"$f":"IFERROR(INDEX(الجدول1[اسم الطالب],MATCH(0,INDEX(COUNTIF($M$3:M990,الجدول1[اسم الطالب]),),0)),\"\")","v":""}]
[null,null,null,null,null,null,null,null,null,null,null,null,{"$f":"IFERROR(INDEX(الجدول1[اسم الطالب],MATCH(0,INDEX(COUNTIF($M$3:M991,الجدول1[اسم الطالب]),),0)),\"\")","v":""}]
[null,null,null,null,null,null,null,null,null,null,null,null,{"$f":"IFERROR(INDEX(الجدول1[اسم الطالب],MATCH(0,INDEX(COUNTIF($M$3:M992,الجدول1[اسم الطالب]),),0)),\"\")","v":""}]
[null,null,null,null,null,null,null,null,null,null,null,null,{"$f":"IFERROR(INDEX(الجدول1[اسم الطالب],MATCH(0,INDEX(COUNTIF($M$3:M993,الجدول1[اسم الطالب]),),0)),\"\")","v":""}]
[null,null,null,null,null,null,null,null,null,null,null,null,{"$f":"IFERROR(INDEX(الجدول1[اسم الطالب],MATCH(0,INDEX(COUNTIF($M$3:M994,الجدول1[اسم الطالب]),),0)),\"\")","v":""}]
[null,null,null,null,null,null,null,null,null,null,null,null,{"$f":"IFERROR(INDEX(الجدول1[اسم الطالب],MATCH(0,INDEX(COUNTIF($M$3:M995,الجدول1[اسم الطالب]),),0)),\"\")","v":""}]
[null,null,null,null,null,null,null,null,null,null,null,null,{"$f":"IFERROR(INDEX(الجدول1[اسم الطالب],MATCH(0,INDEX(COUNTIF($M$3:M996,الجدول1[اسم الطالب]),),0)),\"\")","v":""}]
[null,null,null,null,null,null,null,null,null,null,null,null,{"$f":"IFERROR(INDEX(الجدول1[اسم الطالب],MATCH(0,INDEX(COUNTIF($M$3:M997,الجدول1[اسم الطالب]),),0)),\"\")","v":""}]
[null,null,null,null,null,null,null,null,null,null,null,null,{"$f":"IFERROR(INDEX(الجدول1[اسم الطالب],MATCH(0,INDEX(COUNTIF($M$3:M998,الجدول1[اسم الطالب]),),0)),\"\")","v":""}]
[null,null,null,null,null,null,null,null,null,null,null,null,{"$f":"IFERROR(INDEX(الجدول1[اسم الطالب],MATCH(0,INDEX(COUNTIF($M$3:M999,الجدول1[اسم الطالب]),),0)),\"\")","v":""}]
[null,null,null,null,null,null,null,null,null,null,null,null,{"$f":"IFERROR(INDEX(الجدول1[اسم الطالب],MATCH(0,INDEX(COUNTIF($M$3:M1000,الجدول1[اسم الطالب]),),0)),\"\")","v":""}]
[null,null,null,null,null,null,null,null,null,null,null,null,{"$f":"IFERROR(INDEX(الجدول1[اسم الطالب],MATCH(0,INDEX(COUNTIF($M$3:M1001,الجدول1[اسم الطالب]),),0)),\"\")","v":""}]
[null,null,null,null,null,null,null,null,null,null,null,null,{"$f":"IFERROR(INDEX(الجدول1[اسم الطالب],MATCH(0,INDEX(COUNTIF($M$3:M1002,الجدول1[اسم الطالب]),),0)),\"\")","v":""}]
[null,null,null,null,null,null,null,null,null,null,null,null,{"$f":"IFERROR(INDEX(الجدول1[اسم الطالب],MATCH(0,INDEX(COUNTIF($M$3:M1003,الجدول1[اسم الطالب]),),0)),\"\")","v":""}]
[null,null,null,null,null,null,null,null,null,null,null,null,{"$f":"IFERROR(INDEX(الجدول1[اسم الطالب],MATCH(0,INDEX(COUNTIF($M$3:M1004,الجدول1[اسم الطالب]),),0)),\"\")","v":""}]
[null,null,null,null,null,null,null,null,null,null,null,null,{"$f":"IFERROR(INDEX(الجدول1[اسم الطالب],MATCH(0,INDEX(COUNTIF($M$3:M1005,الجدول1[اسم الطالب]),),0)),\"\")","v":""}]
[null,null,null,null,null,null,null,null,null,null,null,null,{"$f":"IFERROR(INDEX(الجدول1[اسم الطالب],MATCH(0,INDEX(COUNTIF($M$3:M1006,الجدول1[اسم الطالب]),),0)),\"\")","v":""}]
[null,null,null,null,null,null,null,null,null,null,null,null,{"$f":"IFERROR(INDEX(الجدول1[اسم الطالب],MATCH(0,INDEX(COUNTIF($M$3:M1007,الجدول1[اسم الطالب]),),0)),\"\")","v":""}]
[null,null,null,null,null,null,null,null,null,null,null,null,{"$f":"IFERROR(INDEX(الجدول1[اسم الطالب],MATCH(0,INDEX(COUNTIF($M$3:M1008,الجدول1[اسم الطالب]),),0)),\"\")","v":""}]
[null,null,null,null,null,null,null,null,null,null,null,null,{"$f":"IFERROR(INDEX(الجدول1[اسم الطالب],MATCH(0,INDEX(COUNTIF($M$3:M1009,الجدول1[اسم الطالب]),),0)),\"\")","v":""}]
[null,null,null,null,null,null,null,null,null,null,null,null,{"$f":"IFERROR(INDEX(الجدول1[اسم الطالب],MATCH(0,INDEX(COUNTIF($M$3:M1010,الجدول1[اسم الطالب]),),0)),\"\")","v":""}]
[null,null,null,null,null,null,null,null,null,null,null,null,{"$f":"IFERROR(INDEX(الجدول1[اسم الطالب],MATCH(0,INDEX(COUNTIF($M$3:M1011,الجدول1[اسم الطالب]),),0)),\"\")","v":""}]
[null,null,null,null,null,null,null,null,null,null,null,null,{"$f":"IFERROR(INDEX(الجدول1[اسم الطالب],MATCH(0,INDEX(COUNTIF($M$3:M1012,الجدول1[اسم الطالب]),),0)),\"\")","v":""}]
[null,null,null,null,null,null,null,null,null,null,null,null,{"$f":"IFERROR(INDEX(الجدول1[اسم الطالب],MATCH(0,INDEX(COUNTIF($M$3:M1013,الجدول1[اسم الطالب]),),0)),\"\")","v":""}]
[null,null,null,null,null,null,null,null,null,null,null,null,{"$f":"IFERROR(INDEX(الجدول1[اسم الطالب],MATCH(0,INDEX(COUNTIF($M$3:M1014,الجدول1[اسم الطالب]),),0)),\"\")","v":""}]
[null,null,null,null,null,null,null,null,null,null,null,null,{"$f":"IFERROR(INDEX(الجدول1[اسم الطالب],MATCH(0,INDEX(COUNTIF($M$3:M1015,الجدول1[اسم الطالب]),),0)),\"\")","v":""}]
[null,null,null,null,null,null,null,null,null,null,null,null,{"$f":"IFERROR(INDEX(الجدول1[اسم الطالب],MATCH(0,INDEX(COUNTIF($M$3:M1016,الجدول1[اسم الطالب]),),0)),\"\")","v":""}]
[null,null,null,null,null,null,null,null,null,null,null,null,{"$f":"IFERROR(INDEX(الجدول1[اسم الطالب],MATCH(0,INDEX(COUNTIF($M$3:M1017,الجدول1[اسم الطالب]),),0)),\"\")","v":""}]
[null,null,null,null,null,null,null,null,null,null,null,null,{"$f":"IFERROR(INDEX(الجدول1[اسم الطالب],MATCH(0,INDEX(COUNTIF($M$3:M1018,الجدول1[اسم الطالب]),),0)),\"\")","v":""}]
[null,null,null,null,null,null,null,null,null,null,null,null,{"$f":"IFERROR(INDEX(الجدول1[اسم الطالب],MATCH(0,INDEX(COUNTIF($M$3:M1019,الجدول1[اسم الطالب]),),0)),\"\")","v":""}]
[null,null,null,null,null,null,null,null,null,null,null,null,{"$f":"IFERROR(INDEX(الجدول1[اسم الطالب],MATCH(0,INDEX(COUNTIF($M$3:M1020,الجدول1[اسم الطالب]),),0)),\"\")","v":""}]
[null,null,null,null,null,null,null,null,null,null,null,null,{"$f":"IFERROR(INDEX(الجدول1[اسم الطالب],MATCH(0,INDEX(COUNTIF($M$3:M1021,الجدول1[اسم الطالب]),),0)),\"\")","v":""}]
[null,null,null,null,null,null,null,null,null,null,null,null,{"$f":"IFERROR(INDEX(الجدول1[اسم الطالب],MATCH(0,INDEX(COUNTIF($M$3:M1022,الجدول1[اسم الطالب]),),0)),\"\")","v":""}]
[null,null,null,null,null,null,null,null,null,null,null,null,{"$f":"IFERROR(INDEX(الجدول1[اسم الطالب],MATCH(0,INDEX(COUNTIF($M$3:M1023,الجدول1[اسم الطالب]),),0)),\"\")","v":""}]
[null,null,null,null,null,null,null,null,null,null,null,null,{"$f":"IFERROR(INDEX(الجدول1[اسم الطالب],MATCH(0,INDEX(COUNTIF($M$3:M1024,الجدول1[اسم الطالب]),),0)),\"\")","v":""}]
[null,null,null,null,null,null,null,null,null,null,null,null,{"$f":"IFERROR(INDEX(الجدول1[اسم الطالب],MATCH(0,INDEX(COUNTIF($M$3:M1025,الجدول1[اسم الطالب]),),0)),\"\")","v":""}]
[null,null,null,null,null,null,null,null,null,null,null,null,{"$f":"IFERROR(INDEX(الجدول1[اسم الطالب],MATCH(0,INDEX(COUNTIF($M$3:M1026,الجدول1[اسم الطالب]),),0)),\"\")","v":""}]
[null,null,null,null,null,null,null,null,null,null,null,null,{"$f":"IFERROR(INDEX(الجدول1[اسم الطالب],MATCH(0,INDEX(COUNTIF($M$3:M1027,الجدول1[اسم الطالب]),),0)),\"\")","v":""}]
[null,null,null,null,null,null,null,null,null,null,null,null,{"$f":"IFERROR(INDEX(الجدول1[اسم الطالب],MATCH(0,INDEX(COUNTIF($M$3:M1028,الجدول1[اسم الطالب]),),0)),\"\")","v":""}]
[null,null,null,null,null,null,null,null,null,null,null,null,{"$f":"IFERROR(INDEX(الجدول1[اسم الطالب],MATCH(0,INDEX(COUNTIF($M$3:M1029,الجدول1[اسم الطالب]),),0)),\"\")","v":""}]
[null,null,null,null,null,null,null,null,null,null,null,null,{"$f":"IFERROR(INDEX(الجدول1[اسم الطالب],MATCH(0,INDEX(COUNTIF($M$3:M1030,الجدول1[اسم الطالب]),),0)),\"\")","v":""}]
[null,null,null,null,null,null,null,null,null,null,null,null,{"$f":"IFERROR(INDEX(الجدول1[اسم الطالب],MATCH(0,INDEX(COUNTIF($M$3:M1031,الجدول1[اسم الطالب]),),0)),\"\")","v":""}]
[null,null,null,null,null,null,null,null,null,null,null,null,{"$f":"IFERROR(INDEX(الجدول1[اسم الطالب],MATCH(0,INDEX(COUNTIF($M$3:M1032,الجدول1[اسم الطالب]),),0)),\"\")","v":""}]
[null,null,null,null,null,null,null,null,null,null,null,null,{"$f":"IFERROR(INDEX(الجدول1[اسم الطالب],MATCH(0,INDEX(COUNTIF($M$3:M1033,الجدول1[اسم الطالب]),),0)),\"\")","v":""}]
[null,null,null,null,null,null,null,null,null,null,null,null,{"$f":"IFERROR(INDEX(الجدول1[اسم الطالب],MATCH(0,INDEX(COUNTIF($M$3:M1034,الجدول1[اسم الطالب]),),0)),\"\")","v":""}]
[null,null,null,null,null,null,null,null,null,null,null,null,{"$f":"IFERROR(INDEX(الجدول1[اسم الطالب],MATCH(0,INDEX(COUNTIF($M$3:M1035,الجدول1[اسم الطالب]),),0)),\"\")","v":""}]
[null,null,null,null,null,null,null,null,null,null,null,null,{"$f":"IFERROR(INDEX(الجدول1[اسم الطالب],MATCH(0,INDEX(COUNTIF($M$3:M1036,الجدول1[اسم الطالب]),),0)),\"\")","v":""}]
[null,null,null,null,null,null,null,null,null,null,null,null,{"$f":"IFERROR(INDEX(الجدول1[اسم الطالب],MATCH(0,INDEX(COUNTIF($M$3:M1037,الجدول1[اسم الطالب]),),0)),\"\")","v":""}]
[null,null,null,null,null,null,null,null,null,null,null,null,{"$f":"IFERROR(INDEX(الجدول1[اسم الطالب],MATCH(0,INDEX(COUNTIF($M$3:M1038,الجدول1[اسم الطالب]),),0)),\"\")","v":""}]
[null,null,null,null,null,null,null,null,null,null,null,null,{"$f":"IFERROR(INDEX(الجدول1[اسم الطالب],MATCH(0,INDEX(COUNTIF($M$3:M1039,الجدول1[اسم الطالب]),),0)),\"\")","v":""}]
[null,null,null,null,null,null,null,null,null,null,null,null,{"$f":"IFERROR(INDEX(الجدول1[اسم الطالب],MATCH(0,INDEX(COUNTIF($M$3:M1040,الجدول1[اسم الطالب]),),0)),\"\")","v":""}]
[null,null,null,null,null,null,null,null,null,null,null,null,{"$f":"IFERROR(INDEX(الجدول1[اسم الطالب],MATCH(0,INDEX(COUNTIF($M$3:M1041,الجدول1[اسم الطالب]),),0)),\"\")","v":""}]
[null,null,null,null,null,null,null,null,null,null,null,null,{"$f":"IFERROR(INDEX(الجدول1[اسم الطالب],MATCH(0,INDEX(COUNTIF($M$3:M1042,الجدول1[اسم الطالب]),),0)),\"\")","v":""}]
[null,null,null,null,null,null,null,null,null,null,null,null,{"$f":"IFERROR(INDEX(الجدول1[اسم الطالب],MATCH(0,INDEX(COUNTIF($M$3:M1043,الجدول1[اسم الطالب]),),0)),\"\")","v":""}]
[null,null,null,null,null,null,null,null,null,null,null,null,{"$f":"IFERROR(INDEX(الجدول1[اسم الطالب],MATCH(0,INDEX(COUNTIF($M$3:M1044,الجدول1[اسم الطالب]),),0)),\"\")","v":""}]
[null,null,null,null,null,null,null,null,null,null,null,null,{"$f":"IFERROR(INDEX(الجدول1[اسم الطالب],MATCH(0,INDEX(COUNTIF($M$3:M1045,الجدول1[اسم الطالب]),),0)),\"\")","v":""}]
[null,null,null,null,null,null,null,null,null,null,null,null,{"$f":"IFERROR(INDEX(الجدول1[اسم الطالب],MATCH(0,INDEX(COUNTIF($M$3:M1046,الجدول1[اسم الطالب]),),0)),\"\")","v":""}]
[null,null,null,null,null,null,null,null,null,null,null,null,{"$f":"IFERROR(INDEX(الجدول1[اسم الطالب],MATCH(0,INDEX(COUNTIF($M$3:M1047,الجدول1[اسم الطالب]),),0)),\"\")","v":""}]
[null,null,null,null,null,null,null,null,null,null,null,null,{"$f":"IFERROR(INDEX(الجدول1[اسم الطالب],MATCH(0,INDEX(COUNTIF($M$3:M1048,الجدول1[اسم الطالب]),),0)),\"\")","v":""}]
[null,null,null,null,null,null,null,null,null,null,null,null,{"$f":"IFERROR(INDEX(الجدول1[اسم الطالب],MATCH(0,INDEX(COUNTIF($M$3:M1049,الجدول1[اسم الطالب]),),0)),\"\")","v":""}]
[null,null,null,null,null,null,null,null,null,null,null,null,{"$f":"IFERROR(INDEX(الجدول1[اسم الطالب],MATCH(0,INDEX(COUNTIF($M$3:M1050,الجدول1[اسم الطالب]),),0)),\"\")","v":""}]
[null,null,null,null,null,null,null,null,null,null,null,null,{"$f":"IFERROR(INDEX(الجدول1[اسم الطالب],MATCH(0,INDEX(COUNTIF($M$3:M1051,الجدول1[اسم الطالب]),),0)),\"\")","v":""}]
[null,null,null,null,null,null,null,null,null,null,null,null,{"$f":"IFERROR(INDEX(الجدول1[اسم الطالب],MATCH(0,INDEX(COUNTIF($M$3:M1052,الجدول1[اسم الطالب]),),0)),\"\")","v":""}]
[null,null,null,null,null,null,null,null,null,null,null,null,{"$f":"IFERROR(INDEX(الجدول1[اسم الطالب],MATCH(0,INDEX(COUNTIF($M$3:M1053,الجدول1[اسم الطالب]),),0)),\"\")","v":""}]
[null,null,null,null,null,null,null,null,null,null,null,null,{"$f":"IFERROR(INDEX(الجدول1[اسم الطالب],MATCH(0,INDEX(COUNTIF($M$3:M1054,الجدول1[اسم الطالب]),),0)),\"\")","v":""}]
[null,null,null,null,null,null,null,null,null,null,null,null,{"$f":"IFERROR(INDEX(الجدول1[اسم الطالب],MATCH(0,INDEX(COUNTIF($M$3:M1055,الجدول1[اسم الطالب]),),0)),\"\")","v":""}]
[null,null,null,null,null,null,null,null,null,null,null,null,{"$f":"IFERROR(INDEX(الجدول1[اسم الطالب],MATCH(0,INDEX(COUNTIF($M$3:M1056,الجدول1[اسم الطالب]),),0)),\"\")","v":""}]
[null,null,null,null,null,null,null,null,null,null,null,null,{"$f":"IFERROR(INDEX(الجدول1[اسم الطالب],MATCH(0,INDEX(COUNTIF($M$3:M1057,الجدول1[اسم الطالب]),),0)),\"\")","v":""}]
[null,null,null,null,null,null,null,null,null,null,null,null,{"$f":"IFERROR(INDEX(الجدول1[اسم الطالب],MATCH(0,INDEX(COUNTIF($M$3:M1058,الجدول1[اسم الطالب]),),0)),\"\")","v":""}]
[null,null,null,null,null,null,null,null,null,null,null,null,{"$f":"IFERROR(INDEX(الجدول1[اسم الطالب],MATCH(0,INDEX(COUNTIF($M$3:M1059,الجدول1[اسم الطالب]),),0)),\"\")","v":""}]
[null,null,null,null,null,null,null,null,null,null,null,null,{"$f":"IFERROR(INDEX(الجدول1[اسم الطالب],MATCH(0,INDEX(COUNTIF($M$3:M1060,الجدول1[اسم الطالب]),),0)),\"\")","v":""}]
[null,null,null,null,null,null,null,null,null,null,null,null,{"$f":"IFERROR(INDEX(الجدول1[اسم الطالب],MATCH(0,INDEX(COUNTIF($M$3:M1061,الجدول1[اسم الطالب]),),0)),\"\")","v":""}]
[null,null,null,null,null,null,null,null,null,null,null,null,{"$f":"IFERROR(INDEX(الجدول1[اسم الطالب],MATCH(0,INDEX(COUNTIF($M$3:M1062,الجدول1[اسم الطالب]),),0)),\"\")","v":""}]
[null,null,null,null,null,null,null,null,null,null,null,null,{"$f":"IFERROR(INDEX(الجدول1[اسم الطالب],MATCH(0,INDEX(COUNTIF($M$3:M1063,الجدول1[اسم الطالب]),),0)),\"\")","v":""}]
[null,null,null,null,null,null,null,null,null,null,null,null,{"$f":"IFERROR(INDEX(الجدول1[اسم الطالب],MATCH(0,INDEX(COUNTIF($M$3:M1064,الجدول1[اسم الطالب]),),0)),\"\")","v":""}]
[null,null,null,null,null,null,null,null,null,null,null,null,{"$f":"IFERROR(INDEX(الجدول1[اسم الطالب],MATCH(0,INDEX(COUNTIF($M$3:M1065,الجدول1[اسم الطالب]),),0)),\"\")","v":""}]
[null,null,null,null,null,null,null,null,null,null,null,null,{"$f":"IFERROR(INDEX(الجدول1[اسم الطالب],MATCH(0,INDEX(COUNTIF($M$3:M1066,الجدول1[اسم الطالب]),),0)),\"\")","v":""}]
[null,null,null,null,null,null,null,null,null,null,null,null,{"$f":"IFERROR(INDEX(الجدول1[اسم الطالب],MATCH(0,INDEX(COUNTIF($M$3:M1067,الجدول1[اسم الطالب]),),0)),\"\")","v":""}]
[null,null,null,null,null,null,null,null,null,null,null,null,{"$f":"IFERROR(INDEX(الجدول1[اسم الطالب],MATCH(0,INDEX(COUNTIF($M$3:M1068,الجدول1[اسم الطالب]),),0)),\"\")","v":""}]
[null,null,null,null,null,null,null,null,null,null,null,null,{"$f":"IFERROR(INDEX(الجدول1[اسم الطالب],MATCH(0,INDEX(COUNTIF($M$3:M1069,الجدول1[اسم الطالب]),),0)),\"\")","v":""}]
[null,null,null,null,null,null,null,null,null,null,null,null,{"$f":"IFERROR(INDEX(الجدول1[اسم الطالب],MATCH(0,INDEX(COUNTIF($M$3:M1070,الجدول1[اسم الطالب]),),0)),\"\")","v":""}]
[null,null,null,null,null,null,null,null,null,null,null,null,{"$f":"IFERROR(INDEX(الجدول1[اسم الطالب],MATCH(0,INDEX(COUNTIF($M$3:M1071,الجدول1[اسم الطالب]),),0)),\"\")","v":""}]
[null,null,null,null,null,null,null,null,null,null,null,null,{"$f":"IFERROR(INDEX(الجدول1[اسم الطالب],MATCH(0,INDEX(COUNTIF($M$3:M1072,الجدول1[اسم الطالب]),),0)),\"\")","v":""}]
[null,null,null,null,null,null,null,null,null,null,null,null,{"$f":"IFERROR(INDEX(الجدول1[اسم الطالب],MATCH(0,INDEX(COUNTIF($M$3:M1073,الجدول1[اسم الطالب]),),0)),\"\")","v":""}]
[null,null,null,null,null,null,null,null,null,null,null,null,{"$f":"IFERROR(INDEX(الجدول1[اسم الطالب],MATCH(0,INDEX(COUNTIF($M$3:M1074,الجدول1[اسم الطالب]),),0)),\"\")","v":""}]
[null,null,null,null,null,null,null,null,null,null,null,null,{"$f":"IFERROR(INDEX(الجدول1[اسم الطالب],MATCH(0,INDEX(COUNTIF($M$3:M1075,الجدول1[اسم الطالب]),),0)),\"\")","v":""}]
[null,null,null,null,null,null,null,null,null,null,null,null,{"$f":"IFERROR(INDEX(الجدول1[اسم الطالب],MATCH(0,INDEX(COUNTIF($M$3:M1076,الجدول1[اسم الطالب]),),0)),\"\")","v":""}]
[null,null,null,null,null,null,null,null,null,null,null,null,{"$f":"IFERROR(INDEX(الجدول1[اسم الطالب],MATCH(0,INDEX(COUNTIF($M$3:M1077,الجدول1[اسم الطالب]),),0)),\"\")","v":""}]
[null,null,null,null,null,null,null,null,null,null,null,null,{"$f":"IFERROR(INDEX(الجدول1[اسم الطالب],MATCH(0,INDEX(COUNTIF($M$3:M1078,الجدول1[اسم الطالب]),),0)),\"\")","v":""}]
[null,null,null,null,null,null,null,null,null,null,null,null,{"$f":"IFERROR(INDEX(الجدول1[اسم الطالب],MATCH(0,INDEX(COUNTIF($M$3:M1079,الجدول1[اسم الطالب]),),0)),\"\")","v":""}]
[null,null,null,null,null,null,null,null,null,null,null,null,{"$f":"IFERROR(INDEX(الجدول1[اسم الطالب],MATCH(0,INDEX(COUNTIF($M$3:M1080,الجدول1[اسم الطالب]),),0)),\"\")","v":""}]
[null,null,null,null,null,null,null,null,null,null,null,null,{"$f":"IFERROR(INDEX(الجدول1[اسم الطالب],MATCH(0,INDEX(COUNTIF($M$3:M1081,الجدول1[اسم الطالب]),),0)),\"\")","v":""}]
[null,null,null,null,null,null,null,null,null,null,null,null,{"$f":"IFERROR(INDEX(الجدول1[اسم الطالب],MATCH(0,INDEX(COUNTIF($M$3:M1082,الجدول1[اسم الطالب]),),0)),\"\")","v":""}]
[null,null,null,null,null,null,null,null,null,null,null,null,{"$f":"IFERROR(INDEX(الجدول1[اسم الطالب],MATCH(0,INDEX(COUNTIF($M$3:M1083,الجدول1[اسم الطالب]),),0)),\"\")","v":""}]
[null,null,null,null,null,null,null,null,null,null,null,null,{"$f":"IFERROR(INDEX(الجدول1[اسم الطالب],MATCH(0,INDEX(COUNTIF($M$3:M1084,الجدول1[اسم الطالب]),),0)),\"\")","v":""}]
[null,null,null,null,null,null,null,null,null,null,null,null,{"$f":"IFERROR(INDEX(الجدول1[اسم الطالب],MATCH(0,INDEX(COUNTIF($M$3:M1085,الجدول1[اسم الطالب]),),0)),\"\")","v":""}]
[null,null,null,null,null,null,null,null,null,null,null,null,{"$f":"IFERROR(INDEX(الجدول1[اسم الطالب],MATCH(0,INDEX(COUNTIF($M$3:M1086,الجدول1[اسم الطالب]),),0)),\"\")","v":""}]
[null,null,null,null,null,null,null,null,null,null,null,null,{"$f":"IFERROR(INDEX(الجدول1[اسم الطالب],MATCH(0,INDEX(COUNTIF($M$3:M1087,الجدول1[اسم الطالب]),),0)),\"\")","v":""}]
[null,null,null,null,null,null,null,null,null,null,null,null,{"$f":"IFERROR(INDEX(الجدول1[اسم الطالب],MATCH(0,INDEX(COUNTIF($M$3:M1088,الجدول1[اسم الطالب]),),0)),\"\")","v":""}]
[null,null,null,null,null,null,null,null,null,null,null,null,{"$f":"IFERROR(INDEX(الجدول1[اسم الطالب],MATCH(0,INDEX(COUNTIF($M$3:M1089,الجدول1[اسم الطالب]),),0)),\"\")","v":""}]
[null,null,null,null,null,null,null,null,null,null,null,null,{"$f":"IFERROR(INDEX(الجدول1[اسم الطالب],MATCH(0,INDEX(COUNTIF($M$3:M1090,الجدول1[اسم الطالب]),),0)),\"\")","v":""}]
[null,null,null,null,null,null,null,null,null,null,null,null,{"$f":"IFERROR(INDEX(الجدول1[اسم الطالب],MATCH(0,INDEX(COUNTIF($M$3:M1091,الجدول1[اسم الطالب]),),0)),\"\")","v":""}]
[null,null,null,null,null,null,null,null,null,null,null,null,{"$f":"IFERROR(INDEX(الجدول1[اسم الطالب],MATCH(0,INDEX(COUNTIF($M$3:M1092,الجدول1[اسم الطالب]),),0)),\"\")","v":""}]
[null,null,null,null,null,null,null,null,null,null,null,null,{"$f":"IFERROR(INDEX(الجدول1[اسم الطالب],MATCH(0,INDEX(COUNTIF($M$3:M1093,الجدول1[اسم الطالب]),),0)),\"\")","v":""}]
[null,null,null,null,null,null,null,null,null,null,null,null,{"$f":"IFERROR(INDEX(الجدول1[اسم الطالب],MATCH(0,INDEX(COUNTIF($M$3:M1094,الجدول1[اسم الطالب]),),0)),\"\")","v":""}]
[null,null,null,null,null,null,null,null,null,null,null,null,{"$f":"IFERROR(INDEX(الجدول1[اسم الطالب],MATCH(0,INDEX(COUNTIF($M$3:M1095,الجدول1[اسم الطالب]),),0)),\"\")","v":""}]
[null,null,null,null,null,null,null,null,null,null,null,null,{"$f":"IFERROR(INDEX(الجدول1[اسم الطالب],MATCH(0,INDEX(COUNTIF($M$3:M1096,الجدول1[اسم الطالب]),),0)),\"\")","v":""}]
[null,null,null,null,null,null,null,null,null,null,null,null,{"$f":"IFERROR(INDEX(الجدول1[اسم الطالب],MATCH(0,INDEX(COUNTIF($M$3:M1097,الجدول1[اسم الطالب]),),0)),\"\")","v":""}]
[null,null,null,null,null,null,null,null,null,null,null,null,{"$f":"IFERROR(INDEX(الجدول1[اسم الطالب],MATCH(0,INDEX(COUNTIF($M$3:M1098,الجدول1[اسم الطالب]),),0)),\"\")","v":""}]
[null,null,null,null,null,null,null,null,null,null,null,null,{"$f":"IFERROR(INDEX(الجدول1[اسم الطالب],MATCH(0,INDEX(COUNTIF($M$3:M1099,الجدول1[اسم الطالب]),),0)),\"\")","v":""}]
[null,null,null,null,null,null,null,null,null,null,null,null,{"$f":"IFERROR(INDEX(الجدول1[اسم الطالب],MATCH(0,INDEX(COUNTIF($M$3:M1100,الجدول1[اسم الطالب]),),0)),\"\")","v":""}]
[null,null,null,null,null,null,null,null,null,null,null,null,{"$f":"IFERROR(INDEX(الجدول1[اسم الطالب],MATCH(0,INDEX(COUNTIF($M$3:M1101,الجدول1[اسم الطالب]),),0)),\"\")","v":""}]
[null,null,null,null,null,null,null,null,null,null,null,null,{"$f":"IFERROR(INDEX(الجدول1[اسم الطالب],MATCH(0,INDEX(COUNTIF($M$3:M1102,الجدول1[اسم الطالب]),),0)),\"\")","v":""}]
[null,null,null,null,null,null,null,null,null,null,null,null,{"$f":"IFERROR(INDEX(الجدول1[اسم الطالب],MATCH(0,INDEX(COUNTIF($M$3:M1103,الجدول1[اسم الطالب]),),0)),\"\")","v":""}]
[null,null,null,null,null,null,null,null,null,null,null,null,{"$f":"IFERROR(INDEX(الجدول1[اسم الطالب],MATCH(0,INDEX(COUNTIF($M$3:M1104,الجدول1[اسم الطالب]),),0)),\"\")","v":""}]
[null,null,null,null,null,null,null,null,null,null,null,null,{"$f":"IFERROR(INDEX(الجدول1[اسم الطالب],MATCH(0,INDEX(COUNTIF($M$3:M1105,الجدول1[اسم الطالب]),),0)),\"\")","v":""}]
[null,null,null,null,null,null,null,null,null,null,null,null,{"$f":"IFERROR(INDEX(الجدول1[اسم الطالب],MATCH(0,INDEX(COUNTIF($M$3:M1106,الجدول1[اسم الطالب]),),0)),\"\")","v":""}]
[null,null,null,null,null,null,null,null,null,null,null,null,{"$f":"IFERROR(INDEX(الجدول1[اسم الطالب],MATCH(0,INDEX(COUNTIF($M$3:M1107,الجدول1[اسم الطالب]),),0)),\"\")","v":""}]
[null,null,null,null,null,null,null,null,null,null,null,null,{"$f":"IFERROR(INDEX(الجدول1[اسم الطالب],MATCH(0,INDEX(COUNTIF($M$3:M1108,الجدول1[اسم الطالب]),),0)),\"\")","v":""}]
[null,null,null,null,null,null,null,null,null,null,null,null,{"$f":"IFERROR(INDEX(الجدول1[اسم الطالب],MATCH(0,INDEX(COUNTIF($M$3:M1109,الجدول1[اسم الطالب]),),0)),\"\")","v":""}]
[null,null,null,null,null,null,null,null,null,null,null,null,{"$f":"IFERROR(INDEX(الجدول1[اسم الطالب],MATCH(0,INDEX(COUNTIF($M$3:M1110,الجدول1[اسم الطالب]),),0)),\"\")","v":""}]
[null,null,null,null,null,null,null,null,null,null,null,null,{"$f":"IFERROR(INDEX(الجدول1[اسم الطالب],MATCH(0,INDEX(COUNTIF($M$3:M1111,الجدول1[اسم الطالب]),),0)),\"\")","v":""}]
[null,null,null,null,null,null,null,null,null,null,null,null,{"$f":"IFERROR(INDEX(الجدول1[اسم الطالب],MATCH(0,INDEX(COUNTIF($M$3:M1112,الجدول1[اسم الطالب]),),0)),\"\")","v":""}]
[null,null,null,null,null,null,null,null,null,null,null,null,{"$f":"IFERROR(INDEX(الجدول1[اسم الطالب],MATCH(0,INDEX(COUNTIF($M$3:M1113,الجدول1[اسم الطالب]),),0)),\"\")","v":""}]
[null,null,null,null,null,null,null,null,null,null,null,null,{"$f":"IFERROR(INDEX(الجدول1[اسم الطالب],MATCH(0,INDEX(COUNTIF($M$3:M1114,الجدول1[اسم الطالب]),),0)),\"\")","v":""}]
[null,null,null,null,null,null,null,null,null,null,null,null,{"$f":"IFERROR(INDEX(الجدول1[اسم الطالب],MATCH(0,INDEX(COUNTIF($M$3:M1115,الجدول1[اسم الطالب]),),0)),\"\")","v":""}]
[null,null,null,null,null,null,null,null,null,null,null,null,{"$f":"IFERROR(INDEX(الجدول1[اسم الطالب],MATCH(0,INDEX(COUNTIF($M$3:M1116,الجدول1[اسم الطالب]),),0)),\"\")","v":""}]
[null,null,null,null,null,null,null,null,null,null,null,null,{"$f":"IFERROR(INDEX(الجدول1[اسم الطالب],MATCH(0,INDEX(COUNTIF($M$3:M1117,الجدول1[اسم الطالب]),),0)),\"\")","v":""}]
[null,null,null,null,null,null,null,null,null,null,null,null,{"$f":"IFERROR(INDEX(الجدول1[اسم الطالب],MATCH(0,INDEX(COUNTIF($M$3:M1118,الجدول1[اسم الطالب]),),0)),\"\")","v":""}]
[null,null,null,null,null,null,null,null,null,null,null,null,{"$f":"IFERROR(INDEX(الجدول1[اسم الطالب],MATCH(0,INDEX(COUNTIF($M$3:M1119,الجدول1[اسم الطالب]),),0)),\"\")","v":""}]